Workbook

Sheet Main
B10: 2021-10-08
B12: Sheet No. | C12: Template Name | D12: Summary
B13: 1 | C13: Future Intra | D13: For Intraday trading in F&O segment
B14: 2 | C14: Cash Intra | D14: For Intraday trading in cash market segment
B15: 3 | C15: Mid-cap Intra | D15: For Intraday trading in Mid-cap stocks
B16: 4 | C16: Bulk Deals | D16: Reveals Bulk Deals carried on NSE & BSE
B17: 5 | C17: Call Tracker
K27: `

Sheet Future Intra
M5: Back to Main Page
A6: FOR INTRA DAY TRADING | L6: =Main!B10 -> 2021-10-08
A9: Sr.no | B9: Sector | C9: Scrip | D9: Expiry Date | E9: CLOSE RATE | F9: Pivot Point | G9: Supports | J9: Resistances
E10: Point | F10: Point | G10: S1 | H10: S2 | I10: S3 | J10: R1 | K10: R2 | L10: R3 | M10: HIGH | N10: LOW | O10: OI | P10: % Change in OI
A11: 1 | B11: Index | C11: BANKNIFTY | D11: 2021-10-28 | E11: 37886.30 | F11: 37901.43 | G11: 37752.97 | H11: 37619.63 | I11: 37471.17 | J11: 38034.77 | K11: 38183.23 | L11: 38316.57 | M11: 38049.9 | N11: 37768.1 | O11: 1840300 | P11: -8.78%
A12: 2 | B12: Index | C12: NIFTY | D12: 2021-10-28 | E12: 17808.15 | F12: 17815.10 | G12: 17746.20 | H12: 17684.25 | I12: 17615.35 | J12: 17877.05 | K12: 17945.95 | L12: 18007.90 | M12: 17884 | N12: 17753.15 | O12: 13115850 | P12: -3.81%
A13: 3 | B13: Index | C13: FINNIFTY | D13: 2021-10-28 | E13: 18381.00 | F13: 18413.15 | G13: 18334.85 | H13: 18288.70 | I13: 18210.40 | J13: 18459.30 | K13: 18537.60 | L13: 18583.75 | M13: 18491.45 | N13: 18367 | O13: 2160 | P13: -3.57%
A14: 4 | B14: Chemical | C14: AARTIIND | D14: 2021-10-28 | E14: 1085.35 | F14: 1091.73 | G14: 1063.47 | H14: 1041.58 | I14: 1013.32 | J14: 1113.62 | K14: 1141.88 | L14: 1163.77 | M14: 1120 | N14: 1069.85 | O14: 3189200 | P14: 0.70%
A15: 5 | B15: Pharma | C15: ABBOTINDIA | D15: 2021-10-28 | E15: 21809.90 | F15: 22115.53 | G15: 21420.42 | H15: 21030.93 | I15: 20335.82 | J15: 22505.02 | K15: 23200.13 | L15: 23589.62 | M15: 22810.65 | N15: 21726.05 | O15: 29150 | P15: 5.05%
A16: 6 | B16: Textile | C16: ABFRL | D16: 2021-10-28 | E16: 260.15 | F16: 255.65 | G16: 248.50 | H16: 236.85 | I16: 229.70 | J16: 267.30 | K16: 274.45 | L16: 286.10 | M16: 262.8 | N16: 244 | O16: 9851400 | P16: 3.27%
A17: 7 | B17: Cement | C17: ACC | D17: 2021-10-28 | E17: 2271.20 | F17: 2257.77 | G17: 2233.48 | H17: 2195.77 | I17: 2171.48 | J17: 2295.48 | K17: 2319.77 | L17: 2357.48 | M17: 2282.05 | N17: 2220.05 | O17: 2938000 | P17: -4.39%
A18: 8 | B18: Others | C18: ADANIENT | D18: 2021-10-28 | E18: 1528.30 | F18: 1522.35 | G18: 1500.95 | H18: 1473.60 | I18: 1452.20 | J18: 1549.70 | K18: 1571.10 | L18: 1598.45 | M18: 1543.75 | N18: 1495 | O18: 25632000 | P18: -0.45%
A19: 9 | B19: Others | C19: ADANIPORTS | D19: 2021-10-28 | E19: 737.65 | F19: 730.62 | G19: 719.28 | H19: 700.92 | I19: 689.58 | J19: 748.98 | K19: 760.32 | L19: 778.68 | M19: 741.95 | N19: 712.25 | O19: 90098750 | P19: -0.63%
A20: 10 | B20: Pharma | C20: ALKEM | D20: 2021-10-28 | E20: 3928.80 | F20: 3949.27 | G20: 3887.53 | H20: 3846.27 | I20: 3784.53 | J20: 3990.53 | K20: 4052.27 | L20: 4093.53 | M20: 4011 | N20: 3908 | O20: 476400 | P20: 11.57%
A21: 11 | B21: Automobile | C21: AMARAJABAT | D21: 2021-10-28 | E21: 762.50 | F21: 762.08 | G21: 755.82 | H21: 749.13 | I21: 742.87 | J21: 768.77 | K21: 775.03 | L21: 781.72 | M21: 768.35 | N21: 755.4 | O21: 9397000 | P21: 2.70%
A22: 12 | B22: Cement | C22: AMBUJACEM | D22: 2021-10-28 | E22: 404.10 | F22: 402.83 | G22: 399.87 | H22: 395.63 | I22: 392.67 | J22: 407.07 | K22: 410.03 | L22: 414.27 | M22: 405.8 | N22: 398.6 | O22: 20550000 | P22: 1.59%
A23: 13 | B23: Pharma | C23: APLLTD | D23: 2021-10-28 | E23: 781.60 | F23: 782.50 | G23: 778.05 | H23: 774.50 | I23: 770.05 | J23: 786.05 | K23: 790.50 | L23: 794.05 | M23: 786.95 | N23: 778.95 | O23: 2522300 | P23: 3.15%
A24: 14 | B24: Others | C24: APOLLOHOSP | D24: 2021-10-28 | E24: 4448.25 | F24: 4444.08 | G24: 4398.17 | H24: 4348.08 | I24: 4302.17 | J24: 4494.17 | K24: 4540.08 | L24: 4590.17 | M24: 4490 | N24: 4394 | O24: 2657000 | P24: -2.44%
A25: 15 | B25: Automobile | C25: APOLLOTYRE | D25: 2021-10-28 | E25: 229.20 | F25: 229.13 | G25: 224.22 | H25: 219.23 | I25: 214.32 | J25: 234.12 | K25: 239.03 | L25: 244.02 | M25: 234.05 | N25: 224.15 | O25: 14102500 | P25: 2.56%
A26: 16 | B26: Automobile | C26: ASHOKLEY | D26: 2021-10-28 | E26: 136.00 | F26: 135.42 | G26: 131.83 | H26: 127.67 | I26: 124.08 | J26: 139.58 | K26: 143.17 | L26: 147.33 | M26: 139 | N26: 131.25 | O26: 45261000 | P26: -13.21%
A27: 17 | B27: FMCG | C27: ASIANPAINT | D27: 2021-10-28 | E27: 3289.05 | F27: 3279.12 | G27: 3240.03 | H27: 3191.02 | I27: 3151.93 | J27: 3328.13 | K27: 3367.22 | L27: 3416.23 | M27: 3318.2 | N27: 3230.1 | O27: 4014300 | P27: -3.93%
A28: 18 | B28: Others | C28: ASTRAL | D28: 2021-10-28 | E28: 2243.40 | F28: 2246.08 | G28: 2218.17 | H28: 2192.93 | I28: 2165.02 | J28: 2271.32 | K28: 2299.23 | L28: 2324.47 | M28: 2274 | N28: 2220.85 | O28: 700425 | P28: 0.43%
A29: 19 | B29: Banking | C29: AUBANK | D29: 2021-10-28 | E29: 1210.55 | F29: 1212.32 | G29: 1198.08 | H29: 1185.62 | I29: 1171.38 | J29: 1224.78 | K29: 1239.02 | L29: 1251.48 | M29: 1226.55 | N29: 1199.85 | O29: 4550000 | P29: -4.13%
A30: 20 | B30: Pharma | C30: AUROPHARMA | D30: 2021-10-28 | E30: 722.85 | F30: 723.37 | G30: 717.23 | H30: 711.62 | I30: 705.48 | J30: 728.98 | K30: 735.12 | L30: 740.73 | M30: 729.5 | N30: 717.75 | O30: 14897350 | P30: 0.08%
A31: 21 | B31: Banking | C31: AXISBANK | D31: 2021-10-28 | E31: 780.35 | F31: 782.78 | G31: 774.67 | H31: 768.98 | I31: 760.87 | J31: 788.47 | K31: 796.58 | L31: 802.27 | M31: 790.9 | N31: 777.1 | O31: 34594800 | P31: 3.06%
A32: 22 | B32: Automobile | C32: BAJAJ-AUTO | D32: 2021-10-28 | E32: 3845.40 | F32: 3835.27 | G32: 3789.18 | H32: 3732.97 | I32: 3686.88 | J32: 3891.48 | K32: 3937.57 | L32: 3993.78 | M32: 3881.35 | N32: 3779.05 | O32: 3011000 | P32: -1.68%
A33: 23 | B33: Finance | C33: BAJAJFINSV | D33: 2021-10-28 | E33: 17550.20 | F33: 17668.73 | G33: 17387.47 | H33: 17224.73 | I33: 16943.47 | J33: 17831.47 | K33: 18112.73 | L33: 18275.47 | M33: 17950 | N33: 17506 | O33: 859575 | P33: 5.71%
A34: 24 | B34: Finance | C34: BAJFINANCE | D34: 2021-10-28 | E34: 7782.70 | F34: 7824.77 | G34: 7728.13 | H34: 7673.57 | I34: 7576.93 | J34: 7879.33 | K34: 7975.97 | L34: 8030.53 | M34: 7921.4 | N34: 7770.2 | O34: 4276125 | P34: 0.48%
A35: 25 | B35: Automobile | C35: BALKRISIND | D35: 2021-10-28 | E35: 2562.70 | F35: 2556.38 | G35: 2532.77 | H35: 2502.83 | I35: 2479.22 | J35: 2586.32 | K35: 2609.93 | L35: 2639.87 | M35: 2580 | N35: 2526.45 | O35: 1626400 | P35: 3.94%
A36: 26 | B36: Banking | C36: BANDHANBNK | D36: 2021-10-28 | E36: 328.90 | F36: 322.52 | G36: 313.38 | H36: 297.87 | I36: 288.73 | J36: 338.03 | K36: 347.17 | L36: 362.68 | M36: 331.65 | N36: 307 | O36: 22993200 | P36: -7.52%
A37: 27 | B37: Banking | C37: BANKBARODA | D37: 2021-10-28 | E37: 84.35 | F37: 84.33 | G37: 83.37 | H37: 82.38 | I37: 81.42 | J37: 85.32 | K37: 86.28 | L37: 87.27 | M37: 85.3 | N37: 83.35 | O37: 168749100 | P37: 0.52%
A38: 28 | B38: FMCG | C38: BATAINDIA | D38: 2021-10-28 | E38: 1953.00 | F38: 1916.63 | G38: 1874.32 | H38: 1795.63 | I38: 1753.32 | J38: 1995.32 | K38: 2037.63 | L38: 2116.32 | M38: 1958.95 | N38: 1837.95 | O38: 2110350 | P38: 14.33%
A39: 29 | B39: Capital_Goods | C39: BEL | D39: 2021-10-28 | E39: 204.05 | F39: 203.32 | G39: 202.23 | H39: 200.42 | I39: 199.33 | J39: 205.13 | K39: 206.22 | L39: 208.03 | M39: 204.4 | N39: 201.5 | O39: 26664600 | P39: -1.38%
A40: 30 | B40: FMCG | C40: BERGEPAINT | D40: 2021-10-28 | E40: 832.85 | F40: 832.78 | G40: 822.82 | H40: 812.78 | I40: 802.82 | J40: 842.82 | K40: 852.78 | L40: 862.82 | M40: 842.75 | N40: 822.75 | O40: 4747600 | P40: 2.20%
A41: 31 | B41: Automobile | C41: BHARATFORG | D41: 2021-10-28 | E41: 744.55 | F41: 741.52 | G41: 729.63 | H41: 714.72 | I41: 702.83 | J41: 756.43 | K41: 768.32 | L41: 783.23 | M41: 753.4 | N41: 726.6 | O41: 12204000 | P41: 2.38%
A42: 32 | B42: Telecom | C42: BHARTIARTL | D42: 2021-10-28 | E42: 694.65 | F42: 697.17 | G42: 691.08 | H42: 687.52 | I42: 681.43 | J42: 700.73 | K42: 706.82 | L42: 710.38 | M42: 703.25 | N42: 693.6 | O42: 73484218 | P42: -2.08%
A43: 33 | B43: Capital_Goods | C43: BHEL | D43: 2021-10-28 | E43: 63.55 | F43: 64.02 | G43: 62.93 | H43: 62.32 | I43: 61.23 | J43: 64.63 | K43: 65.72 | L43: 66.33 | M43: 65.1 | N43: 63.4 | O43: 119112000 | P43: -0.03%
A44: 34 | B44: Pharma | C44: BIOCON | D44: 2021-10-28 | E44: 360.85 | F44: 360.35 | G44: 357.90 | H44: 354.95 | I44: 352.50 | J44: 363.30 | K44: 365.75 | L44: 368.70 | M44: 362.8 | N44: 357.4 | O44: 17383400 | P44: -1.11%
A45: 35 | B45: Automobile | C45: BOSCHLTD | D45: 2021-10-28 | E45: 17564.25 | F45: 17468.48 | G45: 17196.97 | H45: 16829.68 | I45: 16558.17 | J45: 17835.77 | K45: 18107.28 | L45: 18474.57 | M45: 17740 | N45: 17101.2 | O45: 180850 | P45: -1.01%
A46: 36 | B46: Oil_Gas | C46: BPCL | D46: 2021-10-28 | E46: 449.80 | F46: 450.62 | G46: 447.53 | H46: 445.27 | I46: 442.18 | J46: 452.88 | K46: 455.97 | L46: 458.23 | M46: 453.7 | N46: 448.35 | O46: 38626200 | P46: -0.85%
A47: 37 | B47: FMCG | C47: BRITANNIA | D47: 2021-10-28 | E47: 3920.55 | F47: 3930.87 | G47: 3891.73 | H47: 3862.92 | I47: 3823.78 | J47: 3959.68 | K47: 3998.82 | L47: 4027.63 | M47: 3970 | N47: 3902.05 | O47: 1162000 | P47: 4.35%
A48: 38 | B48: Pharma | C48: CADILAHC | D48: 2021-10-28 | E48: 552.20 | F48: 553.47 | G48: 548.73 | H48: 545.27 | I48: 540.53 | J48: 556.93 | K48: 561.67 | L48: 565.13 | M48: 558.2 | N48: 550 | O48: 18436000 | P48: 1.56%
A49: 39 | B49: Banking | C49: CANBK | D49: 2021-10-28 | E49: 175.10 | F49: 175.63 | G49: 173.22 | H49: 171.33 | I49: 168.92 | J49: 177.52 | K49: 179.93 | L49: 181.82 | M49: 178.05 | N49: 173.75 | O49: 80287200 | P49: -3.27%
A50: 40 | B50: Finance | C50: CANFINHOME | D50: 2021-10-28 | E50: 692.95 | F50: 693.75 | G50: 678.40 | H50: 663.85 | I50: 648.50 | J50: 708.30 | K50: 723.65 | L50: 738.20 | M50: 709.1 | N50: 679.2 | O50: 4611750 | P50: 2.60%
A51: 41 | B51: Finance | C51: CHOLAFIN | D51: 2021-10-28 | E51: 585.10 | F51: 579.22 | G51: 570.23 | H51: 555.37 | I51: 546.38 | J51: 594.08 | K51: 603.07 | L51: 617.93 | M51: 588.2 | N51: 564.35 | O51: 11548750 | P51: -0.62%
A52: 42 | B52: Pharma | C52: CIPLA | D52: 2021-10-28 | E52: 920.20 | F52: 914.78 | G52: 905.77 | H52: 891.33 | I52: 882.32 | J52: 929.22 | K52: 938.23 | L52: 952.67 | M52: 923.8 | N52: 900.35 | O52: 12096500 | P52: 16.06%
A53: 43 | B53: Others | C53: COALINDIA | D53: 2021-10-28 | E53: 191.60 | F53: 192.12 | G53: 188.98 | H53: 186.37 | I53: 183.23 | J53: 194.73 | K53: 197.87 | L53: 200.48 | M53: 195.25 | N53: 189.5 | O53: 62836200 | P53: 0.82%
A54: 44 | B54: Technology | C54: COFORGE | D54: 2021-10-28 | E54: 5473.15 | F54: 5449.35 | G54: 5373.80 | H54: 5274.45 | I54: 5198.90 | J54: 5548.70 | K54: 5624.25 | L54: 5723.60 | M54: 5524.9 | N54: 5350 | O54: 757600 | P54: 2.24%
A55: 45 | B55: FMCG | C55: COLPAL | D55: 2021-10-28 | E55: 1691.15 | F55: 1691.65 | G55: 1683.50 | H55: 1675.85 | I55: 1667.70 | J55: 1699.30 | K55: 1707.45 | L55: 1715.10 | M55: 1699.8 | N55: 1684 | O55: 2551850 | P55: 1.18%
A56: 46 | B56: Others | C56: CONCOR | D56: 2021-10-28 | E56: 698.35 | F56: 699.57 | G56: 692.38 | H56: 686.42 | I56: 679.23 | J56: 705.53 | K56: 712.72 | L56: 718.68 | M56: 706.75 | N56: 693.6 | O56: 7663389 | P56: 7.17%
A57: 47 | B57: Others | C57: COROMANDEL | D57: 2021-10-28 | E57: 858.95 | F57: 858.05 | G57: 841.10 | H57: 823.25 | I57: 806.30 | J57: 875.90 | K57: 892.85 | L57: 910.70 | M57: 875 | N57: 840.2 | O57: 1991250 | P57: -6.02%
A58: 48 | B58: Capital_Goods | C58: CROMPTON | D58: 2021-10-28 | E58: 480.80 | F58: 479.48 | G58: 476.27 | H58: 471.73 | I58: 468.52 | J58: 484.02 | K58: 487.23 | L58: 491.77 | M58: 482.7 | N58: 474.95 | O58: 1106600 | P58: 8.99%
A59: 49 | B59: Banking | C59: CUB | D59: 2021-10-28 | E59: 160.70 | F59: 161.22 | G59: 159.28 | H59: 157.87 | I59: 155.93 | J59: 162.63 | K59: 164.57 | L59: 165.98 | M59: 163.15 | N59: 159.8 | O59: 8673800 | P59: 3.25%
A60: 50 | B60: Capital_Goods | C60: CUMMINSIND | D60: 2021-10-28 | E60: 898.65 | F60: 897.25 | G60: 890.40 | H60: 882.15 | I60: 875.30 | J60: 905.50 | K60: 912.35 | L60: 920.60 | M60: 904.1 | N60: 889 | O60: 2593200 | P60: -0.85%
A61: 51 | B61: FMCG | C61: DABUR | D61: 2021-10-28 | E61: 618.15 | F61: 618.88 | G61: 616.27 | H61: 614.38 | I61: 611.77 | J61: 620.77 | K61: 623.38 | L61: 625.27 | M61: 621.5 | N61: 617 | O61: 11426250 | P61: 1.51%
A62: 52 | B62: Cement | C62: DALBHARAT | D62: 2021-10-28 | E62: 2093.15 | F62: 2090.37 | G62: 2072.73 | H62: 2052.32 | I62: 2034.68 | J62: 2110.78 | K62: 2128.42 | L62: 2148.83 | M62: 2108 | N62: 2069.95 | O62: 304500 | P62: 6.38%
A63: 53 | B63: Chemical | C63: DEEPAKNTR | D63: 2021-10-28 | E63: 2881.35 | F63: 2889.38 | G63: 2832.02 | H63: 2782.68 | I63: 2725.32 | J63: 2938.72 | K63: 2996.08 | L63: 3045.42 | M63: 2946.75 | N63: 2840.05 | O63: 2809000 | P63: -1.39%
A64: 54 | B64: Others | C64: DELTACORP | D64: 2021-10-28 | E64: 271.00 | F64: 271.43 | G64: 267.57 | H64: 264.13 | I64: 260.27 | J64: 274.87 | K64: 278.73 | L64: 282.17 | M64: 275.3 | N64: 268 | O64: 11076800 | P64: 1.43%
A65: 55 | B65: Pharma | C65: DIVISLAB | D65: 2021-10-28 | E65: 5119.05 | F65: 5121.12 | G65: 5085.08 | H65: 5051.12 | I65: 5015.08 | J65: 5155.08 | K65: 5191.12 | L65: 5225.08 | M65: 5157.15 | N65: 5087.15 | O65: 2290400 | P65: 2.68%
A66: 56 | B66: Others | C66: DIXON | D66: 2021-10-28 | E66: 4877.90 | F66: 4899.28 | G66: 4828.67 | H66: 4779.43 | I66: 4708.82 | J66: 4948.52 | K66: 5019.13 | L66: 5068.37 | M66: 4969.9 | N66: 4850.05 | O66: 435375 | P66: 3.45%
A67: 57 | B67: Realty | C67: DLF | D67: 2021-10-28 | E67: 424.15 | F67: 423.18 | G67: 415.47 | H67: 406.78 | I67: 399.07 | J67: 431.87 | K67: 439.58 | L67: 448.27 | M67: 430.9 | N67: 414.5 | O67: 33300300 | P67: 2.42%
A68: 58 | B68: Pharma | C68: DRREDDY | D68: 2021-10-28 | E68: 4913.40 | F68: 4938.10 | G68: 4881.05 | H68: 4848.70 | I68: 4791.65 | J68: 4970.45 | K68: 5027.50 | L68: 5059.85 | M68: 4995.15 | N68: 4905.75 | O68: 2788250 | P68: 4.03%
A69: 59 | B69: Automobile | C69: EICHERMOT | D69: 2021-10-28 | E69: 2819.10 | F69: 2805.15 | G69: 2746.10 | H69: 2673.10 | I69: 2614.05 | J69: 2878.15 | K69: 2937.20 | L69: 3010.20 | M69: 2864.2 | N69: 2732.15 | O69: 4075050 | P69: -3.68%
A70: 60 | B70: Automobile | C70: ESCORTS | D70: 2021-10-28 | E70: 1522.55 | F70: 1504.75 | G70: 1481.30 | H70: 1440.05 | I70: 1416.60 | J70: 1546.00 | K70: 1569.45 | L70: 1610.70 | M70: 1528.2 | N70: 1463.5 | O70: 7720900 | P70: 5.01%
A71: 61 | B71: Automobile | C71: EXIDEIND | D71: 2021-10-28 | E71: 185.15 | F71: 184.42 | G71: 181.98 | H71: 178.82 | I71: 176.38 | J71: 187.58 | K71: 190.02 | L71: 193.18 | M71: 186.85 | N71: 181.25 | O71: 33393600 | P71: 0.36%
A72: 62 | B72: Banking | C72: FEDERALBNK | D72: 2021-10-28 | E72: 85.90 | F72: 85.93 | G72: 84.97 | H72: 84.03 | I72: 83.07 | J72: 86.87 | K72: 87.83 | L72: 88.77 | M72: 86.9 | N72: 85 | O72: 90220000 | P72: 1.03%
A73: 63 | B73: Oil_Gas | C73: GAIL | D73: 2021-10-28 | E73: 159.90 | F73: 162.33 | G73: 156.37 | H73: 152.83 | I73: 146.87 | J73: 165.87 | K73: 171.83 | L73: 175.37 | M73: 168.3 | N73: 158.8 | O73: 49129400 | P73: 0.34%
A74: 64 | B74: Pharma | C74: GLENMARK | D74: 2021-10-28 | E74: 518.25 | F74: 506.03 | G74: 492.82 | H74: 467.38 | I74: 454.17 | J74: 531.47 | K74: 544.68 | L74: 570.12 | M74: 519.25 | N74: 480.6 | O74: 7299050 | P74: -0.17%
A75: 65 | B75: Infrastructure | C75: GMRINFRA | D75: 2021-10-28 | E75: 40.15 | F75: 40.37 | G75: 39.58 | H75: 39.02 | I75: 38.23 | J75: 40.93 | K75: 41.72 | L75: 42.28 | M75: 41.15 | N75: 39.8 | O75: 115695000 | P75: 2.53%
A76: 66 | B76: FMCG | C76: GODREJCP | D76: 2021-10-28 | E76: 1033.40 | F76: 1028.77 | G76: 1020.18 | H76: 1006.97 | I76: 998.38 | J76: 1041.98 | K76: 1050.57 | L76: 1063.78 | M76: 1037.35 | N76: 1015.55 | O76: 5407000 | P76: -2.89%
A77: 67 | B77: Realty | C77: GODREJPROP | D77: 2021-10-28 | E77: 2480.65 | F77: 2431.33 | G77: 2359.32 | H77: 2237.98 | I77: 2165.97 | J77: 2552.67 | K77: 2624.68 | L77: 2746.02 | M77: 2503.35 | N77: 2310 | O77: 2375100 | P77: 7.66%
A78: 68 | B78: Pharma | C78: GRANULES | D78: 2021-10-28 | E78: 330.20 | F78: 327.83 | G78: 323.17 | H78: 316.13 | I78: 311.47 | J78: 334.87 | K78: 339.53 | L78: 346.57 | M78: 332.5 | N78: 320.8 | O78: 11280900 | P78: -3.04%
A79: 69 | B79: Cement | C79: GRASIM | D79: 2021-10-28 | E79: 1599.35 | F79: 1609.33 | G79: 1586.57 | H79: 1573.78 | I79: 1551.02 | J79: 1622.12 | K79: 1644.88 | L79: 1657.67 | M79: 1632.1 | N79: 1596.55 | O79: 10446200 | P79: 2.77%
A80: 70 | B80: Oil_Gas | C80: GUJGASLTD | D80: 2021-10-28 | E80: 638.15 | F80: 635.70 | G80: 629.80 | H80: 621.45 | I80: 615.55 | J80: 644.05 | K80: 649.95 | L80: 658.30 | M80: 641.6 | N80: 627.35 | O80: 6238750 | P80: -4.55%
A81: 71 | B81: Others | C81: HAL | D81: 2021-10-28 | E81: 1364.15 | F81: 1371.30 | G81: 1350.15 | H81: 1336.15 | I81: 1315.00 | J81: 1385.30 | K81: 1406.45 | L81: 1420.45 | M81: 1392.45 | N81: 1357.3 | O81: 1999275 | P81: 4.39%
A82: 72 | B82: Capital_Goods | C82: HAVELLS | D82: 2021-10-28 | E82: 1399.65 | F82: 1398.97 | G82: 1384.38 | H82: 1369.12 | I82: 1354.53 | J82: 1414.23 | K82: 1428.82 | L82: 1444.08 | M82: 1413.55 | N82: 1383.7 | O82: 4524000 | P82: 2.48%
A83: 73 | B83: Technology | C83: HCLTECH | D83: 2021-10-28 | E83: 1304.60 | F83: 1301.43 | G83: 1285.22 | H83: 1265.83 | I83: 1249.62 | J83: 1320.82 | K83: 1337.03 | L83: 1356.42 | M83: 1317.65 | N83: 1282.05 | O83: 18813200 | P83: 0.37%
A84: 74 | B84: Finance | C84: HDFC | D84: 2021-10-28 | E84: 2739.00 | F84: 2749.68 | G84: 2724.32 | H84: 2709.63 | I84: 2684.27 | J84: 2764.37 | K84: 2789.73 | L84: 2804.42 | M84: 2775.05 | N84: 2735 | O84: 13351500 | P84: 2.16%
A85: 75 | B85: Finance | C85: HDFCAMC | D85: 2021-10-28 | E85: 2921.70 | F85: 2921.52 | G85: 2912.03 | H85: 2902.37 | I85: 2892.88 | J85: 2931.18 | K85: 2940.67 | L85: 2950.33 | M85: 2931 | N85: 2911.85 | O85: 3619600 | P85: -0.88%
A86: 76 | B86: Banking | C86: HDFCBANK | D86: 2021-10-28 | E86: 1611.15 | F86: 1614.97 | G86: 1602.93 | H86: 1594.72 | I86: 1582.68 | J86: 1623.18 | K86: 1635.22 | L86: 1643.43 | M86: 1627 | N86: 1606.75 | O86: 34224300 | P86: -1.75%
A87: 77 | B87: Finance | C87: HDFCLIFE | D87: 2021-10-28 | E87: 728.80 | F87: 729.18 | G87: 722.57 | H87: 716.33 | I87: 709.72 | J87: 735.42 | K87: 742.03 | L87: 748.27 | M87: 735.8 | N87: 722.95 | O87: 18592200 | P87: 4.36%
A88: 78 | B88: Automobile | C88: HEROMOTOCO | D88: 2021-10-28 | E88: 2855.50 | F88: 2845.42 | G88: 2822.83 | H88: 2790.17 | I88: 2767.58 | J88: 2878.08 | K88: 2900.67 | L88: 2933.33 | M88: 2868 | N88: 2812.75 | O88: 4362300 | P88: -3.02%
A89: 79 | B89: Metals | C89: HINDALCO | D89: 2021-10-28 | E89: 479.55 | F89: 480.43 | G89: 474.47 | H89: 469.38 | I89: 463.42 | J89: 485.52 | K89: 491.48 | L89: 496.57 | M89: 486.4 | N89: 475.35 | O89: 26030050 | P89: 2.96%
A90: 80 | B90: Oil_Gas | C90: HINDPETRO | D90: 2021-10-28 | E90: 319.90 | F90: 319.65 | G90: 315.00 | H90: 310.10 | I90: 305.45 | J90: 324.55 | K90: 329.20 | L90: 334.10 | M90: 324.3 | N90: 314.75 | O90: 19310400 | P90: -1.53%
A91: 81 | B91: FMCG | C91: HINDUNILVR | D91: 2021-10-28 | E91: 2667.60 | F91: 2676.20 | G91: 2655.15 | H91: 2642.70 | I91: 2621.65 | J91: 2688.65 | K91: 2709.70 | L91: 2722.15 | M91: 2697.25 | N91: 2663.75 | O91: 5850600 | P91: 6.80%
A92: 82 | B92: Finance | C92: IBULHSGFIN | D92: 2021-10-28 | E92: 243.60 | F92: 245.57 | G92: 241.13 | H92: 238.67 | I92: 234.23 | J92: 248.03 | K92: 252.47 | L92: 254.93 | M92: 250 | N92: 243.1 | O92: 42336700 | P92: -5.40%
A93: 83 | B93: Banking | C93: ICICIBANK | D93: 2021-10-28 | E93: 703.50 | F93: 702.13 | G93: 697.47 | H93: 691.43 | I93: 686.77 | J93: 708.17 | K93: 712.83 | L93: 718.87 | M93: 706.8 | N93: 696.1 | O93: 89538625 | P93: 0.32%
A94: 84 | B94: Finance | C94: ICICIGI | D94: 2021-10-28 | E94: 1551.30 | F94: 1550.57 | G94: 1535.83 | H94: 1520.37 | I94: 1505.63 | J94: 1566.03 | K94: 1580.77 | L94: 1596.23 | M94: 1565.3 | N94: 1535.1 | O94: 3462050 | P94: 1.69%
A95: 85 | B95: Finance | C95: ICICIPRULI | D95: 2021-10-28 | E95: 684.95 | F95: 684.52 | G95: 679.33 | H95: 673.72 | I95: 668.53 | J95: 690.13 | K95: 695.32 | L95: 700.93 | M95: 689.7 | N95: 678.9 | O95: 4612500 | P95: 1.15%
A96: 86 | B96: Telecom | C96: IDEA | D96: 2021-10-28 | E96: 11.45 | F96: 11.53 | G96: 11.22 | H96: 10.98 | I96: 10.67 | J96: 11.77 | K96: 12.08 | L96: 12.32 | M96: 11.85 | N96: 11.3 | O96: 946470000 | P96: 0.69%
A97: 87 | B97: Banking | C97: IDFCFIRSTB | D97: 2021-10-28 | E97: 48.00 | F97: 48.00 | G97: 47.35 | H97: 46.70 | I97: 46.05 | J97: 48.65 | K97: 49.30 | L97: 49.95 | M97: 48.65 | N97: 47.35 | O97: 180519000 | P97: -0.52%
A98: 88 | B98: Others | C98: IEX | D98: 2021-10-28 | E98: 642.80 | F98: 641.73 | G98: 629.87 | H98: 616.93 | I98: 605.07 | J98: 654.67 | K98: 666.53 | L98: 679.47 | M98: 653.6 | N98: 628.8 | O98: 8881250 | P98: 6.52%
A99: 89 | B99: Oil_Gas | C99: IGL | D99: 2021-10-28 | E99: 521.75 | F99: 521.77 | G99: 519.13 | H99: 516.52 | I99: 513.88 | J99: 524.38 | K99: 527.02 | L99: 529.63 | M99: 524.4 | N99: 519.15 | O99: 13292125 | P99: -0.62%
A100: 90 | B100: Infrastructure | C100: INDHOTEL | D100: 2021-10-28 | E100: 196.45 | F100: 194.42 | G100: 189.83 | H100: 183.22 | I100: 178.63 | J100: 201.03 | K100: 205.62 | L100: 212.23 | M100: 199 | N100: 187.8 | O100: 16497000 | P100: -9.36%
A101: 91 | B101: Cement | C101: INDIACEM | D101: 2021-10-28 | E101: 197.05 | F101: 197.27 | G101: 195.28 | H101: 193.52 | I101: 191.53 | J101: 199.03 | K101: 201.02 | L101: 202.78 | M101: 199.25 | N101: 195.5 | O101: 7357300 | P101: 6.60%
A102: 92 | B102: Others | C102: INDIAMART | D102: 2021-10-28 | E102: 8370.80 | F102: 8390.22 | G102: 8294.58 | H102: 8218.37 | I102: 8122.73 | J102: 8466.43 | K102: 8562.07 | L102: 8638.28 | M102: 8485.85 | N102: 8314 | O102: 180675 | P102: -0.66%
A103: 93 | B103: Others | C103: INDIGO | D103: 2021-10-28 | E103: 1950.10 | F103: 1961.40 | G103: 1927.80 | H103: 1905.50 | I103: 1871.90 | J103: 1983.70 | K103: 2017.30 | L103: 2039.60 | M103: 1995 | N103: 1939.1 | O103: 4134000 | P103: 2.87%
A104: 94 | B104: Banking | C104: INDUSINDBK | D104: 2021-10-28 | E104: 1172.00 | F104: 1169.45 | G104: 1147.60 | H104: 1123.20 | I104: 1101.35 | J104: 1193.85 | K104: 1215.70 | L104: 1240.10 | M104: 1191.3 | N104: 1145.05 | O104: 14274000 | P104: -0.16%
A105: 95 | B105: Telecom | C105: INDUSTOWER | D105: 2021-10-28 | E105: 305.00 | F105: 310.47 | G105: 294.63 | H105: 284.27 | I105: 268.43 | J105: 320.83 | K105: 336.67 | L105: 347.03 | M105: 326.3 | N105: 300.1 | O105: 14291200 | P105: 17.36%
A106: 96 | B106: Technology | C106: INFY | D106: 2021-10-28 | E106: 1686.00 | F106: 1684.88 | G106: 1671.27 | H106: 1656.53 | I106: 1642.92 | J106: 1699.62 | K106: 1713.23 | L106: 1727.97 | M106: 1698.5 | N106: 1670.15 | O106: 40756200 | P106: -2.41%
A107: 97 | B107: Oil_Gas | C107: IOC | D107: 2021-10-28 | E107: 132.40 | F107: 131.80 | G107: 130.50 | H107: 128.60 | I107: 127.30 | J107: 133.70 | K107: 135.00 | L107: 136.90 | M107: 133.1 | N107: 129.9 | O107: 41288000 | P107: -5.22%
A108: 98 | B108: Pharma | C108: IPCALAB | D108: 2021-10-28 | E108: 2359.50 | F108: 2331.77 | G108: 2283.53 | H108: 2207.57 | I108: 2159.33 | J108: 2407.73 | K108: 2455.97 | L108: 2531.93 | M108: 2380 | N108: 2255.8 | O108: 793350 | P108: 12.65%
A109: 99 | B109: Others | C109: IRCTC | D109: 2021-10-28 | E109: 4710.45 | F109: 4671.05 | G109: 4564.40 | H109: 4418.35 | I109: 4311.70 | J109: 4817.10 | K109: 4923.75 | L109: 5069.80 | M109: 4777.7 | N109: 4525 | O109: 2788500 | P109: -3.75%
A110: 100 | B110: FMCG | C110: ITC | D110: 2021-10-28 | E110: 234.05 | F110: 234.28 | G110: 232.57 | H110: 231.08 | I110: 229.37 | J110: 235.77 | K110: 237.48 | L110: 238.97 | M110: 236 | N110: 232.8 | O110: 188899200 | P110: 0.09%
A111: 101 | B111: Metals | C111: JINDALSTEL | D111: 2021-10-28 | E111: 408.65 | F111: 412.37 | G111: 403.33 | H111: 398.02 | I111: 388.98 | J111: 417.68 | K111: 426.72 | L111: 432.03 | M111: 421.4 | N111: 407.05 | O111: 40600000 | P111: -0.36%
A112: 102 | B112: Cement | C112: JKCEMENT | D112: 2021-10-28 | E112: 3424.35 | F112: 3410.18 | G112: 3370.37 | H112: 3316.38 | I112: 3276.57 | J112: 3464.17 | K112: 3503.98 | L112: 3557.97 | M112: 3450 | N112: 3356.2 | O112: 74725 | P112: -3.61%
A113: 103 | B113: Metals | C113: JSWSTEEL | D113: 2021-10-28 | E113: 668.50 | F113: 667.07 | G113: 661.63 | H113: 654.77 | I113: 649.33 | J113: 673.93 | K113: 679.37 | L113: 686.23 | M113: 672.5 | N113: 660.2 | O113: 46568250 | P113: -0.14%
A114: 104 | B114: Others | C114: JUBLFOOD | D114: 2021-10-28 | E114: 3992.75 | F114: 3992.20 | G114: 3955.60 | H114: 3918.45 | I114: 3881.85 | J114: 4029.35 | K114: 4065.95 | L114: 4103.10 | M114: 4028.8 | N114: 3955.05 | O114: 1830250 | P114: 7.35%
A115: 105 | B115: Banking | C115: KOTAKBANK | D115: 2021-10-28 | E115: 1961.60 | F115: 1970.00 | G115: 1950.40 | H115: 1939.20 | I115: 1919.60 | J115: 1981.20 | K115: 2000.80 | L115: 2012.00 | M115: 1989.6 | N115: 1958.8 | O115: 12378400 | P115: 4.51%
A116: 106 | B116: Finance | C116: L&TFH | D116: 2021-10-28 | E116: 90.65 | F116: 90.60 | G116: 89.95 | H116: 89.25 | I116: 88.60 | J116: 91.30 | K116: 91.95 | L116: 92.65 | M116: 91.25 | N116: 89.9 | O116: 65038112 | P116: -0.72%
A117: 107 | B117: Others | C117: LALPATHLAB | D117: 2021-10-28 | E117: 3694.45 | F117: 3712.68 | G117: 3665.42 | H117: 3636.38 | I117: 3589.12 | J117: 3741.72 | K117: 3788.98 | L117: 3818.02 | M117: 3759.95 | N117: 3683.65 | O117: 718000 | P117: 0.35%
A118: 108 | B118: Finance | C118: LICHSGFIN | D118: 2021-10-28 | E118: 445.50 | F118: 445.30 | G118: 440.35 | H118: 435.20 | I118: 430.25 | J118: 450.45 | K118: 455.40 | L118: 460.55 | M118: 450.25 | N118: 440.15 | O118: 17148000 | P118: -3.38%
A119: 109 | B119: Capital_Goods | C119: LT | D119: 2021-10-28 | E119: 1719.95 | F119: 1719.33 | G119: 1703.67 | H119: 1687.38 | I119: 1671.72 | J119: 1735.62 | K119: 1751.28 | L119: 1767.57 | M119: 1735 | N119: 1703.05 | O119: 11574175 | P119: 2.18%
A120: 110 | B120: Technology | C120: LTI | D120: 2021-10-28 | E120: 5801.10 | F120: 5798.77 | G120: 5729.53 | H120: 5657.97 | I120: 5588.73 | J120: 5870.33 | K120: 5939.57 | L120: 6011.13 | M120: 5868 | N120: 5727.2 | O120: 648450 | P120: 6.64%
A121: 111 | B121: Technology | C121: LTTS | D121: 2021-10-28 | E121: 4703.20 | F121: 4700.77 | G121: 4642.58 | H121: 4581.97 | I121: 4523.78 | J121: 4761.38 | K121: 4819.57 | L121: 4880.18 | M121: 4758.95 | N121: 4640.15 | O121: 606600 | P121: 6.53%
A122: 112 | B122: Pharma | C122: LUPIN | D122: 2021-10-28 | E122: 960.70 | F122: 958.57 | G122: 952.23 | H122: 943.77 | I122: 937.43 | J122: 967.03 | K122: 973.37 | L122: 981.83 | M122: 964.9 | N122: 950.1 | O122: 11184300 | P122: -3.38%
A123: 113 | B123: Automobile | C123: M&M | D123: 2021-10-28 | E123: 879.30 | F123: 869.13 | G123: 848.52 | H123: 817.73 | I123: 797.12 | J123: 899.92 | K123: 920.53 | L123: 951.32 | M123: 889.75 | N123: 838.35 | O123: 11435900 | P123: -2.40%
A124: 114 | B124: Finance | C124: M&MFIN | D124: 2021-10-28 | E124: 183.30 | F124: 184.08 | G124: 181.92 | H124: 180.53 | I124: 178.37 | J124: 185.47 | K124: 187.63 | L124: 189.02 | M124: 186.25 | N124: 182.7 | O124: 23792000 | P124: 0.97%
A125: 115 | B125: Finance | C125: MANAPPURAM | D125: 2021-10-28 | E125: 195.05 | F125: 191.98 | G125: 188.32 | H125: 181.58 | I125: 177.92 | J125: 198.72 | K125: 202.38 | L125: 209.12 | M125: 195.65 | N125: 185.25 | O125: 20028000 | P125: 2.27%
A126: 116 | B126: FMCG | C126: MARICO | D126: 2021-10-28 | E126: 563.85 | F126: 565.10 | G126: 560.45 | H126: 557.05 | I126: 552.40 | J126: 568.50 | K126: 573.15 | L126: 576.55 | M126: 569.75 | N126: 561.7 | O126: 8376000 | P126: 0.94%
A127: 117 | B127: Automobile | C127: MARUTI | D127: 2021-10-28 | E127: 7501.30 | F127: 7441.30 | G127: 7295.95 | H127: 7090.60 | I127: 6945.25 | J127: 7646.65 | K127: 7792.00 | L127: 7997.35 | M127: 7586.65 | N127: 7235.95 | O127: 2831600 | P127: -3.17%
A128: 118 | B128: FMCG | C128: MCDOWELL-N | D128: 2021-10-28 | E128: 904.25 | F128: 900.32 | G128: 883.43 | H128: 862.62 | I128: 845.73 | J128: 921.13 | K128: 938.02 | L128: 958.83 | M128: 917.2 | N128: 879.5 | O128: 14875000 | P128: -6.11%
A129: 119 | B129: Others | C129: MCX | D129: 2021-10-28 | E129: 1833.65 | F129: 1815.47 | G129: 1739.18 | H129: 1644.72 | I129: 1568.43 | J129: 1909.93 | K129: 1986.22 | L129: 2080.68 | M129: 1891.75 | N129: 1721 | O129: 1985200 | P129: 11.46%
A130: 120 | B130: Pharma | C130: METROPOLIS | D130: 2021-10-28 | E130: 2713.95 | F130: 2725.93 | G130: 2690.02 | H130: 2666.08 | I130: 2630.17 | J130: 2749.87 | K130: 2785.78 | L130: 2809.72 | M130: 2761.85 | N130: 2702 | O130: 621400 | P130: 2.04%
A131: 121 | B131: Finance | C131: MFSL | D131: 2021-10-28 | E131: 1031.10 | F131: 1033.45 | G131: 1025.85 | H131: 1020.60 | I131: 1013.00 | J131: 1038.70 | K131: 1046.30 | L131: 1051.55 | M131: 1041.05 | N131: 1028.2 | O131: 2388100 | P131: -0.24%
A132: 122 | B132: Oil_Gas | C132: MGL | D132: 2021-10-28 | E132: 1081.60 | F132: 1081.70 | G132: 1074.90 | H132: 1068.20 | I132: 1061.40 | J132: 1088.40 | K132: 1095.20 | L132: 1101.90 | M132: 1088.5 | N132: 1075 | O132: 3793200 | P132: 2.85%
A133: 123 | B133: Technology | C133: MINDTREE | D133: 2021-10-28 | E133: 4271.20 | F133: 4270.48 | G133: 4205.97 | H133: 4140.73 | I133: 4076.22 | J133: 4335.72 | K133: 4400.23 | L133: 4465.47 | M133: 4335 | N133: 4205.25 | O133: 2834400 | P133: -1.76%
A134: 124 | B134: Automobile | C134: MOTHERSUMI | D134: 2021-10-28 | E134: 236.95 | F134: 234.28 | G134: 227.97 | H134: 218.98 | I134: 212.67 | J134: 243.27 | K134: 249.58 | L134: 258.57 | M134: 240.6 | N134: 225.3 | O134: 32616500 | P134: 1.46%
A135: 125 | B135: Technology | C135: MPHASIS | D135: 2021-10-28 | E135: 3197.35 | F135: 3195.45 | G135: 3127.90 | H135: 3058.45 | I135: 2990.90 | J135: 3264.90 | K135: 3332.45 | L135: 3401.90 | M135: 3263 | N135: 3126 | O135: 2314975 | P135: -1.72%
A136: 126 | B136: Automobile | C136: MRF | D136: 2021-10-28 | E136: 81646.50 | F136: 80802.17 | G136: 79804.33 | H136: 77962.17 | I136: 76964.33 | J136: 82644.33 | K136: 83642.17 | L136: 85484.33 | M136: 81800 | N136: 78960 | O136: 52310 | P136: -3.11%
A137: 127 | B137: Finance | C137: MUTHOOTFIN | D137: 2021-10-28 | E137: 1549.40 | F137: 1551.28 | G137: 1505.22 | H137: 1461.03 | I137: 1414.97 | J137: 1595.47 | K137: 1641.53 | L137: 1685.72 | M137: 1597.35 | N137: 1507.1 | O137: 4005000 | P137: 6.08%
A138: 128 | B138: Others | C138: NAM-INDIA | D138: 2021-10-28 | E138: 444.45 | F138: 445.05 | G138: 441.35 | H138: 438.25 | I138: 434.55 | J138: 448.15 | K138: 451.85 | L138: 454.95 | M138: 448.75 | N138: 441.95 | O138: 2723200 | P138: 2.47%
A139: 129 | B139: Metals | C139: NATIONALUM | D139: 2021-10-28 | E139: 96.80 | F139: 98.13 | G139: 95.27 | H139: 93.73 | I139: 90.87 | J139: 99.67 | K139: 102.53 | L139: 104.07 | M139: 101 | N139: 96.6 | O139: 109973000 | P139: -1.18%
A140: 130 | B140: Others | C140: NAUKRI | D140: 2021-10-28 | E140: 6621.25 | F140: 6603.33 | G140: 6566.77 | H140: 6512.28 | I140: 6475.72 | J140: 6657.82 | K140: 6694.38 | L140: 6748.87 | M140: 6639.9 | N140: 6548.85 | O140: 959375 | P140: 8.87%
A141: 131 | B141: Chemical | C141: NAVINFLUOR | D141: 2021-10-28 | E141: 3982.00 | F141: 4012.33 | G141: 3931.67 | H141: 3881.33 | I141: 3800.67 | J141: 4062.67 | K141: 4143.33 | L141: 4193.67 | M141: 4093 | N141: 3962 | O141: 711900 | P141: -0.57%
A142: 132 | B142: FMCG | C142: NESTLEIND | D142: 2021-10-28 | E142: 19149.25 | F142: 19186.75 | G142: 19021.60 | H142: 18893.95 | I142: 18728.80 | J142: 19314.40 | K142: 19479.55 | L142: 19607.20 | M142: 19351.9 | N142: 19059.1 | O142: 297650 | P142: 7.30%
A143: 133 | B143: Metals | C143: NMDC | D143: 2021-10-28 | E143: 145.05 | F143: 145.27 | G143: 143.88 | H143: 142.72 | I143: 141.33 | J143: 146.43 | K143: 147.82 | L143: 148.98 | M143: 146.65 | N143: 144.1 | O143: 116003800 | P143: 0.58%
A144: 134 | B144: Power | C144: NTPC | D144: 2021-10-28 | E144: 143.15 | F144: 143.83 | G144: 141.97 | H144: 140.78 | I144: 138.92 | J144: 145.02 | K144: 146.88 | L144: 148.07 | M144: 145.7 | N144: 142.65 | O144: 56800500 | P144: 1.76%
A145: 135 | B145: Realty | C145: OBEROIRLTY | D145: 2021-10-28 | E145: 941.85 | F145: 923.33 | G145: 890.57 | H145: 839.28 | I145: 806.52 | J145: 974.62 | K145: 1007.38 | L145: 1058.67 | M145: 956.1 | N145: 872.05 | O145: 1253700 | P145: 8.41%
A146: 136 | B146: Technology | C146: OFSS | D146: 2021-10-28 | E146: 4752.70 | F146: 4725.42 | G146: 4657.33 | H146: 4561.97 | I146: 4493.88 | J146: 4820.78 | K146: 4888.87 | L146: 4984.23 | M146: 4793.5 | N146: 4630.05 | O146: 703500 | P146: 0.45%
A147: 137 | B147: Oil_Gas | C147: ONGC | D147: 2021-10-28 | E147: 161.10 | F147: 163.62 | G147: 157.23 | H147: 153.37 | I147: 146.98 | J147: 167.48 | K147: 173.87 | L147: 177.73 | M147: 170 | N147: 159.75 | O147: 55155100 | P147: -12.12%
A148: 138 | B148: Textile | C148: PAGEIND | D148: 2021-10-28 | E148: 37209.30 | F148: 36234.40 | G148: 35123.90 | H148: 33038.50 | I148: 31928.00 | J148: 38319.80 | K148: 39430.30 | L148: 41515.70 | M148: 37344.9 | N148: 34149 | O148: 102870 | P148: 0.50%
A149: 139 | B149: Pharma | C149: PEL | D149: 2021-10-28 | E149: 2897.15 | F149: 2929.88 | G149: 2829.77 | H149: 2762.38 | I149: 2662.27 | J149: 2997.27 | K149: 3097.38 | L149: 3164.77 | M149: 3030 | N149: 2862.5 | O149: 4676100 | P149: 6.24%
A150: 140 | B150: Technology | C150: PERSISTENT | D150: 2021-10-28 | E150: 3822.55 | F150: 3806.97 | G150: 3769.13 | H150: 3715.72 | I150: 3677.88 | J150: 3860.38 | K150: 3898.22 | L150: 3951.63 | M150: 3844.8 | N150: 3753.55 | O150: 217800 | P150: 9.83%
A151: 141 | B151: Oil_Gas | C151: PETRONET | D151: 2021-10-28 | E151: 231.55 | F151: 231.65 | G151: 230.10 | H151: 228.65 | I151: 227.10 | J151: 233.10 | K151: 234.65 | L151: 236.10 | M151: 233.2 | N151: 230.2 | O151: 25761000 | P151: -1.03%
A152: 142 | B152: Finance | C152: PFC | D152: 2021-10-28 | E152: 141.50 | F152: 141.72 | G152: 140.18 | H152: 138.87 | I152: 137.33 | J152: 143.03 | K152: 144.57 | L152: 145.88 | M152: 143.25 | N152: 140.4 | O152: 26728200 | P152: -0.21%
A153: 143 | B153: Pharma | C153: PFIZER | D153: 2021-10-28 | E153: 5593.10 | F153: 5610.72 | G153: 5567.48 | H153: 5541.87 | I153: 5498.63 | J153: 5636.33 | K153: 5679.57 | L153: 5705.18 | M153: 5653.95 | N153: 5585.1 | O153: 221125 | P153: -0.17%
A154: 144 | B154: FMCG | C154: PIDILITIND | D154: 2021-10-28 | E154: 2469.30 | F154: 2460.08 | G154: 2437.22 | H154: 2405.13 | I154: 2382.27 | J154: 2492.17 | K154: 2515.03 | L154: 2547.12 | M154: 2482.95 | N154: 2428 | O154: 2446500 | P154: -0.45%
A155: 145 | B155: Chemical | C155: PIIND | D155: 2021-10-28 | E155: 3249.15 | F155: 3234.05 | G155: 3203.10 | H155: 3157.05 | I155: 3126.10 | J155: 3280.10 | K155: 3311.05 | L155: 3357.10 | M155: 3265 | N155: 3188 | O155: 1486750 | P155: 0.44%
A156: 146 | B156: Banking | C156: PNB | D156: 2021-10-28 | E156: 39.95 | F156: 40.13 | G156: 39.67 | H156: 39.38 | I156: 38.92 | J156: 40.42 | K156: 40.88 | L156: 41.17 | M156: 40.6 | N156: 39.85 | O156: 321488000 | P156: -2.13%
A157: 147 | B157: Others | C157: POLYCAB | D157: 2021-10-28 | E157: 2428.10 | F157: 2425.37 | G157: 2402.73 | H157: 2377.37 | I157: 2354.73 | J157: 2450.73 | K157: 2473.37 | L157: 2498.73 | M157: 2448 | N157: 2400 | O157: 898800 | P157: 2.74%
A158: 148 | B158: Power | C158: POWERGRID | D158: 2021-10-28 | E158: 188.35 | F158: 189.03 | G158: 186.82 | H158: 185.28 | I158: 183.07 | J158: 190.57 | K158: 192.78 | L158: 194.32 | M158: 191.25 | N158: 187.5 | O158: 35571110 | P158: 1.85%
A159: 149 | B159: Media | C159: PVR | D159: 2021-10-28 | E159: 1686.95 | F159: 1677.05 | G159: 1659.30 | H159: 1631.65 | I159: 1613.90 | J159: 1704.70 | K159: 1722.45 | L159: 1750.10 | M159: 1694.8 | N159: 1649.4 | O159: 3070408 | P159: 0.75%
A160: 150 | B160: Cement | C160: RAMCOCEM | D160: 2021-10-28 | E160: 1019.75 | F160: 1017.38 | G160: 1008.77 | H160: 997.78 | I160: 989.17 | J160: 1028.37 | K160: 1036.98 | L160: 1047.97 | M160: 1026 | N160: 1006.4 | O160: 2091000 | P160: 2.16%
A161: 151 | B161: Banking | C161: RBLBANK | D161: 2021-10-28 | E161: 190.40 | F161: 189.68 | G161: 186.97 | H161: 183.53 | I161: 180.82 | J161: 193.12 | K161: 195.83 | L161: 199.27 | M161: 192.4 | N161: 186.25 | O161: 25018300 | P161: -4.11%
A162: 152 | B162: Power | C162: RECLTD | D162: 2021-10-28 | E162: 158.75 | F162: 159.10 | G162: 157.40 | H162: 156.05 | I162: 154.35 | J162: 160.45 | K162: 162.15 | L162: 163.50 | M162: 160.8 | N162: 157.75 | O162: 24720000 | P162: 2.41%
A163: 153 | B163: Oil_Gas | C163: RELIANCE | D163: 2021-10-28 | E163: 2578.80 | F163: 2584.58 | G163: 2566.32 | H163: 2553.83 | I163: 2535.57 | J163: 2597.07 | K163: 2615.33 | L163: 2627.82 | M163: 2602.85 | N163: 2572.1 | O163: 29488000 | P163: 0.39%
A164: 154 | B164: Metals | C164: SAIL | D164: 2021-10-28 | E164: 116.80 | F164: 116.73 | G164: 115.67 | H164: 114.53 | I164: 113.47 | J164: 117.87 | K164: 118.93 | L164: 120.07 | M164: 117.8 | N164: 115.6 | O164: 191710000 | P164: -2.23%
A165: 155 | B165: Finance | C165: SBILIFE | D165: 2021-10-28 | E165: 1218.60 | F165: 1223.55 | G165: 1207.70 | H165: 1196.80 | I165: 1180.95 | J165: 1234.45 | K165: 1250.30 | L165: 1261.20 | M165: 1239.4 | N165: 1212.65 | O165: 8854500 | P165: 1.81%
A166: 156 | B166: Banking | C166: SBIN | D166: 2021-10-28 | E166: 459.65 | F166: 461.12 | G166: 457.08 | H166: 454.52 | I166: 450.48 | J166: 463.68 | K166: 467.72 | L166: 470.28 | M166: 465.15 | N166: 458.55 | O166: 87114000 | P166: 1.87%
A167: 157 | B167: Cement | C167: SHREECEM | D167: 2021-10-28 | E167: 28190.00 | F167: 28224.05 | G167: 27966.95 | H167: 27743.90 | I167: 27486.80 | J167: 28447.10 | K167: 28704.20 | L167: 28927.25 | M167: 28481.15 | N167: 28001 | O167: 171425 | P167: 5.22%
A168: 158 | B168: Capital_Goods | C168: SIEMENS | D168: 2021-10-28 | E168: 2243.25 | F168: 2239.12 | G168: 2224.28 | H168: 2205.32 | I168: 2190.48 | J168: 2258.08 | K168: 2272.92 | L168: 2291.88 | M168: 2253.95 | N168: 2220.15 | O168: 1754500 | P168: -0.09%
A169: 159 | B169: Textile | C169: SRF | D169: 2021-10-28 | E169: 11626.30 | F169: 11613.07 | G169: 11488.23 | H169: 11350.17 | I169: 11225.33 | J169: 11751.13 | K169: 11875.97 | L169: 12014.03 | M169: 11737.9 | N169: 11475 | O169: 788875 | P169: -2.19%
A170: 160 | B170: Finance | C170: SRTRANSFIN | D170: 2021-10-28 | E170: 1346.00 | F170: 1337.93 | G170: 1325.87 | H170: 1305.73 | I170: 1293.67 | J170: 1358.07 | K170: 1370.13 | L170: 1390.27 | M170: 1350 | N170: 1317.8 | O170: 4341200 | P170: -4.30%
A171: 161 | B171: Pharma | C171: STAR | D171: 2021-10-28 | E171: 588.90 | F171: 587.52 | G171: 582.83 | H171: 576.77 | I171: 572.08 | J171: 593.58 | K171: 598.27 | L171: 604.33 | M171: 592.2 | N171: 581.45 | O171: 2930850 | P171: 2.65%
A172: 162 | B172: Pharma | C172: SUNPHARMA | D172: 2021-10-28 | E172: 824.90 | F172: 819.97 | G172: 811.43 | H172: 797.97 | I172: 789.43 | J172: 833.43 | K172: 841.97 | L172: 855.43 | M172: 828.5 | N172: 806.5 | O172: 34220200 | P172: 5.48%
A173: 163 | B173: Media | C173: SUNTV | D173: 2021-10-28 | E173: 545.15 | F173: 546.30 | G173: 538.60 | H173: 532.05 | I173: 524.35 | J173: 552.85 | K173: 560.55 | L173: 567.10 | M173: 554 | N173: 539.75 | O173: 13650000 | P173: 0.61%
A174: 164 | B174: Pharma | C174: SYNGENE | D174: 2021-10-28 | E174: 624.45 | F174: 624.32 | G174: 618.63 | H174: 612.82 | I174: 607.13 | J174: 630.13 | K174: 635.82 | L174: 641.63 | M174: 630 | N174: 618.5 | O174: 1791800 | P174: 0.67%
A175: 165 | B175: Chemical | C175: TATACHEM | D175: 2021-10-28 | E175: 962.90 | F175: 965.13 | G175: 952.97 | H175: 943.03 | I175: 930.87 | J175: 975.07 | K175: 987.23 | L175: 997.17 | M175: 977.3 | N175: 955.2 | O175: 12134000 | P175: 1.25%
A176: 166 | B176: FMCG | C176: TATACONSUM | D176: 2021-10-28 | E176: 825.55 | F176: 826.37 | G176: 821.18 | H176: 816.82 | I176: 811.63 | J176: 830.73 | K176: 835.92 | L176: 840.28 | M176: 831.55 | N176: 822 | O176: 12370050 | P176: -0.90%
A177: 167 | B177: Automobile | C177: TATAMOTORS | D177: 2021-10-28 | E177: 378.45 | F177: 366.77 | G177: 351.08 | H177: 323.72 | I177: 308.03 | J177: 394.13 | K177: 409.82 | L177: 437.18 | M177: 382.45 | N177: 339.4 | O177: 110770950 | P177: 15.73%
A178: 168 | B178: Power | C178: TATAPOWER | D178: 2021-10-28 | E178: 178.35 | F178: 179.98 | G178: 175.47 | H178: 172.58 | I178: 168.07 | J178: 182.87 | K178: 187.38 | L178: 190.27 | M178: 184.5 | N178: 177.1 | O178: 134838000 | P178: -0.39%
A179: 169 | B179: Metals | C179: TATASTEEL | D179: 2021-10-28 | E179: 1294.45 | F179: 1297.03 | G179: 1282.52 | H179: 1270.58 | I179: 1256.07 | J179: 1308.97 | K179: 1323.48 | L179: 1335.42 | M179: 1311.55 | N179: 1285.1 | O179: 47446150 | P179: -1.25%
A180: 170 | B180: Technology | C180: TCS | D180: 2021-10-28 | E180: 3885.90 | F180: 3870.60 | G180: 3833.20 | H180: 3780.50 | I180: 3743.10 | J180: 3923.30 | K180: 3960.70 | L180: 4013.40 | M180: 3908 | N180: 3817.9 | O180: 8345400 | P180: -3.39%
A181: 171 | B181: Technology | C181: TECHM | D181: 2021-10-28 | E181: 1419.45 | F181: 1410.28 | G181: 1391.87 | H181: 1364.28 | I181: 1345.87 | J181: 1437.87 | K181: 1456.28 | L181: 1483.87 | M181: 1428.7 | N181: 1382.7 | O181: 12214200 | P181: -0.57%
A182: 172 | B182: FMCG | C182: TITAN | D182: 2021-10-28 | E182: 2378.65 | F182: 2332.40 | G182: 2278.05 | H182: 2177.45 | I182: 2123.10 | J182: 2433.00 | K182: 2487.35 | L182: 2587.95 | M182: 2386.75 | N182: 2231.8 | O182: 5640000 | P182: -1.39%
A183: 173 | B183: Pharma | C183: TORNTPHARM | D183: 2021-10-28 | E183: 3086.85 | F183: 3088.98 | G183: 3069.02 | H183: 3051.18 | I183: 3031.22 | J183: 3106.82 | K183: 3126.78 | L183: 3144.62 | M183: 3108.95 | N183: 3071.15 | O183: 660500 | P183: 2.28%
A184: 174 | B184: Power | C184: TORNTPOWER | D184: 2021-10-28 | E184: 511.05 | F184: 511.95 | G184: 506.65 | H184: 502.25 | I184: 496.95 | J184: 516.35 | K184: 521.65 | L184: 526.05 | M184: 517.25 | N184: 507.55 | O184: 4122000 | P184: 0.33%
A185: 175 | B185: Others | C185: TRENT | D185: 2021-10-28 | E185: 1112.55 | F185: 1101.00 | G185: 1071.55 | H185: 1030.55 | I185: 1001.10 | J185: 1142.00 | K185: 1171.45 | L185: 1212.45 | M185: 1130.45 | N185: 1060 | O185: 1820475 | P185: 7.91%
A186: 176 | B186: Automobile | C186: TVSMOTOR | D186: 2021-10-28 | E186: 560.50 | F186: 557.42 | G186: 549.08 | H186: 537.67 | I186: 529.33 | J186: 568.83 | K186: 577.17 | L186: 588.58 | M186: 565.75 | N186: 546 | O186: 8031800 | P186: 1.85%
A187: 177 | B187: FMCG | C187: UBL | D187: 2021-10-28 | E187: 1650.35 | F187: 1633.57 | G187: 1602.53 | H187: 1554.72 | I187: 1523.68 | J187: 1681.38 | K187: 1712.42 | L187: 1760.23 | M187: 1664.6 | N187: 1585.75 | O187: 1489600 | P187: -2.96%
A188: 178 | B188: Cement | C188: ULTRACEMCO | D188: 2021-10-28 | E188: 7389.10 | F188: 7405.78 | G188: 7331.37 | H188: 7273.63 | I188: 7199.22 | J188: 7463.52 | K188: 7537.93 | L188: 7595.67 | M188: 7480.2 | N188: 7348.05 | O188: 2031800 | P188: 14.44%
A189: 179 | B189: Chemical | C189: UPL | D189: 2021-10-28 | E189: 729.65 | F189: 731.62 | G189: 723.83 | H189: 718.02 | I189: 710.23 | J189: 737.43 | K189: 745.22 | L189: 751.03 | M189: 739.4 | N189: 725.8 | O189: 27695200 | P189: 2.97%
A190: 180 | B190: Metals | C190: VEDL | D190: 2021-10-28 | E190: 291.70 | F190: 292.73 | G190: 289.62 | H190: 287.53 | I190: 284.42 | J190: 294.82 | K190: 297.93 | L190: 300.02 | M190: 295.85 | N190: 290.65 | O190: 116246900 | P190: 0.76%
A191: 181 | B191: Capital_Goods | C191: VOLTAS | D191: 2021-10-28 | E191: 1286.45 | F191: 1271.05 | G191: 1248.40 | H191: 1210.35 | I191: 1187.70 | J191: 1309.10 | K191: 1331.75 | L191: 1369.80 | M191: 1293.7 | N191: 1233 | O191: 2737000 | P191: 4.81%
A192: 182 | B192: Technology | C192: WIPRO | D192: 2021-10-28 | E192: 645.65 | F192: 644.75 | G192: 638.05 | H192: 630.45 | I192: 623.75 | J192: 652.35 | K192: 659.05 | L192: 666.65 | M192: 651.45 | N192: 637.15 | O192: 35982400 | P192: -0.97%
A193: 183 | B193: Media | C193: ZEEL | D193: 2021-10-28 | E193: 294.00 | F193: 295.02 | G193: 291.68 | H193: 289.37 | I193: 286.03 | J193: 297.33 | K193: 300.67 | L193: 302.98 | M193: 298.35 | N193: 292.7 | O193: 50082000 | P193: 0.38%
A203: Pivot Point: This is trigger point for intra day buy/sell based on the price range of the previous day
A204: As per the tool,the trader should take BUY position just above Pivot and keep the stop loss of pivot point and the first target would be Resistance 1(R1)
A205: If R1 is crossed then R2 becomes the next target with stop loss of at R1
A206: Similarly if price goes below pivot point then the trader should sell and keep a stop loss of pivot point and the first target would be S1
A207: If S1 is crossed then S2 becomes the next target with stop loss of at S1
A209: Disclaimer:
A210: This document has been prepared by the Retail Research Desk of Asit C Mehta
A211: Investment Intermediates Ltd. and is meant for use of the recipient only
A212: and is not for circulation. This document is not to be reported or
A213: copied or made available to others. It should not be considered to be
A214: taken as an offer to sell or a solicitation to buy any security. The
A215: information contained herein is from sources believed reliable. We do
A216: not represent that it is accurate or complete and it should not be
... 2 more rows

Sheet Cash Intra
M5: Back to Main Page
A6: FOR INTRA DAY TRADING | K6: =Main!B10 -> 2021-10-08
A8: Sr.no | C8: CLOSE RATE | D8: Pivot Point | E8: Supports | H8: Resistances
E9: S1 | F9: S2 | G9: S3 | H9: R1 | I9: R2 | J9: R3 | K9: HIGH | L9: LOW | M9: Total Trade Quanity in Lakhs
A10: 1 | B10: Nifty 50 | C10: 17790.35 | D10: 17803.90 | E10: 17750.25 | F10: 17710.15 | G10: 17656.50 | H10: 17844.00 | I10: 17897.65 | J10: 17937.75 | K10: 17857.55 | L10: 17763.8
A11: 2 | B11: Nifty Bank | C11: 37753.2 | D11: 37775.70 | E11: 37627.75 | F11: 37502.30 | G11: 37354.35 | H11: 37901.15 | I11: 38049.10 | J11: 38174.55 | K11: 37923.65 | L11: 37650.25
A12: 3 | B12: Nifty CPSE | C12: 2420.4 | D12: 2436.20 | E12: 2400.40 | F12: 2380.40 | G12: 2344.60 | H12: 2456.20 | I12: 2492.00 | J12: 2512.00 | K12: 2472 | L12: 2416.2
A13: 4 | B13: Nifty Infra | C13: 5087.7 | D13: 5097.32 | E13: 5074.68 | F13: 5061.67 | G13: 5039.03 | H13: 5110.33 | I13: 5132.97 | J13: 5145.98 | K13: 5119.95 | L13: 5084.3
A14: 5 | B14: Nifty IT | C14: 35703.85 | D14: 35613.70 | E14: 35323.45 | F14: 34943.05 | G14: 34652.80 | H14: 35994.10 | I14: 36284.35 | J14: 36664.75 | K14: 35903.95 | L14: 35233.3
A15: 6 | B15: Nifty PSE | C15: 4224.4 | D15: 4240.42 | E15: 4199.93 | F15: 4175.47 | G15: 4134.98 | H15: 4264.88 | I15: 4305.37 | J15: 4329.83 | K15: 4280.9 | L15: 4215.95
A16: 7 | B16: Nifty Midcap 50 | C16: 8553.45 | D16: 8519.95 | E16: 8464.30 | F16: 8375.15 | G16: 8319.50 | H16: 8609.10 | I16: 8664.75 | J16: 8753.90 | K16: 8575.6 | L16: 8430.8
A17: 8 | B17: ACC | C17: 2265.85 | D17: 2252.38 | E17: 2228.77 | F17: 2191.68 | G17: 2168.07 | H17: 2289.47 | I17: 2313.08 | J17: 2350.17 | K17: 2276 | L17: 2215.3 | M17: 3.18393
A18: 9 | B18: AUBANK | C18: 1205.9 | D18: 1208.98 | E18: 1195.92 | F18: 1185.93 | G18: 1172.87 | H18: 1218.97 | I18: 1232.03 | J18: 1242.02 | K18: 1222.05 | L18: 1199 | M18: 8.1862
A19: 10 | B19: AARTIIND | C19: 1080.7 | D19: 1086.92 | E19: 1058.83 | F19: 1036.97 | G19: 1008.88 | H19: 1108.78 | I19: 1136.87 | J19: 1158.73 | K19: 1115 | L19: 1065.05 | M19: 18.18149
A20: 11 | B20: ABBOTINDIA | C20: 21741.2 | D20: 22073.33 | E20: 21277.87 | F20: 20814.53 | G20: 20019.07 | H20: 22536.67 | I20: 23332.13 | J20: 23795.47 | K20: 22868.8 | L20: 21610 | M20: 0.45763
A21: 12 | B21: ADANIENT | C21: 1520.75 | D21: 1515.50 | E21: 1495.25 | F21: 1469.75 | G21: 1449.50 | H21: 1541.00 | I21: 1561.25 | J21: 1586.75 | K21: 1535.75 | L21: 1490 | M21: 19.19106
A22: 13 | B22: ADANIGREEN | C22: 1205.65 | D22: 1214.92 | E22: 1192.83 | F22: 1180.02 | G22: 1157.93 | H22: 1227.73 | I22: 1249.82 | J22: 1262.63 | K22: 1237 | L22: 1202.1 | M22: 1.79544
A23: 14 | B23: ADANIPORTS | C23: 736.15 | D23: 733.83 | E23: 728.87 | F23: 721.58 | G23: 716.62 | H23: 741.12 | I23: 746.08 | J23: 753.37 | K23: 738.8 | L23: 726.55 | M23: 32.37419
A24: 15 | B24: ATGL | C24: 1425.2 | D24: 1416.67 | E24: 1402.53 | F24: 1379.87 | G24: 1365.73 | H24: 1439.33 | I24: 1453.47 | J24: 1476.13 | K24: 1430.8 | L24: 1394 | M24: 1.86415
A25: 16 | B25: ADANITRANS | C25: 1764.3 | D25: 1764.18 | E25: 1729.37 | F25: 1694.43 | G25: 1659.62 | H25: 1799.12 | I25: 1833.93 | J25: 1868.87 | K25: 1799 | L25: 1729.25 | M25: 1.0332
A26: 17 | B26: ABCAPITAL | C26: 110.1 | D26: 110.72 | E26: 108.98 | F26: 107.87 | G26: 106.13 | H26: 111.83 | I26: 113.57 | J26: 114.68 | K26: 112.45 | L26: 109.6 | M26: 24.99118
A27: 18 | B27: ABFRL | C27: 258.9 | D27: 254.53 | E27: 247.37 | F27: 235.83 | G27: 228.67 | H27: 266.07 | I27: 273.23 | J27: 284.77 | K27: 261.7 | L27: 243 | M27: 93.8341
A28: 19 | B28: AJANTPHARM | C28: 2301.4 | D28: 2293.47 | E28: 2256.93 | F28: 2212.47 | G28: 2175.93 | H28: 2337.93 | I28: 2374.47 | J28: 2418.93 | K28: 2330 | L28: 2249 | M28: 0.53376
A29: 20 | B29: APLLTD | C29: 777.9 | D29: 779.42 | E29: 773.83 | F29: 769.77 | G29: 764.18 | H29: 783.48 | I29: 789.07 | J29: 793.13 | K29: 785 | L29: 775.35 | M29: 2.14567
A30: 21 | B30: ALKEM | C30: 3909.85 | D30: 3931.20 | E30: 3868.65 | F30: 3827.45 | G30: 3764.90 | H30: 3972.40 | I30: 4034.95 | J30: 4076.15 | K30: 3993.75 | L30: 3890 | M30: 3.44171
A31: 22 | B31: AMARAJABAT | C31: 758.7 | D31: 758.50 | E31: 752.00 | F31: 745.30 | G31: 738.80 | H31: 765.20 | I31: 771.70 | J31: 778.40 | K31: 765 | L31: 751.8 | M31: 9.32021
A32: 23 | B32: AMBUJACEM | C32: 402.9 | D32: 401.63 | E32: 398.57 | F32: 394.23 | G32: 391.17 | H32: 405.97 | I32: 409.03 | J32: 413.37 | K32: 404.7 | L32: 397.3 | M32: 55.08787
A33: 24 | B33: APOLLOHOSP | C33: 4428.3 | D33: 4425.77 | E33: 4383.53 | F33: 4338.77 | G33: 4296.53 | H33: 4470.53 | I33: 4512.77 | J33: 4557.53 | K33: 4468 | L33: 4381 | M33: 2.76775
A34: 25 | B34: APOLLOTYRE | C34: 228.15 | D34: 228.27 | E34: 223.53 | F34: 218.92 | G34: 214.18 | H34: 232.88 | I34: 237.62 | J34: 242.23 | K34: 233 | L34: 223.65 | M34: 64.17957
A35: 26 | B35: ASHOKLEY | C35: 135.85 | D35: 135.18 | E35: 131.87 | F35: 127.88 | G35: 124.57 | H35: 139.17 | I35: 142.48 | J35: 146.47 | K35: 138.5 | L35: 131.2 | M35: 428.82284
A36: 27 | B36: ASIANPAINT | C36: 3290.85 | D36: 3276.28 | E36: 3234.57 | F36: 3178.28 | G36: 3136.57 | H36: 3332.57 | I36: 3374.28 | J36: 3430.57 | K36: 3318 | L36: 3220 | M36: 11.77283
A37: 28 | B37: AUROPHARMA | C37: 719.6 | D37: 720.78 | E37: 715.17 | F37: 710.73 | G37: 705.12 | H37: 725.22 | I37: 730.83 | J37: 735.27 | K37: 726.4 | L37: 716.35 | M37: 15.14665
A38: 29 | B38: DMART | C38: 4311.7 | D38: 4299.90 | E38: 4262.80 | F38: 4213.90 | G38: 4176.80 | H38: 4348.80 | I38: 4385.90 | J38: 4434.80 | K38: 4337 | L38: 4251 | M38: 5.70321
A39: 30 | B39: AXISBANK | C39: 777.1 | D39: 780.45 | E39: 770.75 | F39: 764.40 | G39: 754.70 | H39: 786.80 | I39: 796.50 | J39: 802.85 | K39: 790.15 | L39: 774.1 | M39: 66.22698
A40: 31 | B40: BAJAJ-AUTO | C40: 3828.55 | D40: 3827.40 | E40: 3786.15 | F40: 3743.75 | G40: 3702.50 | H40: 3869.80 | I40: 3911.05 | J40: 3953.45 | K40: 3868.65 | L40: 3785 | M40: 3.43916
A41: 32 | B41: BAJFINANCE | C41: 7747.9 | D41: 7790.30 | E41: 7695.60 | F41: 7643.30 | G41: 7548.60 | H41: 7842.60 | I41: 7937.30 | J41: 7989.60 | K41: 7885 | L41: 7738 | M41: 9.4055
A42: 33 | B42: BAJAJFINSV | C42: 17470.25 | D42: 17591.75 | E42: 17303.50 | F42: 17136.75 | G42: 16848.50 | H42: 17758.50 | I42: 18046.75 | J42: 18213.50 | K42: 17880 | L42: 17425 | M42: 2.241
A43: 34 | B43: BAJAJHLDNG | C43: 4741 | D43: 4766.33 | E43: 4694.67 | F43: 4648.33 | G43: 4576.67 | H43: 4812.67 | I43: 4884.33 | J43: 4930.67 | K43: 4838 | L43: 4720 | M43: 0.22876
A44: 35 | B44: BALKRISIND | C44: 2551.65 | D44: 2545.55 | E44: 2523.10 | F44: 2494.55 | G44: 2472.10 | H44: 2574.10 | I44: 2596.55 | J44: 2625.10 | K44: 2568 | L44: 2517 | M44: 7.5592
A45: 36 | B45: BANDHANBNK | C45: 328.55 | D45: 322.50 | E45: 314.30 | F45: 300.05 | G45: 291.85 | H45: 336.75 | I45: 344.95 | J45: 359.20 | K45: 330.7 | L45: 308.25 | M45: 220.13345
A46: 37 | B46: BANKBARODA | C46: 84 | D46: 83.98 | E46: 83.12 | F46: 82.23 | G46: 81.37 | H46: 84.87 | I46: 85.73 | J46: 86.62 | K46: 84.85 | L46: 83.1 | M46: 252.29829
A47: 38 | B47: BANKINDIA | C47: 56.4 | D47: 56.62 | E47: 56.03 | F47: 55.67 | G47: 55.08 | H47: 56.98 | I47: 57.57 | J47: 57.93 | K47: 57.2 | L47: 56.25 | M47: 38.60147
A48: 39 | B48: BATAINDIA | C48: 1944.4 | D48: 1909.88 | E48: 1866.87 | F48: 1789.33 | G48: 1746.32 | H48: 1987.42 | I48: 2030.43 | J48: 2107.97 | K48: 1952.9 | L48: 1832.35 | M48: 15.50818
A49: 40 | B49: BERGEPAINT | C49: 829.55 | D49: 830.12 | E49: 820.93 | F49: 812.32 | G49: 803.13 | H49: 838.73 | I49: 847.92 | J49: 856.53 | K49: 839.3 | L49: 821.5 | M49: 5.0344
A50: 41 | B50: BEL | C50: 203.1 | D50: 202.47 | E50: 201.13 | F50: 199.17 | G50: 197.83 | H50: 204.43 | I50: 205.77 | J50: 207.73 | K50: 203.8 | L50: 200.5 | M50: 25.29141
A51: 42 | B51: BHARATFORG | C51: 741.5 | D51: 739.83 | E51: 729.52 | F51: 717.53 | G51: 707.22 | H51: 751.82 | I51: 762.13 | J51: 774.12 | K51: 750.15 | L51: 727.85 | M51: 39.25051
A52: 43 | B52: BHEL | C52: 63.25 | D52: 63.73 | E52: 62.62 | F52: 61.98 | G52: 60.87 | H52: 64.37 | I52: 65.48 | J52: 66.12 | K52: 64.85 | L52: 63.1 | M52: 300.79052
A53: 44 | B53: BPCL | C53: 449.2 | D53: 449.73 | E53: 447.47 | F53: 445.73 | G53: 443.47 | H53: 451.47 | I53: 453.73 | J53: 455.47 | K53: 452 | L53: 448 | M53: 37.22557
A54: 45 | B54: BHARTIARTL | C54: 692.5 | D54: 695.33 | E54: 688.47 | F54: 684.43 | G54: 677.57 | H54: 699.37 | I54: 706.23 | J54: 710.27 | K54: 702.2 | L54: 691.3 | M54: 81.2159
A55: 46 | B55: BIOCON | C55: 359.75 | D55: 359.60 | E55: 357.35 | F55: 354.95 | G55: 352.70 | H55: 362.00 | I55: 364.25 | J55: 366.65 | K55: 361.85 | L55: 357.2 | M55: 10.40559
A56: 47 | B56: BBTC | C56: 1157.45 | D56: 1161.42 | E56: 1142.93 | F56: 1128.42 | G56: 1109.93 | H56: 1175.93 | I56: 1194.42 | J56: 1208.93 | K56: 1179.9 | L56: 1146.9 | M56: 0.4709
A57: 48 | B57: BOSCHLTD | C57: 17513.4 | D57: 17412.55 | E57: 17150.55 | F57: 16787.70 | G57: 16525.70 | H57: 17775.40 | I57: 18037.40 | J57: 18400.25 | K57: 17674.55 | L57: 17049.7 | M57: 2.1287
A58: 49 | B58: BRITANNIA | C58: 3900.6 | D58: 3913.90 | E58: 3864.15 | F58: 3827.70 | G58: 3777.95 | H58: 3950.35 | I58: 4000.10 | J58: 4036.55 | K58: 3963.65 | L58: 3877.45 | M58: 1.87556
A59: 50 | B59: CESC | C59: 89.25 | D59: 90.35 | E59: 87.60 | F59: 85.95 | G59: 83.20 | H59: 92.00 | I59: 94.75 | J59: 96.40 | K59: 93.1 | L59: 88.7 | M59: 59.44727
A60: 51 | B60: CADILAHC | C60: 549.75 | D60: 552.13 | E60: 546.52 | F60: 543.28 | G60: 537.67 | H60: 555.37 | I60: 560.98 | J60: 564.22 | K60: 557.75 | L60: 548.9 | M60: 18.5257
A61: 52 | B61: CANBK | C61: 174.85 | D61: 175.32 | E61: 173.13 | F61: 171.42 | G61: 169.23 | H61: 177.03 | I61: 179.22 | J61: 180.93 | K61: 177.5 | L61: 173.6 | M61: 117.54552
A62: 53 | B62: CASTROLIND | C62: 144.35 | D62: 145.05 | E62: 142.30 | F62: 140.25 | G62: 137.50 | H62: 147.10 | I62: 149.85 | J62: 151.90 | K62: 147.8 | L62: 143 | M62: 12.26197
A63: 54 | B63: CHOLAFIN | C63: 583.85 | D63: 577.82 | E63: 569.08 | F63: 554.32 | G63: 545.58 | H63: 592.58 | I63: 601.32 | J63: 616.08 | K63: 586.55 | L63: 563.05 | M63: 25.92321
A64: 55 | B64: CIPLA | C64: 916.05 | D64: 912.10 | E64: 901.95 | F64: 887.85 | G64: 877.70 | H64: 926.20 | I64: 936.35 | J64: 950.45 | K64: 922.25 | L64: 898 | M64: 70.08049
A65: 56 | B65: CUB | C65: 160 | D65: 160.57 | E65: 158.73 | F65: 157.47 | G65: 155.63 | H65: 161.83 | I65: 163.67 | J65: 164.93 | K65: 162.4 | L65: 159.3 | M65: 17.79037
A66: 57 | B66: COALINDIA | C66: 190.7 | D66: 191.63 | E66: 188.32 | F66: 185.93 | G66: 182.62 | H66: 194.02 | I66: 197.33 | J66: 199.72 | K66: 194.95 | L66: 189.25 | M66: 165.17664
A67: 58 | B67: COFORGE | C67: 5448.95 | D67: 5427.00 | E67: 5355.00 | F67: 5261.05 | G67: 5189.05 | H67: 5520.95 | I67: 5592.95 | J67: 5686.90 | K67: 5499 | L67: 5333.05 | M67: 2.32968
A68: 59 | B68: COLPAL | C68: 1688.35 | D68: 1687.98 | E68: 1681.02 | F68: 1673.68 | G68: 1666.72 | H68: 1695.32 | I68: 1702.28 | J68: 1709.62 | K68: 1694.95 | L68: 1680.65 | M68: 1.66905
A69: 60 | B69: CONCOR | C69: 694.95 | D69: 697.13 | E69: 688.97 | F69: 682.98 | G69: 674.82 | H69: 703.12 | I69: 711.28 | J69: 717.27 | K69: 705.3 | L69: 691.15 | M69: 16.38029
A70: 61 | B70: COROMANDEL | C70: 857.8 | D70: 858.07 | E70: 841.23 | F70: 824.67 | G70: 807.83 | H70: 874.63 | I70: 891.47 | J70: 908.03 | K70: 874.9 | L70: 841.5 | M70: 14.52929
A71: 62 | B71: CROMPTON | C71: 478.9 | D71: 478.10 | E71: 473.25 | F71: 467.60 | G71: 462.75 | H71: 483.75 | I71: 488.60 | J71: 494.25 | K71: 482.95 | L71: 472.45 | M71: 6.29388
A72: 63 | B72: CUMMINSIND | C72: 896.9 | D72: 895.07 | E72: 887.43 | F72: 877.97 | G72: 870.33 | H72: 904.53 | I72: 912.17 | J72: 921.63 | K72: 902.7 | L72: 885.6 | M72: 9.78399
A73: 64 | B73: DLF | C73: 422.6 | D73: 421.88 | E73: 414.87 | F73: 407.13 | G73: 400.12 | H73: 429.62 | I73: 436.63 | J73: 444.37 | K73: 428.9 | L73: 414.15 | M73: 168.71779
A74: 65 | B74: DABUR | C74: 615.15 | D74: 616.32 | E74: 613.23 | F74: 611.32 | G74: 608.23 | H74: 618.23 | I74: 621.32 | J74: 623.23 | K74: 619.4 | L74: 614.4 | M74: 12.28502
A75: 66 | B75: DALBHARAT | C75: 2093 | D75: 2094.48 | E75: 2064.32 | F75: 2035.63 | G75: 2005.47 | H75: 2123.17 | I75: 2153.33 | J75: 2182.02 | K75: 2124.65 | L75: 2065.8 | M75: 2.47925
A76: 67 | B76: DEEPAKNTR | C76: 2868.4 | D76: 2881.23 | E76: 2819.22 | F76: 2770.03 | G76: 2708.02 | H76: 2930.42 | I76: 2992.43 | J76: 3041.62 | K76: 2943.25 | L76: 2832.05 | M76: 23.06692
A77: 68 | B77: DHANI | C77: 196.25 | D77: 196.07 | E77: 191.43 | F77: 186.62 | G77: 181.98 | H77: 200.88 | I77: 205.52 | J77: 210.33 | K77: 200.7 | L77: 191.25 | M77: 36.76043
A78: 69 | B78: DIVISLAB | C78: 5097.85 | D78: 5107.37 | E78: 5052.68 | F78: 5007.52 | G78: 4952.83 | H78: 5152.53 | I78: 5207.22 | J78: 5252.38 | K78: 5162.05 | L78: 5062.2 | M78: 3.14433
A79: 70 | B79: DIXON | C79: 4865.8 | D79: 4887.60 | E79: 4813.20 | F79: 4760.60 | G79: 4686.20 | H79: 4940.20 | I79: 5014.60 | J79: 5067.20 | K79: 4962 | L79: 4835 | M79: 2.88641
A80: 71 | B80: LALPATHLAB | C80: 3686.45 | D80: 3714.57 | E80: 3645.93 | F80: 3605.42 | G80: 3536.78 | H80: 3755.08 | I80: 3823.72 | J80: 3864.23 | K80: 3783.2 | L80: 3674.05 | M80: 2.01976
A81: 72 | B81: DRREDDY | C81: 4891.1 | D81: 4921.32 | E81: 4852.73 | F81: 4814.37 | G81: 4745.78 | H81: 4959.68 | I81: 5028.27 | J81: 5066.63 | K81: 4989.9 | L81: 4882.95 | M81: 3.43974
A82: 73 | B82: EICHERMOT | C82: 2820.95 | D82: 2808.65 | E82: 2758.40 | F82: 2695.85 | G82: 2645.60 | H82: 2871.20 | I82: 2921.45 | J82: 2984.00 | K82: 2858.9 | L82: 2746.1 | M82: 8.97524
A83: 74 | B83: EMAMILTD | C83: 545.55 | D83: 547.58 | E83: 539.82 | F83: 534.08 | G83: 526.32 | H83: 553.32 | I83: 561.08 | J83: 566.82 | K83: 555.35 | L83: 541.85 | M83: 10.20307
A84: 75 | B84: ENDURANCE | C84: 1605.45 | D84: 1615.82 | E84: 1582.63 | F84: 1559.82 | G84: 1526.63 | H84: 1638.63 | I84: 1671.82 | J84: 1694.63 | K84: 1649 | L84: 1593 | M84: 0.81325
A85: 76 | B85: ESCORTS | C85: 1514.65 | D85: 1498.03 | E85: 1476.07 | F85: 1437.48 | G85: 1415.52 | H85: 1536.62 | I85: 1558.58 | J85: 1597.17 | K85: 1520 | L85: 1459.45 | M85: 10.7994
A86: 77 | B86: EXIDEIND | C86: 184.2 | D86: 183.43 | E86: 181.07 | F86: 177.93 | G86: 175.57 | H86: 186.57 | I86: 188.93 | J86: 192.07 | K86: 185.8 | L86: 180.3 | M86: 74.75317
A87: 78 | B87: FEDERALBNK | C87: 85.45 | D87: 85.57 | E87: 84.68 | F87: 83.92 | G87: 83.03 | H87: 86.33 | I87: 87.22 | J87: 87.98 | K87: 86.45 | L87: 84.8 | M87: 117.19207
A88: 79 | B88: FORTIS | C88: 274.4 | D88: 276.20 | E88: 271.20 | F88: 268.00 | G88: 263.00 | H88: 279.40 | I88: 284.40 | J88: 287.60 | K88: 281.2 | L88: 273 | M88: 11.55868
A89: 80 | B89: GAIL | C89: 159.65 | D89: 162.35 | E89: 156.20 | F89: 152.75 | G89: 146.60 | H89: 165.80 | I89: 171.95 | J89: 175.40 | K89: 168.5 | L89: 158.9 | M89: 190.95386
A90: 81 | B90: GMRINFRA | C90: 39.9 | D90: 40.13 | E90: 39.32 | F90: 38.73 | G90: 37.92 | H90: 40.72 | I90: 41.53 | J90: 42.12 | K90: 40.95 | L90: 39.55 | M90: 197.82082
A91: 82 | B91: GLAND | C91: 3882.6 | D91: 3905.90 | E91: 3837.95 | F91: 3793.30 | G91: 3725.35 | H91: 3950.55 | I91: 4018.50 | J91: 4063.15 | K91: 3973.85 | L91: 3861.25 | M91: 1.21557
A92: 83 | B92: GLENMARK | C92: 517.35 | D92: 513.72 | E92: 508.93 | F92: 500.52 | G92: 495.73 | H92: 522.13 | I92: 526.92 | J92: 535.33 | K92: 518.5 | L92: 505.3 | M92: 10.43667
A93: 84 | B93: GODREJAGRO | C93: 629.65 | D93: 629.63 | E93: 624.42 | F93: 619.18 | G93: 613.97 | H93: 634.87 | I93: 640.08 | J93: 645.32 | K93: 634.85 | L93: 624.4 | M93: 0.9412
A94: 85 | B94: GODREJCP | C94: 1029 | D94: 1025.48 | E94: 1017.37 | F94: 1005.73 | G94: 997.62 | H94: 1037.12 | I94: 1045.23 | J94: 1056.87 | K94: 1033.6 | L94: 1013.85 | M94: 5.28402
A95: 86 | B95: GODREJIND | C95: 576.05 | D95: 573.60 | E95: 569.15 | F95: 562.25 | G95: 557.80 | H95: 580.50 | I95: 584.95 | J95: 591.85 | K95: 578.05 | L95: 566.7 | M95: 2.15077
A96: 87 | B96: GODREJPROP | C96: 2476.8 | D96: 2427.75 | E96: 2357.50 | F96: 2238.20 | G96: 2167.95 | H96: 2547.05 | I96: 2617.30 | J96: 2736.60 | K96: 2498 | L96: 2308.45 | M96: 38.23955
A97: 88 | B97: GRASIM | C97: 1592 | D97: 1603.00 | E97: 1579.00 | F97: 1566.00 | G97: 1542.00 | H97: 1616.00 | I97: 1640.00 | J97: 1653.00 | K97: 1627 | L97: 1590 | M97: 32.03275
A98: 89 | B98: GUJGASLTD | C98: 635.35 | D98: 633.35 | E98: 626.70 | F98: 618.05 | G98: 611.40 | H98: 642.00 | I98: 648.65 | J98: 657.30 | K98: 640 | L98: 624.7 | M98: 21.68577
A99: 90 | B99: GSPL | C99: 324.6 | D99: 324.67 | E99: 320.53 | F99: 316.47 | G99: 312.33 | H99: 328.73 | I99: 332.87 | J99: 336.93 | K99: 328.8 | L99: 320.6 | M99: 15.22537
A100: 91 | B100: HCLTECH | C100: 1306.3 | D100: 1302.73 | E100: 1287.62 | F100: 1268.93 | G100: 1253.82 | H100: 1321.42 | I100: 1336.53 | J100: 1355.22 | K100: 1317.85 | L100: 1284.05 | M100: 24.21641
A101: 92 | B101: HDFCAMC | C101: 2908.85 | D101: 2911.45 | E101: 2902.40 | F101: 2895.95 | G101: 2886.90 | H101: 2917.90 | I101: 2926.95 | J101: 2933.40 | K101: 2920.5 | L101: 2905 | M101: 2.88775
A102: 93 | B102: HDFCBANK | C102: 1610.5 | D102: 1615.07 | E102: 1602.43 | F102: 1594.37 | G102: 1581.73 | H102: 1623.13 | I102: 1635.77 | J102: 1643.83 | K102: 1627.7 | L102: 1607 | M102: 56.32862
A103: 94 | B103: HDFCLIFE | C103: 725.35 | D103: 725.67 | E103: 718.98 | F103: 712.62 | G103: 705.93 | H103: 732.03 | I103: 738.72 | J103: 745.08 | K103: 732.35 | L103: 719.3 | M103: 24.5397
A104: 95 | B104: HAVELLS | C104: 1394.2 | D104: 1392.48 | E104: 1376.97 | F104: 1359.73 | G104: 1344.22 | H104: 1409.72 | I104: 1425.23 | J104: 1442.47 | K104: 1408 | L104: 1375.25 | M104: 7.28717
A105: 96 | B105: HEROMOTOCO | C105: 2841.65 | D105: 2837.00 | E105: 2814.65 | F105: 2787.65 | G105: 2765.30 | H105: 2864.00 | I105: 2886.35 | J105: 2913.35 | K105: 2859.35 | L105: 2810 | M105: 5.52458
A106: 97 | B106: HINDALCO | C106: 477.5 | D106: 478.70 | E106: 471.80 | F106: 466.10 | G106: 459.20 | H106: 484.40 | I106: 491.30 | J106: 497.00 | K106: 485.6 | L106: 473 | M106: 97.74465
A107: 98 | B107: HAL | C107: 1357.15 | D107: 1366.67 | E107: 1343.48 | F107: 1329.82 | G107: 1306.63 | H107: 1380.33 | I107: 1403.52 | J107: 1417.18 | K107: 1389.85 | L107: 1353 | M107: 7.2088
A108: 99 | B108: HINDPETRO | C108: 319.5 | D108: 318.87 | E108: 314.03 | F108: 308.57 | G108: 303.73 | H108: 324.33 | I108: 329.17 | J108: 334.63 | K108: 323.7 | L108: 313.4 | M108: 65.736
A109: 100 | B109: HINDUNILVR | C109: 2669.4 | D109: 2679.88 | E109: 2655.52 | F109: 2641.63 | G109: 2617.27 | H109: 2693.77 | I109: 2718.13 | J109: 2732.02 | K109: 2704.25 | L109: 2666 | M109: 10.82816
A110: 101 | B110: HINDZINC | C110: 313.45 | D110: 314.07 | E110: 311.63 | F110: 309.82 | G110: 307.38 | H110: 315.88 | I110: 318.32 | J110: 320.13 | K110: 316.5 | L110: 312.25 | M110: 6.64318
A111: 102 | B111: HDFC | C111: 2727 | D111: 2741.52 | E111: 2708.08 | F111: 2689.17 | G111: 2655.73 | H111: 2760.43 | I111: 2793.87 | J111: 2812.78 | K111: 2774.95 | L111: 2722.6 | M111: 22.47842
A112: 103 | B112: ICICIBANK | C112: 702.2 | D112: 700.20 | E112: 695.45 | F112: 688.70 | G112: 683.95 | H112: 706.95 | I112: 711.70 | J112: 718.45 | K112: 704.95 | L112: 693.45 | M112: 100.41549
A113: 104 | B113: ICICIGI | C113: 1548.55 | D113: 1550.48 | E113: 1534.07 | F113: 1519.58 | G113: 1503.17 | H113: 1564.97 | I113: 1581.38 | J113: 1595.87 | K113: 1566.9 | L113: 1536 | M113: 5.76382
A114: 105 | B114: ICICIPRULI | C114: 681.65 | D114: 681.73 | E114: 676.47 | F114: 671.28 | G114: 666.02 | H114: 686.92 | I114: 692.18 | J114: 697.37 | K114: 687 | L114: 676.55 | M114: 5.77123
A115: 106 | B115: ISEC | C115: 758.7 | D115: 757.43 | E115: 748.87 | F115: 739.03 | G115: 730.47 | H115: 767.27 | I115: 775.83 | J115: 785.67 | K115: 766 | L115: 747.6 | M115: 3.44032
A116: 107 | B116: IDFCFIRSTB | C116: 47.8 | D116: 47.83 | E116: 47.27 | F116: 46.73 | G116: 46.17 | H116: 48.37 | I116: 48.93 | J116: 49.47 | K116: 48.4 | L116: 47.3 | M116: 228.43316
A117: 108 | B117: ITC | C117: 232.95 | D117: 233.40 | E117: 231.85 | F117: 230.75 | G117: 229.20 | H117: 234.50 | I117: 236.05 | J117: 237.15 | K117: 234.95 | L117: 232.3 | M117: 103.71535
A118: 109 | B118: IBULHSGFIN | C118: 243.3 | D118: 245.32 | E118: 240.63 | F118: 237.97 | G118: 233.28 | H118: 247.98 | I118: 252.67 | J118: 255.33 | K118: 250 | L118: 242.65 | M118: 112.08065
A119: 110 | B119: INDIAMART | C119: 8345.75 | D119: 8350.67 | E119: 8258.33 | F119: 8170.92 | G119: 8078.58 | H119: 8438.08 | I119: 8530.42 | J119: 8617.83 | K119: 8443 | L119: 8263.25 | M119: 0.68709
A120: 111 | B120: INDHOTEL | C120: 196.15 | D120: 194.02 | E120: 189.33 | F120: 182.52 | G120: 177.83 | H120: 200.83 | I120: 205.52 | J120: 212.33 | K120: 198.7 | L120: 187.2 | M120: 157.35451
A121: 112 | B121: IOC | C121: 132.25 | D121: 131.67 | E121: 130.43 | F121: 128.62 | G121: 127.38 | H121: 133.48 | I121: 134.72 | J121: 136.53 | K121: 132.9 | L121: 129.85 | M121: 126.99622
A122: 113 | B122: IRCTC | C122: 4690.9 | D122: 4661.63 | E122: 4554.32 | F122: 4417.73 | G122: 4310.42 | H122: 4798.22 | I122: 4905.53 | J122: 5042.12 | K122: 4768.95 | L122: 4525.05 | M122: 86.4552
A123: 114 | B123: IGL | C123: 519.2 | D123: 519.58 | E123: 516.62 | F123: 514.03 | G123: 511.07 | H123: 522.17 | I123: 525.13 | J123: 527.72 | K123: 522.55 | L123: 517 | M123: 14.95591
A124: 115 | B124: INDUSTOWER | C124: 306.25 | D124: 310.88 | E124: 295.37 | F124: 284.48 | G124: 268.97 | H124: 321.77 | I124: 337.28 | J124: 348.17 | K124: 326.4 | L124: 300 | M124: 88.43692
A125: 116 | B125: INDUSINDBK | C125: 1166.7 | D125: 1164.30 | E125: 1142.45 | F125: 1118.20 | G125: 1096.35 | H125: 1188.55 | I125: 1210.40 | J125: 1234.65 | K125: 1186.15 | L125: 1140.05 | M125: 40.02618
A126: 117 | B126: NAUKRI | C126: 6600.85 | D126: 6584.47 | E126: 6548.48 | F126: 6496.12 | G126: 6460.13 | H126: 6636.83 | I126: 6672.82 | J126: 6725.18 | K126: 6620.45 | L126: 6532.1 | M126: 2.21706
A127: 118 | B127: INFY | C127: 1691 | D127: 1690.62 | E127: 1677.03 | F127: 1663.07 | G127: 1649.48 | H127: 1704.58 | I127: 1718.17 | J127: 1732.13 | K127: 1704.2 | L127: 1676.65 | M127: 54.76108
A128: 119 | B128: INDIGO | C128: 1947.7 | D128: 1957.55 | E128: 1926.50 | F128: 1905.30 | G128: 1874.25 | H128: 1978.75 | I128: 2009.80 | J128: 2031.00 | K128: 1988.6 | L128: 1936.35 | M128: 5.18119
A129: 120 | B129: IPCALAB | C129: 2362.95 | D129: 2335.98 | E129: 2286.97 | F129: 2210.98 | G129: 2161.97 | H129: 2411.97 | I129: 2460.98 | J129: 2536.97 | K129: 2385 | L129: 2260 | M129: 3.43312
A130: 121 | B130: JSWENERGY | C130: 379.15 | D130: 379.00 | E130: 373.00 | F130: 366.85 | G130: 360.85 | H130: 385.15 | I130: 391.15 | J130: 397.30 | K130: 385 | L130: 372.85 | M130: 6.41771
A131: 122 | B131: JSWSTEEL | C131: 666.55 | D131: 665.18 | E131: 660.37 | F131: 654.18 | G131: 649.37 | H131: 671.37 | I131: 676.18 | J131: 682.37 | K131: 670 | L131: 659 | M131: 30.42177
A132: 123 | B132: JINDALSTEL | C132: 407.6 | D132: 411.20 | E132: 402.60 | F132: 397.60 | G132: 389.00 | H132: 416.20 | I132: 424.80 | J132: 429.80 | K132: 419.8 | L132: 406.2 | M132: 61.27096
A133: 124 | B133: JUBLFOOD | C133: 3974.7 | D133: 3978.32 | E133: 3938.43 | F133: 3902.17 | G133: 3862.28 | H133: 4014.58 | I133: 4054.47 | J133: 4090.73 | K133: 4018.2 | L133: 3942.05 | M133: 5.03965
A134: 125 | B134: KOTAKBANK | C134: 1952.45 | D134: 1961.32 | E134: 1940.38 | F134: 1928.32 | G134: 1907.38 | H134: 1973.38 | I134: 1994.32 | J134: 2006.38 | K134: 1982.25 | L134: 1949.25 | M134: 22.2213
A135: 126 | B135: L&TFH | C135: 90.2 | D135: 90.27 | E135: 89.58 | F135: 88.97 | G135: 88.28 | H135: 90.88 | I135: 91.57 | J135: 92.18 | K135: 90.95 | L135: 89.65 | M135: 47.72854
A136: 127 | B136: LTTS | C136: 4688.95 | D136: 4684.67 | E136: 4628.33 | F136: 4567.72 | G136: 4511.38 | H136: 4745.28 | I136: 4801.62 | J136: 4862.23 | K136: 4741 | L136: 4624.05 | M136: 3.04174
A137: 128 | B137: LICHSGFIN | C137: 443.65 | D137: 444.08 | E137: 439.37 | F137: 435.08 | G137: 430.37 | H137: 448.37 | I137: 453.08 | J137: 457.37 | K137: 448.8 | L137: 439.8 | M137: 20.43783
A138: 129 | B138: LTI | C138: 5777.6 | D138: 5778.53 | E138: 5709.07 | F138: 5640.53 | G138: 5571.07 | H138: 5847.07 | I138: 5916.53 | J138: 5985.07 | K138: 5848 | L138: 5710 | M138: 2.99275
A139: 130 | B139: LT | C139: 1712.45 | D139: 1713.92 | E139: 1698.53 | F139: 1684.62 | G139: 1669.23 | H139: 1727.83 | I139: 1743.22 | J139: 1757.13 | K139: 1729.3 | L139: 1700 | M139: 13.78863
A140: 131 | B140: LAURUSLABS | C140: 650.65 | D140: 648.22 | E140: 641.43 | F140: 632.22 | G140: 625.43 | H140: 657.43 | I140: 664.22 | J140: 673.43 | K140: 655 | L140: 639 | M140: 48.04002
A141: 132 | B141: LUPIN | C141: 956.05 | D141: 956.33 | E141: 950.72 | F141: 945.38 | G141: 939.77 | H141: 961.67 | I141: 967.28 | J141: 972.62 | K141: 961.95 | L141: 951 | M141: 6.93444
A142: 133 | B142: MRF | C142: 81272.55 | D142: 80526.35 | E142: 79606.30 | F142: 77940.05 | G142: 77020.00 | H142: 82192.60 | I142: 83112.65 | J142: 84778.90 | K142: 81446.4 | L142: 78860.1 | M142: 0.2206
A143: 134 | B143: MGL | C143: 1076.65 | D143: 1079.38 | E143: 1071.27 | F143: 1065.88 | G143: 1057.77 | H143: 1084.77 | I143: 1092.88 | J143: 1098.27 | K143: 1087.5 | L143: 1074 | M143: 2.28548
A144: 135 | B144: M&MFIN | C144: 182.5 | D144: 183.33 | E144: 181.22 | F144: 179.93 | G144: 177.82 | H144: 184.62 | I144: 186.73 | J144: 188.02 | K144: 185.45 | L144: 182.05 | M144: 29.18786
A145: 136 | B145: M&M | C145: 878.25 | D145: 867.73 | E145: 847.67 | F145: 817.08 | G145: 797.02 | H145: 898.32 | I145: 918.38 | J145: 948.97 | K145: 887.8 | L145: 837.15 | M145: 95.15673
A146: 137 | B146: MANAPPURAM | C146: 194.05 | D146: 191.28 | E146: 187.77 | F146: 181.48 | G146: 177.97 | H146: 197.57 | I146: 201.08 | J146: 207.37 | K146: 194.8 | L146: 185 | M146: 99.59507
A147: 138 | B147: MARICO | C147: 561.25 | D147: 564.47 | E147: 556.98 | F147: 552.72 | G147: 545.23 | H147: 568.73 | I147: 576.22 | J147: 580.48 | K147: 571.95 | L147: 560.2 | M147: 14.4944
A148: 139 | B148: MARUTI | C148: 7492.5 | D148: 7424.25 | E148: 7293.50 | F148: 7094.50 | G148: 6963.75 | H148: 7623.25 | I148: 7754.00 | J148: 7953.00 | K148: 7555 | L148: 7225.25 | M148: 16.46727
A149: 140 | B149: MFSL | C149: 1026.65 | D149: 1029.57 | E149: 1021.13 | F149: 1015.62 | G149: 1007.18 | H149: 1035.08 | I149: 1043.52 | J149: 1049.03 | K149: 1038 | L149: 1024.05 | M149: 2.73771
A150: 141 | B150: MINDTREE | C150: 4259.2 | D150: 4261.08 | E150: 4198.17 | F150: 4137.13 | G150: 4074.22 | H150: 4322.12 | I150: 4385.03 | J150: 4446.07 | K150: 4324 | L150: 4200.05 | M150: 9.82009
A151: 142 | B151: MPHASIS | C151: 3186.2 | D151: 3190.07 | E151: 3121.13 | F151: 3056.07 | G151: 2987.13 | H151: 3255.13 | I151: 3324.07 | J151: 3389.13 | K151: 3259 | L151: 3125 | M151: 7.40158
A152: 143 | B152: MUTHOOTFIN | C152: 1544.5 | D152: 1546.13 | E152: 1502.42 | F152: 1460.33 | G152: 1416.62 | H152: 1588.22 | I152: 1631.93 | J152: 1674.02 | K152: 1589.85 | L152: 1504.05 | M152: 16.49561
A153: 144 | B153: NATCOPHARM | C153: 902.25 | D153: 893.08 | E153: 880.17 | F153: 858.08 | G153: 845.17 | H153: 915.17 | I153: 928.08 | J153: 950.17 | K153: 906 | L153: 871 | M153: 3.72624
A154: 145 | B154: NMDC | C154: 144.35 | D154: 144.65 | E154: 143.15 | F154: 141.95 | G154: 140.45 | H154: 145.85 | I154: 147.35 | J154: 148.55 | K154: 146.15 | L154: 143.45 | M154: 72.19473
A155: 146 | B155: NTPC | C155: 142.8 | D155: 143.57 | E155: 141.48 | F155: 140.17 | G155: 138.08 | H155: 144.88 | I155: 146.97 | J155: 148.28 | K155: 145.65 | L155: 142.25 | M155: 100.35682
A156: 147 | B156: NAVINFLUOR | C156: 3971.5 | D156: 4000.75 | E156: 3923.50 | F156: 3875.50 | G156: 3798.25 | H156: 4048.75 | I156: 4126.00 | J156: 4174.00 | K156: 4078 | L156: 3952.75 | M156: 3.23107
A157: 148 | B157: NESTLEIND | C157: 19045.65 | D157: 19101.73 | E157: 18899.27 | F157: 18752.88 | G157: 18550.42 | H157: 19248.12 | I157: 19450.58 | J157: 19596.97 | K157: 19304.2 | L157: 18955.35 | M157: 0.47695
A158: 149 | B158: NAM-INDIA | C158: 445.25 | D158: 446.05 | E158: 442.35 | F158: 439.45 | G158: 435.75 | H158: 448.95 | I158: 452.65 | J158: 455.55 | K158: 449.75 | L158: 443.15 | M158: 5.16379
A159: 150 | B159: OBEROIRLTY | C159: 937.45 | D159: 918.83 | E159: 885.67 | F159: 833.88 | G159: 800.72 | H159: 970.62 | I159: 1003.78 | J159: 1055.57 | K159: 952 | L159: 867.05 | M159: 51.92469
A160: 151 | B160: ONGC | C160: 160.4 | D160: 163.35 | E160: 156.55 | F160: 152.70 | G160: 145.90 | H160: 167.20 | I160: 174.00 | J160: 177.85 | K160: 170.15 | L160: 159.5 | M160: 597.6914
A161: 152 | B161: OIL | C161: 242.45 | D161: 245.23 | E161: 238.62 | F161: 234.78 | G161: 228.17 | H161: 249.07 | I161: 255.68 | J161: 259.52 | K161: 251.85 | L161: 241.4 | M161: 13.09185
A162: 153 | B162: PIIND | C162: 3243.05 | D162: 3227.00 | E162: 3199.05 | F162: 3155.05 | G162: 3127.10 | H162: 3271.00 | I162: 3298.95 | J162: 3342.95 | K162: 3254.95 | L162: 3183 | M162: 2.84015
A163: 154 | B163: PAGEIND | C163: 37153.85 | D163: 36147.80 | E163: 35017.15 | F163: 32880.45 | G163: 31749.80 | H163: 38284.50 | I163: 39415.15 | J163: 41551.85 | K163: 37278.45 | L163: 34011.1 | M163: 1.03807
A164: 155 | B164: PETRONET | C164: 230.4 | D164: 230.65 | E164: 229.05 | F164: 227.70 | G164: 226.10 | H164: 232.00 | I164: 233.60 | J164: 234.95 | K164: 232.25 | L164: 229.3 | M164: 66.17981
A165: 156 | B165: PFIZER | C165: 5577.3 | D165: 5595.93 | E165: 5551.87 | F165: 5526.43 | G165: 5482.37 | H165: 5621.37 | I165: 5665.43 | J165: 5690.87 | K165: 5640 | L165: 5570.5 | M165: 0.15079
A166: 157 | B166: PIDILITIND | C166: 2460.5 | D166: 2451.55 | E166: 2426.70 | F166: 2392.90 | G166: 2368.05 | H166: 2485.35 | I166: 2510.20 | J166: 2544.00 | K166: 2476.4 | L166: 2417.75 | M166: 5.84927
A167: 158 | B167: PEL | C167: 2888.2 | D167: 2921.38 | E167: 2827.82 | F167: 2767.43 | G167: 2673.87 | H167: 2981.77 | I167: 3075.33 | J167: 3135.72 | K167: 3014.95 | L167: 2861 | M167: 32.26907
A168: 159 | B168: POLYCAB | C168: 2419.65 | D168: 2420.30 | E168: 2391.65 | F168: 2363.65 | G168: 2335.00 | H168: 2448.30 | I168: 2476.95 | J168: 2504.95 | K168: 2448.95 | L168: 2392.3 | M168: 3.03313
A169: 160 | B169: PFC | C169: 141.05 | D169: 141.35 | E169: 139.90 | F169: 138.75 | G169: 137.30 | H169: 142.50 | I169: 143.95 | J169: 145.10 | K169: 142.8 | L169: 140.2 | M169: 35.63922
A170: 161 | B170: POWERGRID | C170: 188.3 | D170: 189.15 | E170: 186.75 | F170: 185.20 | G170: 182.80 | H170: 190.70 | I170: 193.10 | J170: 194.65 | K170: 191.55 | L170: 187.6 | M170: 50.50275
A171: 162 | B171: PRESTIGE | C171: 484.6 | D171: 482.13 | E171: 469.47 | F171: 454.33 | G171: 441.67 | H171: 497.27 | I171: 509.93 | J171: 525.07 | K171: 494.8 | L171: 467 | M171: 25.11785
A172: 163 | B172: PGHH | C172: 13776.2 | D172: 13853.52 | E172: 13652.88 | F172: 13529.57 | G172: 13328.93 | H172: 13976.83 | I172: 14177.47 | J172: 14300.78 | K172: 14054.15 | L172: 13730.2 | M172: 0.0258
A173: 164 | B173: PNB | C173: 39.9 | D173: 40.10 | E173: 39.65 | F173: 39.40 | G173: 38.95 | H173: 40.35 | I173: 40.80 | J173: 41.05 | K173: 40.55 | L173: 39.85 | M173: 350.42174
A174: 165 | B174: RBLBANK | C174: 189.4 | D174: 188.75 | E174: 186.15 | F174: 182.90 | G174: 180.30 | H174: 192.00 | I174: 194.60 | J174: 197.85 | K174: 191.35 | L174: 185.5 | M174: 54.72521
A175: 166 | B175: RECLTD | C175: 158.15 | D175: 158.60 | E175: 157.10 | F175: 156.05 | G175: 154.55 | H175: 159.65 | I175: 161.15 | J175: 162.20 | K175: 160.1 | L175: 157.55 | M175: 25.61768
A176: 167 | B176: RELIANCE | C176: 2572.4 | D176: 2579.62 | E176: 2560.48 | F176: 2548.57 | G176: 2529.43 | H176: 2591.53 | I176: 2610.67 | J176: 2622.58 | K176: 2598.75 | L176: 2567.7 | M176: 29.2437
A177: 168 | B177: SBICARD | C177: 1139.35 | D177: 1133.58 | E177: 1124.27 | F177: 1109.18 | G177: 1099.87 | H177: 1148.67 | I177: 1157.98 | J177: 1173.07 | K177: 1142.9 | L177: 1118.5 | M177: 22.43226
A178: 169 | B178: SBILIFE | C178: 1215.05 | D178: 1218.82 | E178: 1203.43 | F178: 1191.82 | G178: 1176.43 | H178: 1230.43 | I178: 1245.82 | J178: 1257.43 | K178: 1234.2 | L178: 1207.2 | M178: 26.74007
A179: 170 | B179: SRF | C179: 11576.7 | D179: 11573.33 | E179: 11456.67 | F179: 11336.63 | G179: 11219.97 | H179: 11693.37 | I179: 11810.03 | J179: 11930.07 | K179: 11690 | L179: 11453.3 | M179: 2.37315
A180: 171 | B180: SANOFI | C180: 7813.15 | D180: 7893.58 | E180: 7721.72 | F180: 7630.28 | G180: 7458.42 | H180: 7985.02 | I180: 8156.88 | J180: 8248.32 | K180: 8065.45 | L180: 7802.15 | M180: 0.20488
A181: 172 | B181: SHREECEM | C181: 28059.35 | D181: 28091.18 | E181: 27837.57 | F181: 27615.78 | G181: 27362.17 | H181: 28312.97 | I181: 28566.58 | J181: 28788.37 | K181: 28344.8 | L181: 27869.4 | M181: 0.43358
A182: 173 | B182: SRTRANSFIN | C182: 1343.2 | D182: 1335.13 | E182: 1323.87 | F182: 1304.53 | G182: 1293.27 | H182: 1354.47 | I182: 1365.73 | J182: 1385.07 | K182: 1346.4 | L182: 1315.8 | M182: 7.47968
A183: 174 | B183: SIEMENS | C183: 2236.95 | D183: 2231.02 | E183: 2220.73 | F183: 2204.52 | G183: 2194.23 | H183: 2247.23 | I183: 2257.52 | J183: 2273.73 | K183: 2241.3 | L183: 2214.8 | M183: 1.39307
A184: 175 | B184: SBIN | C184: 457.9 | D184: 459.67 | E184: 455.33 | F184: 452.77 | G184: 448.43 | H184: 462.23 | I184: 466.57 | J184: 469.13 | K184: 464 | L184: 457.1 | M184: 99.84651
A185: 176 | B185: SAIL | C185: 115.5 | D185: 116.10 | E185: 114.40 | F185: 113.30 | G185: 111.60 | H185: 117.20 | I185: 118.90 | J185: 120.00 | K185: 117.8 | L185: 115 | M185: 223.8153
A186: 177 | B186: SUNPHARMA | C186: 823.25 | D186: 817.90 | E186: 809.45 | F186: 795.65 | G186: 787.20 | H186: 831.70 | I186: 840.15 | J186: 853.95 | K186: 826.35 | L186: 804.1 | M186: 40.89061
A187: 178 | B187: SUNTV | C187: 543.05 | D187: 544.02 | E187: 537.03 | F187: 531.02 | G187: 524.03 | H187: 550.03 | I187: 557.02 | J187: 563.03 | K187: 551 | L187: 538 | M187: 25.24168
A188: 179 | B188: SYNGENE | C188: 621.7 | D188: 623.10 | E188: 616.60 | F188: 611.50 | G188: 605.00 | H188: 628.20 | I188: 634.70 | J188: 639.80 | K188: 629.6 | L188: 618 | M188: 3.09636
A189: 180 | B189: TVSMOTOR | C189: 557.75 | D189: 555.05 | E189: 546.90 | F189: 536.05 | G189: 527.90 | H189: 565.90 | I189: 574.05 | J189: 584.90 | K189: 563.2 | L189: 544.2 | M189: 28.73448
A190: 181 | B190: TATACHEM | C190: 959.05 | D190: 963.33 | E190: 947.72 | F190: 936.38 | G190: 920.77 | H190: 974.67 | I190: 990.28 | J190: 1001.62 | K190: 978.95 | L190: 952 | M190: 28.53274
A191: 182 | B191: TCS | C191: 3892.9 | D191: 3870.65 | E191: 3842.30 | F191: 3791.70 | G191: 3763.35 | H191: 3921.25 | I191: 3949.60 | J191: 4000.20 | K191: 3899 | L191: 3820.05 | M191: 16.47233
A192: 183 | B192: TATACONSUM | C192: 824.55 | D192: 825.53 | E192: 820.37 | F192: 816.18 | G192: 811.02 | H192: 829.72 | I192: 834.88 | J192: 839.07 | K192: 830.7 | L192: 821.35 | M192: 15.00439
A193: 184 | B193: TATAELXSI | C193: 6348.25 | D193: 6319.42 | E193: 6251.83 | F193: 6155.42 | G193: 6087.83 | H193: 6415.83 | I193: 6483.42 | J193: 6579.83 | K193: 6387 | L193: 6223 | M193: 2.29047
A194: 185 | B194: TATAMOTORS | C194: 376.5 | D194: 366.25 | E194: 349.50 | F194: 322.50 | G194: 305.75 | H194: 393.25 | I194: 410.00 | J194: 437.00 | K194: 383 | L194: 339.25 | M194: 1632.38084
A195: 186 | B195: TATAPOWER | C195: 177.75 | D195: 179.53 | E195: 175.07 | F195: 172.38 | G195: 167.92 | H195: 182.22 | I195: 186.68 | J195: 189.37 | K195: 184 | L195: 176.85 | M195: 733.1381
A196: 187 | B196: TATASTEEL | C196: 1289.2 | D196: 1293.18 | E196: 1279.57 | F196: 1269.93 | G196: 1256.32 | H196: 1302.82 | I196: 1316.43 | J196: 1326.07 | K196: 1306.8 | L196: 1283.55 | M196: 46.03367
A197: 188 | B197: TECHM | C197: 1417.2 | D197: 1405.38 | E197: 1387.47 | F197: 1357.73 | G197: 1339.82 | H197: 1435.12 | I197: 1453.03 | J197: 1482.77 | K197: 1423.3 | L197: 1375.65 | M197: 19.56325
A198: 189 | B198: RAMCOCEM | C198: 1014.55 | D198: 1013.87 | E198: 1003.68 | F198: 992.82 | G198: 982.63 | H198: 1024.73 | I198: 1034.92 | J198: 1045.78 | K198: 1024.05 | L198: 1003 | M198: 2.8754
A199: 190 | B199: TITAN | C199: 2375.35 | D199: 2336.53 | E199: 2288.82 | F199: 2202.28 | G199: 2154.57 | H199: 2423.07 | I199: 2470.78 | J199: 2557.32 | K199: 2384.25 | L199: 2250 | M199: 83.61061
A200: 191 | B200: TORNTPHARM | C200: 3074.25 | D200: 3082.12 | E200: 3054.23 | F200: 3034.22 | G200: 3006.33 | H200: 3102.13 | I200: 3130.02 | J200: 3150.03 | K200: 3110 | L200: 3062.1 | M200: 0.61332
A201: 192 | B201: TORNTPOWER | C201: 510.05 | D201: 510.62 | E201: 504.43 | F201: 498.82 | G201: 492.63 | H201: 516.23 | I201: 522.42 | J201: 528.03 | K201: 516.8 | L201: 505 | M201: 4.7119
A202: 193 | B202: TRENT | C202: 1108.85 | D202: 1096.95 | E202: 1066.95 | F202: 1025.05 | G202: 995.05 | H202: 1138.85 | I202: 1168.85 | J202: 1210.75 | K202: 1126.95 | L202: 1055.05 | M202: 19.88186
A203: 194 | B203: UPL | C203: 727.5 | D203: 728.83 | E203: 721.67 | F203: 715.83 | G203: 708.67 | H203: 734.67 | I203: 741.83 | J203: 747.67 | K203: 736 | L203: 723 | M203: 22.33111
A204: 195 | B204: ULTRACEMCO | C204: 7354.6 | D204: 7374.83 | E204: 7291.72 | F204: 7228.83 | G204: 7145.72 | H204: 7437.72 | I204: 7520.83 | J204: 7583.72 | K204: 7457.95 | L204: 7311.95 | M204: 5.83113
A205: 196 | B205: UNIONBANK | C205: 37.3 | D205: 37.25 | E205: 36.95 | F205: 36.60 | G205: 36.30 | H205: 37.60 | I205: 37.90 | J205: 38.25 | K205: 37.55 | L205: 36.9 | M205: 93.69098
... 29 more rows

Sheet MidCap Intra
L5: Back To Main Page
A6: FOR INTRA DAY TRADING | K6: =Main!B10 -> 2021-10-08
A9: Sr.no | B9: Scrip | C9: CLOSE RATE | D9: Pivot Point | E9: Supports | H9: Resistances
E10: S1 | F10: S2 | G10: S3 | H10: R1 | I10: R2 | J10: R3 | K10: HIGH | L10: LOW | M10: Total Trade Quanity in Lakhs
A11: 1 | B11: 3MINDIA | C11: 25231.65 | D11: 25260.60 | E11: 24821.20 | F11: 24410.75 | G11: 23971.35 | H11: 25671.05 | I11: 26110.45 | J11: 26520.90 | K11: 25700 | L11: 24850.15 | M11: 0.03342
A12: 2 | B12: ABB | C12: 1871.5 | D12: 1877.50 | E12: 1857.00 | F12: 1842.50 | G12: 1822.00 | H12: 1892.00 | I12: 1912.50 | J12: 1927.00 | K12: 1898 | L12: 1863 | M12: 0.64748
A13: 3 | B13: POWERINDIA | C13: 2400.7 | D13: 2404.58 | E13: 2359.17 | F13: 2317.63 | G13: 2272.22 | H13: 2446.12 | I13: 2491.53 | J13: 2533.07 | K13: 2450 | L13: 2363.05 | M13: 0.16107
A14: 4 | B14: ACC | C14: 2265.85 | D14: 2252.38 | E14: 2228.77 | F14: 2191.68 | G14: 2168.07 | H14: 2289.47 | I14: 2313.08 | J14: 2350.17 | K14: 2276 | L14: 2215.3 | M14: 3.18393
A15: 5 | B15: AIAENG | C15: 1883.1 | D15: 1896.15 | E15: 1863.10 | F15: 1843.10 | G15: 1810.05 | H15: 1916.15 | I15: 1949.20 | J15: 1969.20 | K15: 1929.2 | L15: 1876.15 | M15: 0.34056
A16: 6 | B16: APLAPOLLO | C16: 857.05 | D16: 848.30 | E16: 835.60 | F16: 814.15 | G16: 801.45 | H16: 869.75 | I16: 882.45 | J16: 903.90 | K16: 861 | L16: 826.85 | M16: 5.51501
A17: 7 | B17: AUBANK | C17: 1205.9 | D17: 1208.98 | E17: 1195.92 | F17: 1185.93 | G17: 1172.87 | H17: 1218.97 | I17: 1232.03 | J17: 1242.02 | K17: 1222.05 | L17: 1199 | M17: 8.1862
A18: 8 | B18: AARTIDRUGS | C18: 632.75 | D18: 636.58 | E18: 628.17 | F18: 623.58 | G18: 615.17 | H18: 641.17 | I18: 649.58 | J18: 654.17 | K18: 645 | L18: 632 | M18: 1.54629
A19: 9 | B19: AARTIIND | C19: 1080.7 | D19: 1086.92 | E19: 1058.83 | F19: 1036.97 | G19: 1008.88 | H19: 1108.78 | I19: 1136.87 | J19: 1158.73 | K19: 1115 | L19: 1065.05 | M19: 18.18149
A20: 10 | B20: AAVAS | C20: 2648.65 | D20: 2651.45 | E20: 2630.00 | F20: 2611.35 | G20: 2589.90 | H20: 2670.10 | I20: 2691.55 | J20: 2710.20 | K20: 2672.9 | L20: 2632.8 | M20: 0.39186
A21: 11 | B21: ABBOTINDIA | C21: 21741.2 | D21: 22073.33 | E21: 21277.87 | F21: 20814.53 | G21: 20019.07 | H21: 22536.67 | I21: 23332.13 | J21: 23795.47 | K21: 22868.8 | L21: 21610 | M21: 0.45763
A22: 12 | B22: ADANIENT | C22: 1520.75 | D22: 1515.50 | E22: 1495.25 | F22: 1469.75 | G22: 1449.50 | H22: 1541.00 | I22: 1561.25 | J22: 1586.75 | K22: 1535.75 | L22: 1490 | M22: 19.19106
A23: 13 | B23: ADANIGREEN | C23: 1205.65 | D23: 1214.92 | E23: 1192.83 | F23: 1180.02 | G23: 1157.93 | H23: 1227.73 | I23: 1249.82 | J23: 1262.63 | K23: 1237 | L23: 1202.1 | M23: 1.79544
A24: 14 | B24: ADANIPORTS | C24: 736.15 | D24: 733.83 | E24: 728.87 | F24: 721.58 | G24: 716.62 | H24: 741.12 | I24: 746.08 | J24: 753.37 | K24: 738.8 | L24: 726.55 | M24: 32.37419
A25: 15 | B25: ATGL | C25: 1425.2 | D25: 1416.67 | E25: 1402.53 | F25: 1379.87 | G25: 1365.73 | H25: 1439.33 | I25: 1453.47 | J25: 1476.13 | K25: 1430.8 | L25: 1394 | M25: 1.86415
A26: 16 | B26: ADANITRANS | C26: 1764.3 | D26: 1764.18 | E26: 1729.37 | F26: 1694.43 | G26: 1659.62 | H26: 1799.12 | I26: 1833.93 | J26: 1868.87 | K26: 1799 | L26: 1729.25 | M26: 1.0332
A27: 17 | B27: ABCAPITAL | C27: 110.1 | D27: 110.72 | E27: 108.98 | F27: 107.87 | G27: 106.13 | H27: 111.83 | I27: 113.57 | J27: 114.68 | K27: 112.45 | L27: 109.6 | M27: 24.99118
A28: 18 | B28: ABFRL | C28: 258.9 | D28: 254.53 | E28: 247.37 | F28: 235.83 | G28: 228.67 | H28: 266.07 | I28: 273.23 | J28: 284.77 | K28: 261.7 | L28: 243 | M28: 93.8341
A29: 19 | B29: ADVENZYMES | C29: 402.3 | D29: 403.43 | E29: 398.87 | F29: 395.43 | G29: 390.87 | H29: 406.87 | I29: 411.43 | J29: 414.87 | K29: 408 | L29: 400 | M29: 3.32082
A30: 20 | B30: AEGISCHEM | C30: 230 | D30: 230.17 | E30: 228.53 | F30: 227.07 | G30: 225.43 | H30: 231.63 | I30: 233.27 | J30: 234.73 | K30: 231.8 | L30: 228.7 | M30: 3.02131
A31: 21 | B31: AFFLE | C31: 1154.3 | D31: 1139.87 | E31: 1125.43 | F31: 1096.57 | G31: 1082.13 | H31: 1168.73 | I31: 1183.17 | J31: 1212.03 | K31: 1154.3 | L31: 1111 | M31: 2.205
A32: 22 | B32: AJANTPHARM | C32: 2301.4 | D32: 2293.47 | E32: 2256.93 | F32: 2212.47 | G32: 2175.93 | H32: 2337.93 | I32: 2374.47 | J32: 2418.93 | K32: 2330 | L32: 2249 | M32: 0.53376
A33: 23 | B33: AKZOINDIA | C33: 2237.25 | D33: 2243.75 | E33: 2219.55 | F33: 2201.85 | G33: 2177.65 | H33: 2261.45 | I33: 2285.65 | J33: 2303.35 | K33: 2267.95 | L33: 2226.05 | M33: 0.06791
A34: 24 | B34: ALEMBICLTD | C34: 114.05 | D34: 114.33 | E34: 113.32 | F34: 112.58 | G34: 111.57 | H34: 115.07 | I34: 116.08 | J34: 116.82 | K34: 115.35 | L34: 113.6 | M34: 1.74719
A35: 25 | B35: APLLTD | C35: 777.9 | D35: 779.42 | E35: 773.83 | F35: 769.77 | G35: 764.18 | H35: 783.48 | I35: 789.07 | J35: 793.13 | K35: 785 | L35: 775.35 | M35: 2.14567
A36: 26 | B36: ALKEM | C36: 3909.85 | D36: 3931.20 | E36: 3868.65 | F36: 3827.45 | G36: 3764.90 | H36: 3972.40 | I36: 4034.95 | J36: 4076.15 | K36: 3993.75 | L36: 3890 | M36: 3.44171
A37: 27 | B37: ALKYLAMINE | C37: 4109.45 | D37: 4091.72 | E37: 4003.43 | F37: 3897.42 | G37: 3809.13 | H37: 4197.73 | I37: 4286.02 | J37: 4392.03 | K37: 4180 | L37: 3985.7 | M37: 1.4304
A38: 28 | B38: ALOKINDS | C38: 24.25 | D38: 24.40 | E38: 24.05 | F38: 23.85 | G38: 23.50 | H38: 24.60 | I38: 24.95 | J38: 25.15 | K38: 24.75 | L38: 24.2 | M38: 74.86202
A39: 29 | B39: AMARAJABAT | C39: 758.7 | D39: 758.50 | E39: 752.00 | F39: 745.30 | G39: 738.80 | H39: 765.20 | I39: 771.70 | J39: 778.40 | K39: 765 | L39: 751.8 | M39: 9.32021
A40: 30 | B40: AMBER | C40: 3399.85 | D40: 3417.78 | E40: 3357.07 | F40: 3314.28 | G40: 3253.57 | H40: 3460.57 | I40: 3521.28 | J40: 3564.07 | K40: 3478.5 | L40: 3375 | M40: 0.58191
A41: 31 | B41: AMBUJACEM | C41: 402.9 | D41: 401.63 | E41: 398.57 | F41: 394.23 | G41: 391.17 | H41: 405.97 | I41: 409.03 | J41: 413.37 | K41: 404.7 | L41: 397.3 | M41: 55.08787
A42: 32 | B42: ANGELBRKG | C42: 1362.95 | D42: 1376.37 | E42: 1333.73 | F42: 1304.52 | G42: 1261.88 | H42: 1405.58 | I42: 1448.22 | J42: 1477.43 | K42: 1419 | L42: 1347.15 | M42: 4.72653
A43: 33 | B43: APOLLOHOSP | C43: 4428.3 | D43: 4425.77 | E43: 4383.53 | F43: 4338.77 | G43: 4296.53 | H43: 4470.53 | I43: 4512.77 | J43: 4557.53 | K43: 4468 | L43: 4381 | M43: 2.76775
A44: 34 | B44: APOLLOTYRE | C44: 228.15 | D44: 228.27 | E44: 223.53 | F44: 218.92 | G44: 214.18 | H44: 232.88 | I44: 237.62 | J44: 242.23 | K44: 233 | L44: 223.65 | M44: 64.17957
A45: 35 | B45: ASAHIINDIA | C45: 369.6 | D45: 370.58 | E45: 367.67 | F45: 365.73 | G45: 362.82 | H45: 372.52 | I45: 375.43 | J45: 377.37 | K45: 373.5 | L45: 368.65 | M45: 0.3357
A46: 36 | B46: ASHOKLEY | C46: 135.85 | D46: 135.18 | E46: 131.87 | F46: 127.88 | G46: 124.57 | H46: 139.17 | I46: 142.48 | J46: 146.47 | K46: 138.5 | L46: 131.2 | M46: 428.82284
A47: 37 | B47: ASHOKA | C47: 103.1 | D47: 102.03 | E47: 100.57 | F47: 98.03 | G47: 96.57 | H47: 104.57 | I47: 106.03 | J47: 108.57 | K47: 103.5 | L47: 99.5 | M47: 47.23448
A48: 38 | B48: ASIANPAINT | C48: 3290.85 | D48: 3276.28 | E48: 3234.57 | F48: 3178.28 | G48: 3136.57 | H48: 3332.57 | I48: 3374.28 | J48: 3430.57 | K48: 3318 | L48: 3220 | M48: 11.77283
A49: 39 | B49: ASTERDM | C49: 211.65 | D49: 211.33 | E49: 209.17 | F49: 206.68 | G49: 204.52 | H49: 213.82 | I49: 215.98 | J49: 218.47 | K49: 213.5 | L49: 208.85 | M49: 4.35149
A50: 40 | B50: ASTRAZEN | C50: 3102.9 | D50: 3102.40 | E50: 3081.55 | F50: 3060.20 | G50: 3039.35 | H50: 3123.75 | I50: 3144.60 | J50: 3165.95 | K50: 3123.25 | L50: 3081.05 | M50: 0.17249
A51: 41 | B51: ASTRAL | C51: 2237.85 | D51: 2238.72 | E51: 2212.13 | F51: 2186.42 | G51: 2159.83 | H51: 2264.43 | I51: 2291.02 | J51: 2316.73 | K51: 2265.3 | L51: 2213 | M51: 5.16085
A52: 42 | B52: ATUL | C52: 10445.55 | D52: 10365.20 | E52: 10230.40 | F52: 10015.25 | G52: 9880.45 | H52: 10580.35 | I52: 10715.15 | J52: 10930.30 | K52: 10500 | L52: 10150.05 | M52: 1.31985
A53: 43 | B53: AUROPHARMA | C53: 719.6 | D53: 720.78 | E53: 715.17 | F53: 710.73 | G53: 705.12 | H53: 725.22 | I53: 730.83 | J53: 735.27 | K53: 726.4 | L53: 716.35 | M53: 15.14665
A54: 44 | B54: AVANTIFEED | C54: 580.15 | D54: 577.92 | E54: 571.83 | F54: 563.52 | G54: 557.43 | H54: 586.23 | I54: 592.32 | J54: 600.63 | K54: 584 | L54: 569.6 | M54: 2.52177
A55: 45 | B55: DMART | C55: 4311.7 | D55: 4299.90 | E55: 4262.80 | F55: 4213.90 | G55: 4176.80 | H55: 4348.80 | I55: 4385.90 | J55: 4434.80 | K55: 4337 | L55: 4251 | M55: 5.70321
A56: 46 | B56: AXISBANK | C56: 777.1 | D56: 780.45 | E56: 770.75 | F56: 764.40 | G56: 754.70 | H56: 786.80 | I56: 796.50 | J56: 802.85 | K56: 790.15 | L56: 774.1 | M56: 66.22698
A57: 47 | B57: BASF | C57: 3499.55 | D57: 3517.93 | E57: 3462.52 | F57: 3425.48 | G57: 3370.07 | H57: 3554.97 | I57: 3610.38 | J57: 3647.42 | K57: 3573.35 | L57: 3480.9 | M57: 0.25846
A58: 48 | B58: BEML | C58: 1538.15 | D58: 1525.30 | E58: 1492.85 | F58: 1447.55 | G58: 1415.10 | H58: 1570.60 | I58: 1603.05 | J58: 1648.35 | K58: 1557.75 | L58: 1480 | M58: 7.29523
A59: 49 | B59: BSE | C59: 1252.45 | D59: 1250.67 | E59: 1236.78 | F59: 1221.12 | G59: 1207.23 | H59: 1266.33 | I59: 1280.22 | J59: 1295.88 | K59: 1264.55 | L59: 1235 | M59: 2.73168
A60: 50 | B60: BAJAJ-AUTO | C60: 3828.55 | D60: 3827.40 | E60: 3786.15 | F60: 3743.75 | G60: 3702.50 | H60: 3869.80 | I60: 3911.05 | J60: 3953.45 | K60: 3868.65 | L60: 3785 | M60: 3.43916
A61: 51 | B61: BAJAJCON | C61: 253.05 | D61: 254.05 | E61: 251.25 | F61: 249.45 | G61: 246.65 | H61: 255.85 | I61: 258.65 | J61: 260.45 | K61: 256.85 | L61: 252.25 | M61: 6.18911
A62: 52 | B62: BAJAJELEC | C62: 1252.8 | D62: 1256.80 | E62: 1239.95 | F62: 1227.10 | G62: 1210.25 | H62: 1269.65 | I62: 1286.50 | J62: 1299.35 | K62: 1273.65 | L62: 1243.95 | M62: 0.9903
A63: 53 | B63: BAJFINANCE | C63: 7747.9 | D63: 7790.30 | E63: 7695.60 | F63: 7643.30 | G63: 7548.60 | H63: 7842.60 | I63: 7937.30 | J63: 7989.60 | K63: 7885 | L63: 7738 | M63: 9.4055
A64: 54 | B64: BAJAJFINSV | C64: 17470.25 | D64: 17591.75 | E64: 17303.50 | F64: 17136.75 | G64: 16848.50 | H64: 17758.50 | I64: 18046.75 | J64: 18213.50 | K64: 17880 | L64: 17425 | M64: 2.241
A65: 55 | B65: BAJAJHLDNG | C65: 4741 | D65: 4766.33 | E65: 4694.67 | F65: 4648.33 | G65: 4576.67 | H65: 4812.67 | I65: 4884.33 | J65: 4930.67 | K65: 4838 | L65: 4720 | M65: 0.22876
A66: 56 | B66: BALAMINES | C66: 4568.4 | D66: 4592.32 | E66: 4528.63 | F66: 4488.87 | G66: 4425.18 | H66: 4632.08 | I66: 4695.77 | J66: 4735.53 | K66: 4656 | L66: 4552.55 | M66: 0.88326
A67: 57 | B67: BALKRISIND | C67: 2551.65 | D67: 2545.55 | E67: 2523.10 | F67: 2494.55 | G67: 2472.10 | H67: 2574.10 | I67: 2596.55 | J67: 2625.10 | K67: 2568 | L67: 2517 | M67: 7.5592
A68: 58 | B68: BALMLAWRIE | C68: 130.75 | D68: 130.95 | E68: 130.05 | F68: 129.35 | G68: 128.45 | H68: 131.65 | I68: 132.55 | J68: 133.25 | K68: 131.85 | L68: 130.25 | M68: 2.43148
A69: 59 | B69: BALRAMCHIN | C69: 375.35 | D69: 377.00 | E69: 371.50 | F69: 367.65 | G69: 362.15 | H69: 380.85 | I69: 386.35 | J69: 390.20 | K69: 382.5 | L69: 373.15 | M69: 6.28383
A70: 60 | B70: BANDHANBNK | C70: 328.55 | D70: 322.50 | E70: 314.30 | F70: 300.05 | G70: 291.85 | H70: 336.75 | I70: 344.95 | J70: 359.20 | K70: 330.7 | L70: 308.25 | M70: 220.13345
A71: 61 | B71: BANKBARODA | C71: 84 | D71: 83.98 | E71: 83.12 | F71: 82.23 | G71: 81.37 | H71: 84.87 | I71: 85.73 | J71: 86.62 | K71: 84.85 | L71: 83.1 | M71: 252.29829
A72: 62 | B72: BANKINDIA | C72: 56.4 | D72: 56.62 | E72: 56.03 | F72: 55.67 | G72: 55.08 | H72: 56.98 | I72: 57.57 | J72: 57.93 | K72: 57.2 | L72: 56.25 | M72: 38.60147
A73: 63 | B73: MAHABANK | C73: 20.25 | D73: 20.35 | E73: 20.10 | F73: 19.95 | G73: 19.70 | H73: 20.50 | I73: 20.75 | J73: 20.90 | K73: 20.6 | L73: 20.2 | M73: 34.89172
A74: 64 | B74: BATAINDIA | C74: 1944.4 | D74: 1909.88 | E74: 1866.87 | F74: 1789.33 | G74: 1746.32 | H74: 1987.42 | I74: 2030.43 | J74: 2107.97 | K74: 1952.9 | L74: 1832.35 | M74: 15.50818
A75: 65 | B75: BAYERCROP | C75: 5195.85 | D75: 5212.05 | E75: 5169.30 | F75: 5142.75 | G75: 5100.00 | H75: 5238.60 | I75: 5281.35 | J75: 5307.90 | K75: 5254.8 | L75: 5185.5 | M75: 0.10263
A76: 66 | B76: BERGEPAINT | C76: 829.55 | D76: 830.12 | E76: 820.93 | F76: 812.32 | G76: 803.13 | H76: 838.73 | I76: 847.92 | J76: 856.53 | K76: 839.3 | L76: 821.5 | M76: 5.0344
A77: 67 | B77: BDL | C77: 369.1 | D77: 372.35 | E77: 364.90 | F77: 360.70 | G77: 353.25 | H77: 376.55 | I77: 384.00 | J77: 388.20 | K77: 379.8 | L77: 368.15 | M77: 4.89732
A78: 68 | B78: BEL | C78: 203.1 | D78: 202.47 | E78: 201.13 | F78: 199.17 | G78: 197.83 | H78: 204.43 | I78: 205.77 | J78: 207.73 | K78: 203.8 | L78: 200.5 | M78: 25.29141
A79: 69 | B79: BHARATFORG | C79: 741.5 | D79: 739.83 | E79: 729.52 | F79: 717.53 | G79: 707.22 | H79: 751.82 | I79: 762.13 | J79: 774.12 | K79: 750.15 | L79: 727.85 | M79: 39.25051
A80: 70 | B80: BHEL | C80: 63.25 | D80: 63.73 | E80: 62.62 | F80: 61.98 | G80: 60.87 | H80: 64.37 | I80: 65.48 | J80: 66.12 | K80: 64.85 | L80: 63.1 | M80: 300.79052
A81: 71 | B81: BPCL | C81: 449.2 | D81: 449.73 | E81: 447.47 | F81: 445.73 | G81: 443.47 | H81: 451.47 | I81: 453.73 | J81: 455.47 | K81: 452 | L81: 448 | M81: 37.22557
A82: 72 | B82: BHARATRAS | C82: 12414.1 | D82: 12400.22 | E82: 12340.93 | F82: 12267.77 | G82: 12208.48 | H82: 12473.38 | I82: 12532.67 | J82: 12605.83 | K82: 12459.5 | L82: 12327.05 | M82: 0.01019
A83: 73 | B83: BHARTIARTL | C83: 692.5 | D83: 695.33 | E83: 688.47 | F83: 684.43 | G83: 677.57 | H83: 699.37 | I83: 706.23 | J83: 710.27 | K83: 702.2 | L83: 691.3 | M83: 81.2159
A84: 74 | B84: BIOCON | C84: 359.75 | D84: 359.60 | E84: 357.35 | F84: 354.95 | G84: 352.70 | H84: 362.00 | I84: 364.25 | J84: 366.65 | K84: 361.85 | L84: 357.2 | M84: 10.40559
A85: 75 | B85: BIRLACORPN | C85: 1367.5 | D85: 1363.10 | E85: 1351.25 | F85: 1335.00 | G85: 1323.15 | H85: 1379.35 | I85: 1391.20 | J85: 1407.45 | K85: 1374.95 | L85: 1346.85 | M85: 0.82056
A86: 76 | B86: BSOFT | C86: 425.65 | D86: 425.03 | E86: 421.12 | F86: 416.58 | G86: 412.67 | H86: 429.57 | I86: 433.48 | J86: 438.02 | K86: 428.95 | L86: 420.5 | M86: 29.36052
A87: 77 | B87: BLISSGVS | C87: 112.9 | D87: 112.67 | E87: 110.33 | F87: 107.77 | G87: 105.43 | H87: 115.23 | I87: 117.57 | J87: 120.13 | K87: 115 | L87: 110.1 | M87: 7.82472
A88: 78 | B88: BLUEDART | C88: 6569.85 | D88: 6504.62 | E88: 6415.23 | F88: 6260.62 | G88: 6171.23 | H88: 6659.23 | I88: 6748.62 | J88: 6903.23 | K88: 6594 | L88: 6350 | M88: 0.31752
A89: 79 | B89: BLUESTARCO | C89: 887.9 | D89: 881.97 | E89: 872.93 | F89: 857.97 | G89: 848.93 | H89: 896.93 | I89: 905.97 | J89: 920.93 | K89: 891 | L89: 867 | M89: 0.68226
A90: 80 | B90: BBTC | C90: 1157.45 | D90: 1161.42 | E90: 1142.93 | F90: 1128.42 | G90: 1109.93 | H90: 1175.93 | I90: 1194.42 | J90: 1208.93 | K90: 1179.9 | L90: 1146.9 | M90: 0.4709
A91: 81 | B91: BOSCHLTD | C91: 17513.4 | D91: 17412.55 | E91: 17150.55 | F91: 16787.70 | G91: 16525.70 | H91: 17775.40 | I91: 18037.40 | J91: 18400.25 | K91: 17674.55 | L91: 17049.7 | M91: 2.1287
A92: 82 | B92: BRIGADE | C92: 469.05 | D92: 463.95 | E92: 451.20 | F92: 433.35 | G92: 420.60 | H92: 481.80 | I92: 494.55 | J92: 512.40 | K92: 476.7 | L92: 446.1 | M92: 21.83068
A93: 83 | B93: BRITANNIA | C93: 3900.6 | D93: 3913.90 | E93: 3864.15 | F93: 3827.70 | G93: 3777.95 | H93: 3950.35 | I93: 4000.10 | J93: 4036.55 | K93: 3963.65 | L93: 3877.45 | M93: 1.87556
A94: 84 | B94: BURGERKING | C94: 160.3 | D94: 160.55 | E94: 159.10 | F94: 157.90 | G94: 156.45 | H94: 161.75 | I94: 163.20 | J94: 164.40 | K94: 162 | L94: 159.35 | M94: 6.74808
A95: 85 | B95: CCL | C95: 408.7 | D95: 408.22 | E95: 404.48 | F95: 400.27 | G95: 396.53 | H95: 412.43 | I95: 416.17 | J95: 420.38 | K95: 411.95 | L95: 404 | M95: 3.60805
A96: 86 | B96: CESC | C96: 89.25 | D96: 90.35 | E96: 87.60 | F96: 85.95 | G96: 83.20 | H96: 92.00 | I96: 94.75 | J96: 96.40 | K96: 93.1 | L96: 88.7 | M96: 59.44727
A97: 87 | B97: CRISIL | C97: 2911.2 | D97: 2888.73 | E97: 2852.47 | F97: 2793.73 | G97: 2757.47 | H97: 2947.47 | I97: 2983.73 | J97: 3042.47 | K97: 2925 | L97: 2830 | M97: 0.22524
A98: 88 | B98: CSBBANK | C98: 313.3 | D98: 314.27 | E98: 311.53 | F98: 309.77 | G98: 307.03 | H98: 316.03 | I98: 318.77 | J98: 320.53 | K98: 317 | L98: 312.5 | M98: 0.91069
A99: 89 | B99: CADILAHC | C99: 549.75 | D99: 552.13 | E99: 546.52 | F99: 543.28 | G99: 537.67 | H99: 555.37 | I99: 560.98 | J99: 564.22 | K99: 557.75 | L99: 548.9 | M99: 18.5257
A100: 90 | B100: CANFINHOME | C100: 689.5 | D100: 690.87 | E100: 674.73 | F100: 659.97 | G100: 643.83 | H100: 705.63 | I100: 721.77 | J100: 736.53 | K100: 707 | L100: 676.1 | M100: 18.81513
A101: 91 | B101: CANBK | C101: 174.85 | D101: 175.32 | E101: 173.13 | F101: 171.42 | G101: 169.23 | H101: 177.03 | I101: 179.22 | J101: 180.93 | K101: 177.5 | L101: 173.6 | M101: 117.54552
A102: 92 | B102: CAPLIPOINT | C102: 905.75 | D102: 910.73 | E102: 895.02 | F102: 884.28 | G102: 868.57 | H102: 921.47 | I102: 937.18 | J102: 947.92 | K102: 926.45 | L102: 900 | M102: 3.0033
A103: 93 | B103: CGCL | C103: 529.05 | D103: 527.72 | E103: 522.43 | F103: 515.82 | G103: 510.53 | H103: 534.33 | I103: 539.62 | J103: 546.23 | K103: 533 | L103: 521.1 | M103: 0.2234
A104: 94 | B104: CARBORUNIV | C104: 868.3 | D104: 871.77 | E104: 861.53 | F104: 854.77 | G104: 844.53 | H104: 878.53 | I104: 888.77 | J104: 895.53 | K104: 882 | L104: 865 | M104: 0.60598
A105: 95 | B105: CASTROLIND | C105: 144.35 | D105: 145.05 | E105: 142.30 | F105: 140.25 | G105: 137.50 | H105: 147.10 | I105: 149.85 | J105: 151.90 | K105: 147.8 | L105: 143 | M105: 12.26197
A106: 96 | B106: CEATLTD | C106: 1347.9 | D106: 1353.62 | E106: 1332.28 | F106: 1316.67 | G106: 1295.33 | H106: 1369.23 | I106: 1390.57 | J106: 1406.18 | K106: 1374.95 | L106: 1338 | M106: 1.77916
A107: 97 | B107: CENTRALBK | C107: 22.25 | D107: 22.37 | E107: 22.03 | F107: 21.82 | G107: 21.48 | H107: 22.58 | I107: 22.92 | J107: 23.13 | K107: 22.7 | L107: 22.15 | M107: 36.18918
A108: 98 | B108: CDSL | C108: 1291.5 | D108: 1296.98 | E108: 1283.97 | F108: 1276.43 | G108: 1263.42 | H108: 1304.52 | I108: 1317.53 | J108: 1325.07 | K108: 1310 | L108: 1289.45 | M108: 1.52959
A109: 99 | B109: CENTURYPLY | C109: 483.35 | D109: 489.12 | E109: 472.83 | F109: 462.32 | G109: 446.03 | H109: 499.63 | I109: 515.92 | J109: 526.43 | K109: 505.4 | L109: 478.6 | M109: 4.61468
A110: 100 | B110: CENTURYTEX | C110: 932.65 | D110: 939.25 | E110: 921.50 | F110: 910.35 | G110: 892.60 | H110: 950.40 | I110: 968.15 | J110: 979.30 | K110: 957 | L110: 928.1 | M110: 4.32766
A111: 101 | B111: CERA | C111: 5261.65 | D111: 5272.40 | E111: 5207.40 | F111: 5153.15 | G111: 5088.15 | H111: 5326.65 | I111: 5391.65 | J111: 5445.90 | K111: 5337.4 | L111: 5218.15 | M111: 0.05058
A112: 102 | B112: CHALET | C112: 240.05 | D112: 238.68 | E112: 235.37 | F112: 230.68 | G112: 227.37 | H112: 243.37 | I112: 246.68 | J112: 251.37 | K112: 242 | L112: 234 | M112: 10.97608
A113: 103 | B113: CHAMBLFERT | C113: 375.85 | D113: 371.62 | E113: 355.23 | F113: 334.62 | G113: 318.23 | H113: 392.23 | I113: 408.62 | J113: 429.23 | K113: 388 | L113: 351 | M113: 67.82462
A114: 104 | B114: CHOLAHLDNG | C114: 701.25 | D114: 701.02 | E114: 698.08 | F114: 694.92 | G114: 691.98 | H114: 704.18 | I114: 707.12 | J114: 710.28 | K114: 703.95 | L114: 697.85 | M114: 0.35494
A115: 105 | B115: CHOLAFIN | C115: 583.85 | D115: 577.82 | E115: 569.08 | F115: 554.32 | G115: 545.58 | H115: 592.58 | I115: 601.32 | J115: 616.08 | K115: 586.55 | L115: 563.05 | M115: 25.92321
A116: 106 | B116: CIPLA | C116: 916.05 | D116: 912.10 | E116: 901.95 | F116: 887.85 | G116: 877.70 | H116: 926.20 | I116: 936.35 | J116: 950.45 | K116: 922.25 | L116: 898 | M116: 70.08049
A117: 107 | B117: CUB | C117: 160 | D117: 160.57 | E117: 158.73 | F117: 157.47 | G117: 155.63 | H117: 161.83 | I117: 163.67 | J117: 164.93 | K117: 162.4 | L117: 159.3 | M117: 17.79037
A118: 108 | B118: COALINDIA | C118: 190.7 | D118: 191.63 | E118: 188.32 | F118: 185.93 | G118: 182.62 | H118: 194.02 | I118: 197.33 | J118: 199.72 | K118: 194.95 | L118: 189.25 | M118: 165.17664
A119: 109 | B119: COCHINSHIP | C119: 361.35 | D119: 362.55 | E119: 359.30 | F119: 357.25 | G119: 354.00 | H119: 364.60 | I119: 367.85 | J119: 369.90 | K119: 365.8 | L119: 360.5 | M119: 1.84615
A120: 110 | B120: COFORGE | C120: 5448.95 | D120: 5427.00 | E120: 5355.00 | F120: 5261.05 | G120: 5189.05 | H120: 5520.95 | I120: 5592.95 | J120: 5686.90 | K120: 5499 | L120: 5333.05 | M120: 2.32968
A121: 111 | B121: COLPAL | C121: 1688.35 | D121: 1687.98 | E121: 1681.02 | F121: 1673.68 | G121: 1666.72 | H121: 1695.32 | I121: 1702.28 | J121: 1709.62 | K121: 1694.95 | L121: 1680.65 | M121: 1.66905
A122: 112 | B122: CAMS | C122: 3108.05 | D122: 3115.07 | E122: 3085.13 | F122: 3062.22 | G122: 3032.28 | H122: 3137.98 | I122: 3167.92 | J122: 3190.83 | K122: 3145 | L122: 3092.15 | M122: 2.21699
A123: 113 | B123: CONCOR | C123: 694.95 | D123: 697.13 | E123: 688.97 | F123: 682.98 | G123: 674.82 | H123: 703.12 | I123: 711.28 | J123: 717.27 | K123: 705.3 | L123: 691.15 | M123: 16.38029
A124: 114 | B124: COROMANDEL | C124: 857.8 | D124: 858.07 | E124: 841.23 | F124: 824.67 | G124: 807.83 | H124: 874.63 | I124: 891.47 | J124: 908.03 | K124: 874.9 | L124: 841.5 | M124: 14.52929
A125: 115 | B125: CREDITACC | C125: 673.4 | D125: 667.10 | E125: 658.70 | F125: 644.00 | G125: 635.60 | H125: 681.80 | I125: 690.20 | J125: 704.90 | K125: 675.5 | L125: 652.4 | M125: 0.87464
A126: 116 | B126: CROMPTON | C126: 478.9 | D126: 478.10 | E126: 473.25 | F126: 467.60 | G126: 462.75 | H126: 483.75 | I126: 488.60 | J126: 494.25 | K126: 482.95 | L126: 472.45 | M126: 6.29388
A127: 117 | B127: CUMMINSIND | C127: 896.9 | D127: 895.07 | E127: 887.43 | F127: 877.97 | G127: 870.33 | H127: 904.53 | I127: 912.17 | J127: 921.63 | K127: 902.7 | L127: 885.6 | M127: 9.78399
A128: 118 | B128: CYIENT | C128: 1091.15 | D128: 1093.25 | E128: 1077.90 | F128: 1064.65 | G128: 1049.30 | H128: 1106.50 | I128: 1121.85 | J128: 1135.10 | K128: 1108.6 | L128: 1080 | M128: 4.15979
A129: 119 | B129: DCBBANK | C129: 90.45 | D129: 90.52 | E129: 90.03 | F129: 89.62 | G129: 89.13 | H129: 90.93 | I129: 91.42 | J129: 91.83 | K129: 91 | L129: 90.1 | M129: 9.35675
A130: 120 | B130: DCMSHRIRAM | C130: 1182.15 | D130: 1187.47 | E130: 1164.68 | F130: 1147.22 | G130: 1124.43 | H130: 1204.93 | I130: 1227.72 | J130: 1245.18 | K130: 1210.25 | L130: 1170 | M130: 0.75625
A131: 121 | B131: DLF | C131: 422.6 | D131: 421.88 | E131: 414.87 | F131: 407.13 | G131: 400.12 | H131: 429.62 | I131: 436.63 | J131: 444.37 | K131: 428.9 | L131: 414.15 | M131: 168.71779
A132: 122 | B132: DABUR | C132: 615.15 | D132: 616.32 | E132: 613.23 | F132: 611.32 | G132: 608.23 | H132: 618.23 | I132: 621.32 | J132: 623.23 | K132: 619.4 | L132: 614.4 | M132: 12.28502
A133: 123 | B133: DALBHARAT | C133: 2093 | D133: 2094.48 | E133: 2064.32 | F133: 2035.63 | G133: 2005.47 | H133: 2123.17 | I133: 2153.33 | J133: 2182.02 | K133: 2124.65 | L133: 2065.8 | M133: 2.47925
A134: 124 | B134: DEEPAKNTR | C134: 2868.4 | D134: 2881.23 | E134: 2819.22 | F134: 2770.03 | G134: 2708.02 | H134: 2930.42 | I134: 2992.43 | J134: 3041.62 | K134: 2943.25 | L134: 2832.05 | M134: 23.06692
A135: 125 | B135: DELTACORP | C135: 269.65 | D135: 270.35 | E135: 266.30 | F135: 262.95 | G135: 258.90 | H135: 273.70 | I135: 277.75 | J135: 281.10 | K135: 274.4 | L135: 267 | M135: 50.19084
A136: 126 | B136: DHANI | C136: 196.25 | D136: 196.07 | E136: 191.43 | F136: 186.62 | G136: 181.98 | H136: 200.88 | I136: 205.52 | J136: 210.33 | K136: 200.7 | L136: 191.25 | M136: 36.76043
A137: 127 | B137: DHANUKA | C137: 813.4 | D137: 815.58 | E137: 808.82 | F137: 804.23 | G137: 797.47 | H137: 820.17 | I137: 826.93 | J137: 831.52 | K137: 822.35 | L137: 811 | M137: 0.37105
A138: 128 | B138: DBL | C138: 671.05 | D138: 665.35 | E138: 641.70 | F138: 612.35 | G138: 588.70 | H138: 694.70 | I138: 718.35 | J138: 747.70 | K138: 689 | L138: 636 | M138: 27.44825
A139: 129 | B139: DISHTV | C139: 19.85 | D139: 19.98 | E139: 19.42 | F139: 18.98 | G139: 18.42 | H139: 20.42 | I139: 20.98 | J139: 21.42 | K139: 20.55 | L139: 19.55 | M139: 107.3926
A140: 130 | B140: DCAL | C140: 247.65 | D140: 250.68 | E140: 241.67 | F140: 235.68 | G140: 226.67 | H140: 256.67 | I140: 265.68 | J140: 271.67 | K140: 259.7 | L140: 244.7 | M140: 34.28163
A141: 131 | B141: DIVISLAB | C141: 5097.85 | D141: 5107.37 | E141: 5052.68 | F141: 5007.52 | G141: 4952.83 | H141: 5152.53 | I141: 5207.22 | J141: 5252.38 | K141: 5162.05 | L141: 5062.2 | M141: 3.14433
A142: 132 | B142: DIXON | C142: 4865.8 | D142: 4887.60 | E142: 4813.20 | F142: 4760.60 | G142: 4686.20 | H142: 4940.20 | I142: 5014.60 | J142: 5067.20 | K142: 4962 | L142: 4835 | M142: 2.88641
A143: 133 | B143: LALPATHLAB | C143: 3686.45 | D143: 3714.57 | E143: 3645.93 | F143: 3605.42 | G143: 3536.78 | H143: 3755.08 | I143: 3823.72 | J143: 3864.23 | K143: 3783.2 | L143: 3674.05 | M143: 2.01976
A144: 134 | B144: DRREDDY | C144: 4891.1 | D144: 4921.32 | E144: 4852.73 | F144: 4814.37 | G144: 4745.78 | H144: 4959.68 | I144: 5028.27 | J144: 5066.63 | K144: 4989.9 | L144: 4882.95 | M144: 3.43974
A145: 135 | B145: EIDPARRY | C145: 435.7 | D145: 437.90 | E145: 429.80 | F145: 423.90 | G145: 415.80 | H145: 443.80 | I145: 451.90 | J145: 457.80 | K145: 446 | L145: 432 | M145: 2.35397
A146: 136 | B146: EIHOTEL | C146: 136.75 | D146: 135.73 | E146: 133.97 | F146: 131.18 | G146: 129.42 | H146: 138.52 | I146: 140.28 | J146: 143.07 | K146: 137.5 | L146: 132.95 | M146: 11.95341
A147: 137 | B147: EPL | C147: 240.15 | D147: 239.85 | E147: 237.80 | F147: 235.45 | G147: 233.40 | H147: 242.20 | I147: 244.25 | J147: 246.60 | K147: 241.9 | L147: 237.5 | M147: 1.47574
A148: 138 | B148: EDELWEISS | C148: 79.55 | D148: 79.88 | E148: 78.87 | F148: 78.18 | G148: 77.17 | H148: 80.57 | I148: 81.58 | J148: 82.27 | K148: 80.9 | L148: 79.2 | M148: 13.65775
A149: 139 | B149: EICHERMOT | C149: 2820.95 | D149: 2808.65 | E149: 2758.40 | F149: 2695.85 | G149: 2645.60 | H149: 2871.20 | I149: 2921.45 | J149: 2984.00 | K149: 2858.9 | L149: 2746.1 | M149: 8.97524
A150: 140 | B150: ELGIEQUIP | C150: 201.75 | D150: 202.78 | E150: 199.92 | F150: 198.08 | G150: 195.22 | H150: 204.62 | I150: 207.48 | J150: 209.32 | K150: 205.65 | L150: 200.95 | M150: 0.81421
A151: 141 | B151: EMAMILTD | C151: 545.55 | D151: 547.58 | E151: 539.82 | F151: 534.08 | G151: 526.32 | H151: 553.32 | I151: 561.08 | J151: 566.82 | K151: 555.35 | L151: 541.85 | M151: 10.20307
A152: 142 | B152: ENDURANCE | C152: 1605.45 | D152: 1615.82 | E152: 1582.63 | F152: 1559.82 | G152: 1526.63 | H152: 1638.63 | I152: 1671.82 | J152: 1694.63 | K152: 1649 | L152: 1593 | M152: 0.81325
A153: 143 | B153: ENGINERSIN | C153: 77.65 | D153: 77.43 | E153: 76.77 | F153: 75.88 | G153: 75.22 | H153: 78.32 | I153: 78.98 | J153: 79.87 | K153: 78.1 | L153: 76.55 | M153: 17.95588
A154: 144 | B154: EQUITAS | C154: 122.1 | D154: 122.65 | E154: 120.50 | F154: 118.90 | G154: 116.75 | H154: 124.25 | I154: 126.40 | J154: 128.00 | K154: 124.8 | L154: 121.05 | M154: 4.16431
A155: 145 | B155: ERIS | C155: 762.9 | D155: 758.00 | E155: 748.00 | F155: 733.10 | G155: 723.10 | H155: 772.90 | I155: 782.90 | J155: 797.80 | K155: 768 | L155: 743.1 | M155: 0.61761
A156: 146 | B156: ESCORTS | C156: 1514.65 | D156: 1498.03 | E156: 1476.07 | F156: 1437.48 | G156: 1415.52 | H156: 1536.62 | I156: 1558.58 | J156: 1597.17 | K156: 1520 | L156: 1459.45 | M156: 10.7994
A157: 147 | B157: EXIDEIND | C157: 184.2 | D157: 183.43 | E157: 181.07 | F157: 177.93 | G157: 175.57 | H157: 186.57 | I157: 188.93 | J157: 192.07 | K157: 185.8 | L157: 180.3 | M157: 74.75317
A158: 148 | B158: FDC | C158: 355.45 | D158: 356.00 | E158: 353.55 | F158: 351.65 | G158: 349.20 | H158: 357.90 | I158: 360.35 | J158: 362.25 | K158: 358.45 | L158: 354.1 | M158: 0.78881
A159: 149 | B159: FEDERALBNK | C159: 85.45 | D159: 85.57 | E159: 84.68 | F159: 83.92 | G159: 83.03 | H159: 86.33 | I159: 87.22 | J159: 87.98 | K159: 86.45 | L159: 84.8 | M159: 117.19207
A160: 150 | B160: FINEORG | C160: 3457.55 | D160: 3449.57 | E160: 3422.28 | F160: 3387.02 | G160: 3359.73 | H160: 3484.83 | I160: 3512.12 | J160: 3547.38 | K160: 3476.85 | L160: 3414.3 | M160: 0.25677
A161: 151 | B161: FINCABLES | C161: 505.1 | D161: 504.43 | E161: 495.87 | F161: 486.63 | G161: 478.07 | H161: 513.67 | I161: 522.23 | J161: 531.47 | K161: 513 | L161: 495.2 | M161: 1.60011
A162: 152 | B162: FINPIPE | C162: 234.45 | D162: 232.95 | E162: 230.00 | F162: 225.55 | G162: 222.60 | H162: 237.40 | I162: 240.35 | J162: 244.80 | K162: 235.9 | L162: 228.5 | M162: 10.16184
A163: 153 | B163: FSL | C163: 206.65 | D163: 205.82 | E163: 200.83 | F163: 195.02 | G163: 190.03 | H163: 211.63 | I163: 216.62 | J163: 222.43 | K163: 210.8 | L163: 200 | M163: 125.78874
A164: 154 | B164: FORTIS | C164: 274.4 | D164: 276.20 | E164: 271.20 | F164: 268.00 | G164: 263.00 | H164: 279.40 | I164: 284.40 | J164: 287.60 | K164: 281.2 | L164: 273 | M164: 11.55868
A165: 155 | B165: FCONSUMER | C165: 7.45 | D165: 7.50 | E165: 7.35 | F165: 7.25 | G165: 7.10 | H165: 7.60 | I165: 7.75 | J165: 7.85 | K165: 7.65 | L165: 7.4 | M165: 79.06531
A166: 156 | B166: FRETAIL | C166: 52 | D166: 52.03 | E166: 51.32 | F166: 50.63 | G166: 49.92 | H166: 52.72 | I166: 53.43 | J166: 54.12 | K166: 52.75 | L166: 51.35 | M166: 19.72279
A167: 157 | B167: GAIL | C167: 159.65 | D167: 162.35 | E167: 156.20 | F167: 152.75 | G167: 146.60 | H167: 165.80 | I167: 171.95 | J167: 175.40 | K167: 168.5 | L167: 158.9 | M167: 190.95386
A168: 158 | B168: GEPIL | C168: 304.95 | D168: 305.97 | E168: 302.98 | F168: 301.02 | G168: 298.03 | H168: 307.93 | I168: 310.92 | J168: 312.88 | K168: 308.95 | L168: 304 | M168: 0.49087
A169: 159 | B169: GMMPFAUDLR | C169: 4687.1 | D169: 4709.07 | E169: 4638.13 | F169: 4589.17 | G169: 4518.23 | H169: 4758.03 | I169: 4828.97 | J169: 4877.93 | K169: 4780 | L169: 4660.1 | M169: 0.40397
A170: 160 | B170: GMRINFRA | C170: 39.9 | D170: 40.13 | E170: 39.32 | F170: 38.73 | G170: 37.92 | H170: 40.72 | I170: 41.53 | J170: 42.12 | K170: 40.95 | L170: 39.55 | M170: 197.82082
A171: 161 | B171: GALAXYSURF | C171: 3394.75 | D171: 3391.58 | E171: 3338.17 | F171: 3281.58 | G171: 3228.17 | H171: 3448.17 | I171: 3501.58 | J171: 3558.17 | K171: 3445 | L171: 3335 | M171: 0.35421
A172: 162 | B172: GRSE | C172: 211.8 | D172: 207.87 | E172: 201.83 | F172: 191.87 | G172: 185.83 | H172: 217.83 | I172: 223.87 | J172: 233.83 | K172: 213.9 | L172: 197.9 | M172: 18.68928
A173: 163 | B173: GARFIBRES | C173: 3485.35 | D173: 3486.12 | E173: 3435.23 | F173: 3385.12 | G173: 3334.23 | H173: 3536.23 | I173: 3587.12 | J173: 3637.23 | K173: 3537 | L173: 3436 | M173: 0.18497
A174: 164 | B174: GICRE | C174: 145.65 | D174: 146.05 | E174: 143.30 | F174: 140.95 | G174: 138.20 | H174: 148.40 | I174: 151.15 | J174: 153.50 | K174: 148.8 | L174: 143.7 | M174: 10.45546
A175: 165 | B175: GILLETTE | C175: 5850.7 | D175: 5857.57 | E175: 5825.13 | F175: 5799.57 | G175: 5767.13 | H175: 5883.13 | I175: 5915.57 | J175: 5941.13 | K175: 5890 | L175: 5832 | M175: 0.03308
A176: 166 | B176: GLAND | C176: 3882.6 | D176: 3905.90 | E176: 3837.95 | F176: 3793.30 | G176: 3725.35 | H176: 3950.55 | I176: 4018.50 | J176: 4063.15 | K176: 3973.85 | L176: 3861.25 | M176: 1.21557
A177: 167 | B177: GLAXO | C177: 1483.5 | D177: 1492.83 | E177: 1470.67 | F177: 1457.83 | G177: 1435.67 | H177: 1505.67 | I177: 1527.83 | J177: 1540.67 | K177: 1515 | L177: 1480 | M177: 0.60486
A178: 168 | B178: GLENMARK | C178: 517.35 | D178: 513.72 | E178: 508.93 | F178: 500.52 | G178: 495.73 | H178: 522.13 | I178: 526.92 | J178: 535.33 | K178: 518.5 | L178: 505.3 | M178: 10.43667
A179: 169 | B179: GODFRYPHLP | C179: 1278.8 | D179: 1274.68 | E179: 1254.42 | F179: 1230.03 | G179: 1209.77 | H179: 1299.07 | I179: 1319.33 | J179: 1343.72 | K179: 1294.95 | L179: 1250.3 | M179: 0.51393
A180: 170 | B180: GODREJAGRO | C180: 629.65 | D180: 629.63 | E180: 624.42 | F180: 619.18 | G180: 613.97 | H180: 634.87 | I180: 640.08 | J180: 645.32 | K180: 634.85 | L180: 624.4 | M180: 0.9412
A181: 171 | B181: GODREJCP | C181: 1029 | D181: 1025.48 | E181: 1017.37 | F181: 1005.73 | G181: 997.62 | H181: 1037.12 | I181: 1045.23 | J181: 1056.87 | K181: 1033.6 | L181: 1013.85 | M181: 5.28402
A182: 172 | B182: GODREJIND | C182: 576.05 | D182: 573.60 | E182: 569.15 | F182: 562.25 | G182: 557.80 | H182: 580.50 | I182: 584.95 | J182: 591.85 | K182: 578.05 | L182: 566.7 | M182: 2.15077
A183: 173 | B183: GODREJPROP | C183: 2476.8 | D183: 2427.75 | E183: 2357.50 | F183: 2238.20 | G183: 2167.95 | H183: 2547.05 | I183: 2617.30 | J183: 2736.60 | K183: 2498 | L183: 2308.45 | M183: 38.23955
A184: 174 | B184: GRANULES | C184: 329.75 | D184: 327.28 | E184: 323.22 | F184: 316.68 | G184: 312.62 | H184: 333.82 | I184: 337.88 | J184: 344.42 | K184: 331.35 | L184: 320.75 | M184: 19.77005
A185: 175 | B185: GRAPHITE | C185: 607.3 | D185: 609.97 | E185: 602.93 | F185: 598.57 | G185: 591.53 | H185: 614.33 | I185: 621.37 | J185: 625.73 | K185: 617 | L185: 605.6 | M185: 5.11028
A186: 176 | B186: GRASIM | C186: 1592 | D186: 1603.00 | E186: 1579.00 | F186: 1566.00 | G186: 1542.00 | H186: 1616.00 | I186: 1640.00 | J186: 1653.00 | K186: 1627 | L186: 1590 | M186: 32.03275
A187: 177 | B187: GESHIP | C187: 369.15 | D187: 371.67 | E187: 364.58 | F187: 360.02 | G187: 352.93 | H187: 376.23 | I187: 383.32 | J187: 387.88 | K187: 378.75 | L187: 367.1 | M187: 5.05279
A188: 178 | B188: GREAVESCOT | C188: 138.45 | D188: 139.05 | E188: 137.40 | F188: 136.35 | G188: 134.70 | H188: 140.10 | I188: 141.75 | J188: 142.80 | K188: 140.7 | L188: 138 | M188: 10.30538
A189: 179 | B189: GRINDWELL | C189: 1480.35 | D189: 1476.78 | E189: 1453.57 | F189: 1426.78 | G189: 1403.57 | H189: 1503.57 | I189: 1526.78 | J189: 1553.57 | K189: 1500 | L189: 1450 | M189: 1.92947
A190: 180 | B190: GUJALKALI | C190: 787.85 | D190: 787.92 | E190: 772.93 | F190: 758.02 | G190: 743.03 | H190: 802.83 | I190: 817.82 | J190: 832.73 | K190: 802.9 | L190: 773 | M190: 6.56376
A191: 181 | B191: GAEL | C191: 169 | D191: 169.03 | E191: 167.37 | F191: 165.73 | G191: 164.07 | H191: 170.67 | I191: 172.33 | J191: 173.97 | K191: 170.7 | L191: 167.4 | M191: 2.78774
A192: 182 | B192: FLUOROCHEM | C192: 2038.6 | D192: 2046.22 | E192: 2012.48 | F192: 1986.37 | G192: 1952.63 | H192: 2072.33 | I192: 2106.07 | J192: 2132.18 | K192: 2079.95 | L192: 2020.1 | M192: 0.68992
A193: 183 | B193: GUJGASLTD | C193: 635.35 | D193: 633.35 | E193: 626.70 | F193: 618.05 | G193: 611.40 | H193: 642.00 | I193: 648.65 | J193: 657.30 | K193: 640 | L193: 624.7 | M193: 21.68577
A194: 184 | B194: GNFC | C194: 484.25 | D194: 486.48 | E194: 475.27 | F194: 466.28 | G194: 455.07 | H194: 495.47 | I194: 506.68 | J194: 515.67 | K194: 497.7 | L194: 477.5 | M194: 17.10385
A195: 185 | B195: GPPL | C195: 105.25 | D195: 105.98 | E195: 103.97 | F195: 102.68 | G195: 100.67 | H195: 107.27 | I195: 109.28 | J195: 110.57 | K195: 108 | L195: 104.7 | M195: 4.20305
A196: 186 | B196: GSFC | C196: 137.55 | D196: 138.68 | E196: 135.42 | F196: 133.28 | G196: 130.02 | H196: 140.82 | I196: 144.08 | J196: 146.22 | K196: 141.95 | L196: 136.55 | M196: 32.11964
A197: 187 | B197: GSPL | C197: 324.6 | D197: 324.67 | E197: 320.53 | F197: 316.47 | G197: 312.33 | H197: 328.73 | I197: 332.87 | J197: 336.93 | K197: 328.8 | L197: 320.6 | M197: 15.22537
A198: 188 | B198: GULFOILLUB | C198: 589.95 | D198: 589.82 | E198: 586.08 | F198: 582.22 | G198: 578.48 | H198: 593.68 | I198: 597.42 | J198: 601.28 | K198: 593.55 | L198: 585.95 | M198: 0.56928
A199: 189 | B199: HEG | C199: 2505.55 | D199: 2514.75 | E199: 2430.80 | F199: 2356.05 | G199: 2272.10 | H199: 2589.50 | I199: 2673.45 | J199: 2748.20 | K199: 2598.7 | L199: 2440 | M199: 2.11248
A200: 190 | B200: HCLTECH | C200: 1306.3 | D200: 1302.73 | E200: 1287.62 | F200: 1268.93 | G200: 1253.82 | H200: 1321.42 | I200: 1336.53 | J200: 1355.22 | K200: 1317.85 | L200: 1284.05 | M200: 24.21641
A201: 191 | B201: HDFCAMC | C201: 2908.85 | D201: 2911.45 | E201: 2902.40 | F201: 2895.95 | G201: 2886.90 | H201: 2917.90 | I201: 2926.95 | J201: 2933.40 | K201: 2920.5 | L201: 2905 | M201: 2.88775
A202: 192 | B202: HDFCBANK | C202: 1610.5 | D202: 1615.07 | E202: 1602.43 | F202: 1594.37 | G202: 1581.73 | H202: 1623.13 | I202: 1635.77 | J202: 1643.83 | K202: 1627.7 | L202: 1607 | M202: 56.32862
A203: 193 | B203: HDFCLIFE | C203: 725.35 | D203: 725.67 | E203: 718.98 | F203: 712.62 | G203: 705.93 | H203: 732.03 | I203: 738.72 | J203: 745.08 | K203: 732.35 | L203: 719.3 | M203: 24.5397
A204: 194 | B204: HFCL | C204: 79.25 | D204: 79.63 | E204: 78.27 | F204: 77.28 | G204: 75.92 | H204: 80.62 | I204: 81.98 | J204: 82.97 | K204: 81 | L204: 78.65 | M204: 21.19318
A205: 195 | B205: HAPPSTMNDS | C205: 1383.85 | D205: 1383.62 | E205: 1368.23 | F205: 1352.62 | G205: 1337.23 | H205: 1399.23 | I205: 1414.62 | J205: 1430.23 | K205: 1399 | L205: 1368 | M205: 1.53337
A206: 196 | B206: HATSUN | C206: 1468.25 | D206: 1458.55 | E206: 1437.45 | F206: 1406.65 | G206: 1385.55 | H206: 1489.35 | I206: 1510.45 | J206: 1541.25 | K206: 1479.65 | L206: 1427.75 | M206: 1.44458
... 321 more rows

Sheet Bulk Deals
E6: Back To Main Page
A7: Subject : | B7: BULK DEAL | D7: =Main!B10 -> 2021-10-08
A9: Date | B9: Scrip code | C9: Scrip Name | D9: Client Name | E9: Buy / Sell | F9: Quantity Traded | G9: Trade Price / Wt.Avg.trade price | H9: Exchange
A10: 2021-10-07 | B10: 540615 | C10: 7NR | D10: BHATI SHANI | E10: BUY | F10: 12,003 | G10: 11.37 | H10: BSE
A11: 2021-10-07 | B11: 540615 | C11: 7NR | D11: BHATI SHANI | E11: SELL | F11: 136,050 | G11: 11.37 | H11: BSE
A12: 2021-10-07 | B12: 540615 | C12: 7NR | D12: SUNIL KUMAR CHORDIA | E12: BUY | F12: 92,875 | G12: 11.37 | H12: BSE
A13: 2021-10-07 | B13: 538778 | C13: AKASHDEEP | D13: DANVIR SINGH | E13: BUY | F13: 55,970 | G13: 52.25 | H13: BSE
A14: 2021-10-07 | B14: 538778 | C14: AKASHDEEP | D14: DANVIR SINGH | E14: SELL | F14: 55,970 | G14: 53.12 | H14: BSE
A15: 2021-10-07 | B15: 538778 | C15: AKASHDEEP | D15: DHANANJAY MALIK | E15: SELL | F15: 95,000 | G15: 52.31 | H15: BSE
A16: 2021-10-07 | B16: 531991 | C16: AMRAAGRI | D16: ABHINAV ANAND | E16: BUY | F16: 738,366 | G16: 0.41 | H16: BSE
A17: 2021-10-07 | B17: 530109 | C17: ANUPAM | D17: MANSUKH VALJI BORICHA | E17: SELL | F17: 1,500,000 | G17: 2.6 | H17: BSE
A18: 2021-10-07 | B18: 531297 | C18: ARTEFACT | D18: CHANDAN TOTARAM SIDHWANI | E18: SELL | F18: 61,625 | G18: 45.54 | H18: BSE
A19: 2021-10-07 | B19: 539032 | C19: FRASER | D19: SAMIRKUMAR SUMANLAL GANDHI | E19: BUY | F19: 50,000 | G19: 10.41 | H19: BSE
A20: 2021-10-07 | B20: 540266 | C20: GLCL | D20: PRITI DEEPAK RATHI | E20: SELL | F20: 19,200 | G20: 32.59 | H20: BSE
A21: 2021-10-07 | B21: 540266 | C21: GLCL | D21: SRIDHARAN AYYUVAIYEN | E21: BUY | F21: 16,254 | G21: 32.64 | H21: BSE
A22: 2021-10-07 | B22: 540266 | C22: GLCL | D22: RAJESH JOSHI | E22: SELL | F22: 37,500 | G22: 33.5 | H22: BSE
A23: 2021-10-07 | B23: 540266 | C23: GLCL | D23: RAMA KRISHNA MITTINTI | E23: BUY | F23: 43,359 | G23: 33.46 | H23: BSE
A24: 2021-10-07 | B24: 531913 | C24: GOPAIST | D24: SHARAD KANAYALAL SHAH | E24: SELL | F24: 28,000 | G24: 7.2 | H24: BSE
A25: 2021-10-07 | B25: 536868 | C25: INTELSOFT | D25: CHIMMAN LAL AGRAWAL | E25: SELL | F25: 100,000 | G25: 54.72 | H25: BSE
A26: 2021-10-07 | B26: 536868 | C26: INTELSOFT | D26: ALPHA LEON ENTERPRISES LLP | E26: BUY | F26: 200,011 | G26: 54.14 | H26: BSE
A27: 2021-10-07 | B27: 536868 | C27: INTELSOFT | D27: ALPHA LEON ENTERPRISES LLP | E27: SELL | F27: 11 | G27: 59.14 | H27: BSE
A28: 2021-10-07 | B28: 539910 | C28: KOCL | D28: BASANT MARKETING PRIVATE LIMITED | E28: SELL | F28: 111,212 | G28: 3.97 | H28: BSE
A29: 2021-10-07 | B29: 534422 | C29: LOOKS | D29: MANSI SHARE & STOCK ADVISORS PRIVATE LIMITED | E29: BUY | F29: 58,084 | G29: 29 | H29: BSE
A30: 2021-10-07 | B30: 539767 | C30: MNIL | D30: KABIR SHRAN DAGAR | E30: BUY | F30: 2,306 | G30: 13.96 | H30: BSE
A31: 2021-10-07 | B31: 539767 | C31: MNIL | D31: KABIR SHRAN DAGAR | E31: SELL | F31: 30,825 | G31: 14.14 | H31: BSE
A32: 2021-10-07 | B32: 541206 | C32: OBCL | D32: VIBHUTI COMMODITIES PRIVATE LIMITED | E32: SELL | F32: 110,000 | G32: 105.85 | H32: BSE
A33: 2021-10-07 | B33: 539291 | C33: OZONEWORLD | D33: KAMAL SINGH MEHTA | E33: BUY | F33: 20,000 | G33: 7.83 | H33: BSE
A34: 2021-10-07 | B34: 538860 | C34: PANAFIC | D34: NEERAJ PAL BALYAN | E34: SELL | F34: 1,247,685 | G34: 0.38 | H34: BSE
A35: 2021-10-07 | B35: 543363 | C35: PREVEST | D35: EQUITYINTELLIGENCEINDIA PRIVATELIMITED | E35: BUY | F35: 92,800 | G35: 228.91 | H35: BSE
A36: 2021-10-07 | B36: 501314 | C36: PRISMX | D36: SHANKARLAL KUMHAR | E36: SELL | F36: 171,645 | G36: 108.45 | H36: BSE
A37: 2021-10-07 | B37: 526861 | C37: RISHILASE | D37: BHARATH CHAMPALAL JAIN | E37: BUY | F37: 66,174 | G37: 14.4 | H37: BSE
A38: 2021-10-07 | B38: 526861 | C38: RISHILASE | D38: RAMANLAL DAHYABHAI PATEL | E38: SELL | F38: 90,949 | G38: 14.36 | H38: BSE
A39: 2021-10-07 | B39: 502448 | C39: ROLLT | D39: ALPHA LEON ENTERPRISES LLP | E39: BUY | F39: 175,122 | G39: 2.42 | H39: BSE
A40: 2021-10-07 | B40: 502448 | C40: ROLLT | D40: ALPHA LEON ENTERPRISES LLP | E40: SELL | F40: 3,134,810 | G40: 2.46 | H40: BSE
A41: 2021-10-07 | B41: 530525 | C41: SHEETAL | D41: ALPHA LEON ENTERPRISES LLP | E41: BUY | F41: 25,202 | G41: 19.01 | H41: BSE
A42: 2021-10-07 | B42: 530525 | C42: SHEETAL | D42: ALPHA LEON ENTERPRISES LLP | E42: SELL | F42: 931 | G42: 19.01 | H42: BSE
A43: 2021-10-07 | B43: 505515 | C43: SHYMINV | D43: GRACEUNITED REAL ESTATE PRIVATE LIMITED | E43: SELL | F43: 188,646 | G43: 27.15 | H43: BSE
A44: 2021-10-07 | B44: 505515 | C44: SHYMINV | D44: NYSSA CORPORATION LIMITED | E44: SELL | F44: 186,000 | G44: 27.15 | H44: BSE
A45: 2021-10-07 | B45: 539217 | C45: SRESTHA | D45: RVB BUSINESS CONSULTANCY SERVICES LLP | E45: SELL | F45: 1,000,000 | G45: 2.51 | H45: BSE
A46: 2021-10-07 | B46: 539217 | C46: SRESTHA | D46: SUNIL BHANDARI | E46: BUY | F46: 1,072,312 | G46: 2.51 | H46: BSE
A47: 2021-10-07 | B47: 539217 | C47: SRESTHA | D47: SUNIL BHANDARI | E47: SELL | F47: 902,952 | G47: 2.54 | H47: BSE
A48: 2021-10-07 | B48: 539217 | C48: SRESTHA | D48: ALPHA LEON ENTERPRISES LLP | E48: BUY | F48: 707,598 | G48: 2.51 | H48: BSE
A49: 2021-10-07 | B49: 539217 | C49: SRESTHA | D49: ALPHA LEON ENTERPRISES LLP | E49: SELL | F49: 86,849 | G49: 2.51 | H49: BSE
A50: 2021-10-07 | B50: 539428 | C50: TEJNAKSH | D50: SREE GANESH CAPLEASE SERVICES PVT. LTD. | E50: BUY | F50: 77,504 | G50: 103.56 | H50: BSE
A51: 2021-10-07 | B51: 539428 | C51: TEJNAKSH | D51: SREE GANESH CAPLEASE SERVICES PVT. LTD. | E51: SELL | F51: 87,504 | G51: 90.45 | H51: BSE
A52: 2021-10-07 | B52: 526638 | C52: TEXELIN | D52: NEW INDIA ASSURANCE CO LTD | E52: SELL | F52: 30,000 | G52: 59.2 | H52: BSE
A53: 2021-10-07 | B53: 526638 | C53: TEXELIN | D53: NAGARAJA NAIDU VADLAMUDI | E53: BUY | F53: 28,108 | G53: 59.15 | H53: BSE
A54: 2021-10-07 | B54: 540210 | C54: TMRVL | D54: BP EQUITIES PVT. LTD. | E54: BUY | F54: 189,730 | G54: 15.4 | H54: BSE
A55: 2021-10-07 | B55: 540210 | C55: TMRVL | D55: BP EQUITIES PVT. LTD. | E55: SELL | F55: 11,356 | G55: 15.2 | H55: BSE
A56: 2021-10-07 | B56: 500426 | C56: UTLINDS | D56: VANRAJ DADBHAI KAHOR | E56: BUY | F56: 54,668 | G56: 10.65 | H56: BSE
A57: 2021-10-07 | B57: 500426 | C57: UTLINDS | D57: VANRAJ DADBHAI KAHOR | E57: SELL | F57: 251,627 | G57: 10.59 | H57: BSE
A58: 2021-10-07 | B58: 513713 | C58: WHITEORG | D58: MANSI SHARE & STOCK ADVISORS PRIVATE LIMITED | E58: BUY | F58: 184,347 | G58: 9.66 | H58: BSE
A59: 2021-10-07 | B59: 513713 | C59: WHITEORG | D59: MANSI SHARE & STOCK ADVISORS PRIVATE LIMITED | E59: SELL | F59: 84,388 | G59: 9.66 | H59: BSE
A60: 2021-10-07 | B60: 513713 | C60: WHITEORG | D60: BP EQUITIES PVT. LTD. | E60: BUY | F60: 280,053 | G60: 9.65 | H60: BSE
A61: 2021-10-07 | B61: 513713 | C61: WHITEORG | D61: BP EQUITIES PVT. LTD. | E61: SELL | F61: 217,700 | G61: 9.62 | H61: BSE
A62: 2021-10-07 | B62: AGROPHOS | C62: Agro Phos India Limited | D62: MUKUL MAHESHWARI (HUF) | E62: BUY | F62: 122,810 | G62: 18.25 | H62: NSE
A63: 2021-10-07 | B63: AJOONI | C63: Ajooni Biotech Limited | D63: JILESH NAVIN CHHEDA | E63: BUY | F63: 51,018 | G63: 61.35 | H63: NSE
A64: 2021-10-07 | B64: ANSALHSG | C64: Ansal Housing and Constru | D64: SHRI MUKTA SHARES | E64: BUY | F64: 314,341 | G64: 6.94 | H64: NSE
A65: 2021-10-07 | B65: DHANBANK | C65: Dhanlaxmi Bank Limited | D65: VRIDHI | E65: BUY | F65: 1,392,385 | G65: 16.86 | H65: NSE
A66: 2021-10-07 | B66: GSS | C66: GSS Infotech Limited | D66: VIKRAMKUMAR KARANRAJ SAKARIA HUF DAKSH CORPORATION | E66: BUY | F66: 87,079 | G66: 81.89 | H66: NSE
A67: 2021-10-07 | B67: LINCOLN | C67: Lincoln Pharma Ltd | D67: SWETSAM STOCK HOLDING PRIVATE LIMITED | E67: BUY | F67: 146,927 | G67: 395.19 | H67: NSE
A68: 2021-10-07 | B68: ORTINLAB | C68: Ortin Laboratories Ltd | D68: ANSARI NAMRA FIRDAUS AAMIR ANJUM | E68: BUY | F68: 127,221 | G68: 32.05 | H68: NSE
A69: 2021-10-07 | B69: RCOM | C69: Reliance Comm. Ltd. | D69: ALPHA LEON ENTERPRISES LLP | E69: BUY | F69: 13,864,151 | G69: 3.26 | H69: NSE
A70: 2021-10-07 | B70: RCOM | C70: Reliance Comm. Ltd. | D70: ANKITA VISHAL SHAH | E70: BUY | F70: 20,724,236 | G70: 3.3 | H70: NSE
A71: 2021-10-07 | B71: ROLLT | C71: Rollatainers Limited | D71: ALPHA LEON ENTERPRISES LLP | E71: BUY | F71: 25,026 | G71: 2.5 | H71: NSE
A72: 2021-10-07 | B72: ROLLT | C72: Rollatainers Limited | D72: NISHITH ATULBHAI SHAH | E72: BUY | F72: 1,867,880 | G72: 2.45 | H72: NSE
A73: 2021-10-07 | B73: TMRVL | C73: The Mandhana Ret Vent Ltd | D73: ARIHANT JAIN | E73: BUY | F73: 133,889 | G73: 14.94 | H73: NSE
A74: 2021-10-07 | B74: TMRVL | C74: The Mandhana Ret Vent Ltd | D74: GAURAV DOSHI | E74: BUY | F74: 322,304 | G74: 15.32 | H74: NSE
A75: 2021-10-07 | B75: TMRVL | C75: The Mandhana Ret Vent Ltd | D75: BP EQUITIES PRIVATE LIMITED | E75: BUY | F75: 2,526 | G75: 15.34 | H75: NSE
A76: 2021-10-07 | B76: VETO | C76: Veto Switchgear Cable Ltd | D76: M T CORPORATION | E76: BUY | F76: 140,731 | G76: 121.87 | H76: NSE
A77: 2021-10-07 | B77: VETO | C77: Veto Switchgear Cable Ltd | D77: OLGA TRADING PRIVATE LIMITED | E77: BUY | F77: 128,236 | G77: 123.08 | H77: NSE
A78: 2021-10-07 | B78: AGROPHOS | C78: Agro Phos India Limited | D78: MUKUL MAHESHWARI (HUF) | E78: SELL | F78: 72,810 | G78: 18.47 | H78: NSE
A79: 2021-10-07 | B79: AIRTEL-RE | C79: Bharti Airtel Limited-RE | D79: VANGUARD EMERGING MARKETS STOCK INDEX FUND A SERIES OF VIEIF | E79: SELL | F79: 2,226,009 | G79: 208.31 | H79: NSE
A80: 2021-10-07 | B80: AIRTEL-RE | C80: Bharti Airtel Limited-RE | D80: VANGUARD TOTAL INTERNATIONAL STOCK INDEX FUND | E80: SELL | F80: 2,098,907 | G80: 208.31 | H80: NSE
A81: 2021-10-07 | B81: AJOONI | C81: Ajooni Biotech Limited | D81: JILESH NAVIN CHHEDA | E81: SELL | F81: 16,822 | G81: 61.79 | H81: NSE
A82: 2021-10-07 | B82: ANSALHSG | C82: Ansal Housing and Constru | D82: SHRI MUKTA SHARES | E82: SELL | F82: 237,172 | G82: 6.8 | H82: NSE
A83: 2021-10-07 | B83: ANSALHSG | C83: Ansal Housing and Constru | D83: HOUSING DEVELOPMENT FINANCE CORPORATION LIMITED | E83: SELL | F83: 737,400 | G83: 6.66 | H83: NSE
A84: 2021-10-07 | B84: CROWN | C84: Crown Lifters Ltd. | D84: MAMAD NANJI KOTADIA | E84: SELL | F84: 16,000 | G84: 157.95 | H84: NSE
A85: 2021-10-07 | B85: DHANBANK | C85: Dhanlaxmi Bank Limited | D85: VRIDHI | E85: SELL | F85: 460,192 | G85: 16.77 | H85: NSE
A86: 2021-10-07 | B86: DSML | C86: Debock Sale Marketing Ltd | D86: SUNIL KALOT | E86: SELL | F86: 48,000 | G86: 54.15 | H86: NSE
A87: 2021-10-07 | B87: DSML | C87: Debock Sale Marketing Ltd | D87: HEMAL ARUNBHAI MEHTA | E87: SELL | F87: 108,000 | G87: 50.66 | H87: NSE
A88: 2021-10-07 | B88: GSS | C88: GSS Infotech Limited | D88: KRUPA BHAVIN SHAH | E88: SELL | F88: 105,000 | G88: 81.25 | H88: NSE
A89: 2021-10-07 | B89: GSS | C89: GSS Infotech Limited | D89: VIKRAMKUMAR KARANRAJ SAKARIA HUF DAKSH CORPORATION | E89: SELL | F89: 63,857 | G89: 84.45 | H89: NSE
A90: 2021-10-07 | B90: LINCOLN | C90: Lincoln Pharma Ltd | D90: SWETSAM STOCK HOLDING PRIVATE LIMITED | E90: SELL | F90: 93,927 | G90: 396.19 | H90: NSE
A91: 2021-10-07 | B91: ORTINLAB | C91: Ortin Laboratories Ltd | D91: ANSARI NAMRA FIRDAUS AAMIR ANJUM | E91: SELL | F91: 19,721 | G91: 32.52 | H91: NSE
A92: 2021-10-07 | B92: ORTINLAB | C92: Ortin Laboratories Ltd | D92: DARSHAN HARISH KARIA | E92: SELL | F92: 47,882 | G92: 28.51 | H92: NSE
A93: 2021-10-07 | B93: RCOM | C93: Reliance Comm. Ltd. | D93: ANKITA VISHAL SHAH | E93: SELL | F93: 16,024,236 | G93: 3.32 | H93: NSE
A94: 2021-10-07 | B94: RCOM | C94: Reliance Comm. Ltd. | D94: ALPHA LEON ENTERPRISES LLP | E94: SELL | F94: 11,264,151 | G94: 3.3 | H94: NSE
A95: 2021-10-07 | B95: ROLLT | C95: Rollatainers Limited | D95: ALPHA LEON ENTERPRISES LLP | E95: SELL | F95: 1,253,494 | G95: 2.47 | H95: NSE
A96: 2021-10-07 | B96: TMRVL | C96: The Mandhana Ret Vent Ltd | D96: BP EQUITIES PRIVATE LIMITED | E96: SELL | F96: 145,886 | G96: 15.2 | H96: NSE
A97: 2021-10-07 | B97: TMRVL | C97: The Mandhana Ret Vent Ltd | D97: GAURAV DOSHI | E97: SELL | F97: 234,704 | G97: 15.14 | H97: NSE
A98: 2021-10-07 | B98: TMRVL | C98: The Mandhana Ret Vent Ltd | D98: ARIHANT JAIN | E98: SELL | F98: 103,911 | G98: 15.31 | H98: NSE
A99: 2021-10-07 | B99: VETO | C99: Veto Switchgear Cable Ltd | D99: OLGA TRADING PRIVATE LIMITED | E99: SELL | F99: 128,236 | G99: 123.66 | H99: NSE
A100: 2021-10-07 | B100: VETO | C100: Veto Switchgear Cable Ltd | D100: M T CORPORATION | E100: SELL | F100: 57,731 | G100: 121.1 | H100: NSE
A101: 2021-10-07 | B101: WALCHANNAG | C101: Walchandnagar Ind. Ltd | D101: VISTRA ITCL INDIA LIMITED | E101: SELL | F101: 400,000 | G101: 55.9 | H101: NSE

Sheet Call Tracker (Equity & F&O)
M5: Back To Main Page
A6: Retail Research Technical Calls & Fundamental Performance Report for the month of Oct-2021
M7: =Main!B10 -> 2021-10-08
B8: Positional Call
A9: Sr.no | B9: Date | D9: Company | E9: Rec | F9: Rec Price | G9: Stop Loss*** | H9: Call Closed At | I9: Target | J9: Remark | K9: Profit / Loss per Share | L9: All charges | M9: Net Gain / Loss % | N9: Status | O9: Closed Date | P9: Market Closing Price
A10: 1 | B10: 2021-09-15 | D10: AKZOINDIA | E10: Buy | F10: 2195 | G10: 2080 | H10: 2,295.00 | I10: 2400-2500 | J10: Part Profit of Rs.100/- | K10: =H10-F10 -> 100 | L10: =(F10*-0.7)/100 -> -15.37 | M10: =(K10+L10)/F10 -> 3.86% | N10: Successful | O10: 2021-09-30 | P10: =VLOOKUP(D10,'MidCap Intra'!B11:C511,2,0) -> 2237.25 | R10: H
A11: 2 | B11: 2021-09-21 | D11: GLAXO | E11: Buy | F11: 1500-1520 | G11: 1395 | I11: 1680-1720 | J11: Open | P11: =VLOOKUP(D11,'MidCap Intra'!B13:C513,2,0) -> 1483.5 | R11: H
A12: 3 | B12: 2021-09-24 | D12: JKCEMENT | E12: Buy | F12: 3130 | G12: 2920 | H12: 3,320.00 | I12: 3500-3600 | J12: Profit of Rs.190-/- | K12: =H12-F12 -> 190 | L12: =(F12*-0.7)/100 -> -21.91 | M12: =(K12+L12)/F12 -> 5.37% | N12: Successful | O12: 2021-10-04 | R12: H
A13: 4 | B13: 2021-09-27 | D13: IGL | E13: Buy | F13: 525-530 | G13: 495 | I13: 580-600 | J13: Open | P13: =VLOOKUP(D13,'MidCap Intra'!B15:C515,2,0) -> 519.2 | R13: H
A14: 5 | B14: 2021-09-27 | D14: CROMPTON | E14: Buy | F14: 472.5 | G14: 445 | H14: 503.00 | I14: 530 | J14: Profit of Rs.30.5/- | K14: =H14-F14 -> 30.5 | L14: =(F14*-0.7)/100 -> -3.31 | M14: =(K14+L14)/F14 -> 5.76% | N14: Successful | O14: 2021-10-01 | R14: H
A15: 6 | B15: 2021-09-27 | D15: DALBHARAT | E15: Buy | F15: 2040 | G15: 1895 | H15: 2,155.00 | I15: 2300-2400 | J15: Part Profit of Rs.115/- | K15: 115 | L15: -14.28 | M15: 4.94% | N15: Successful | O15: 2021-10-01 | P15: =VLOOKUP(D15,'MidCap Intra'!B16:C516,2,0) -> 2093 | R15: N
A16: 7 | B16: 2021-09-27 | D16: ENDURANCE | E16: Buy | F16: 1570-1590 | G16: 1490 | I16: 1750-1800 | J16: Open | P16: =VLOOKUP(D16,'MidCap Intra'!B18:C518,2,0) -> 1605.45 | R16: H
A17: 8 | B17: 2021-09-29 | D17: CAMS | E17: Buy | F17: 3270 | G17: 3140 | H17: 3,025.00 | I17: 3600-3700 | J17: Loss of Rs.245/- | K17: =H17-F17 -> -245 | L17: =(F17*-0.7)/100 -> -22.89 | M17: =(K17+L17)/F17 -> -8.19% | N17: Unsuccessful | O17: 2021-10-01 | R17: H
A18: 9 | B18: 2021-09-29 | D18: INDIACEM | E18: Buy | F18: 191.5 | G18: 178 | H18: 204.50 | I18: 210 | J18: Profit of Rs.13/- | K18: =H18-F18 -> 13 | L18: =(F18*-0.7)/100 -> -1.34 | M18: =(K18+L18)/F18 -> 6.09% | N18: Successful | O18: 2021-10-01 | R18: N
A19: 10 | B19: 2021-10-04 | D19: PIIND | E19: Buy | F19: 3100-3140 | G19: 2980 | I19: 3350-3400 | J19: Open | P19: =VLOOKUP(D19,'MidCap Intra'!B21:C521,2,0) -> 3243.05 | R19: H
A20: 11 | B20: 2021-10-05 | D20: HDFCLIFE | E20: Buy | F20: 715-725 | G20: 660 | I20: 820-850 | J20: Open | P20: =VLOOKUP(D20,'MidCap Intra'!B22:C522,2,0) -> 725.35 | R20: H
A21: 12 | B21: 2021-10-05 | D21: SUDARSCHEM | E21: Buy | F21: 675 | G21: 619 | H21: 708.50 | I21: 780-800 | J21: Part Profit of Rs.33.5/- | K21: =H21-F21 -> 33.5 | L21: =(F21*-0.7)/100 -> -4.73 | M21: =(K21+L21)/F21 -> 4.26% | N21: Successful | O21: 2021-10-06 | P21: =VLOOKUP(D21,'MidCap Intra'!B22:C522,2,0) -> 680.9 | R21: H
A22: 13 | B22: 2021-10-06 | D22: ITC | E22: Buy | F22: 230-233 | G22: 216 | I22: 260-270 | P22: =VLOOKUP(D22,'MidCap Intra'!B24:C524,2,0) -> 232.95
A26: CLBS = Closing Basis ***
A27: Dividend adjusted <> | F27: Reinitiated $
A28: Part book {} | F28: Revised stoploss #
B30: Momentum Call
A31: Sr.no | B31: Date | D31: Company | E31: Rec | F31: Rec Price | G31: Stop Loss | H31: Call Closed At | I31: Target | J31: Remark | K31: Profit / Loss per Share/Lot | L31: All charges | M31: Net Gain / Loss % | N31: Status | O31: Closed Date
A32: 1 | B32: 2021-09-23 | D32: COLPAL | E32: Buy | F32: 1704-1710 | G32: 1670 | I32: 1760-1780 | J32: Open | R32: H
A33: 2 | B33: 2021-10-01 | D33: SUNPHARMA | E33: Buy | F33: 820-824 | G33: 797 | I33: 850-860 | J33: Open | R33: H
A34: 3 | B34: 2021-10-01 | D34: DHANUKA | E34: Buy | F34: 814 | G34: 794 | H34: 832.5 | I34: 845-855 | J34: Profit of Rs.18.5/- | K34: =H34-F34 -> 18.5 | L34: =(F34*-0.7)/100 -> -5.70 | M34: =(K34+L34)/F34 -> 1.57% | N34: Successful | O34: 2021-10-06 | R34: H
A35: 4 | B35: 2021-10-01 | D35: BANKINDIA | E35: Buy | F35: 54.95 | G35: 53 | H35: 56.2 | I35: 58-59 | J35: Profit of Rs.1.25/- | K35: =H35-F35 -> 1.25 | L35: =(F35*-0.07)/100 -> -0.04 | M35: =(K35+L35)/F35 -> 2.20% | N35: Successful | O35: 2021-10-01 | R35: H
A36: 5 | B36: 2021-10-05 | D36: TATACONSUM | E36: Buy | F36: 809.5 | G36: 788 | H36: 830 | I36: 840-850 | J36: Profit of Rs.20.5/- | K36: 20.5 | L36: =(F36*-0.7)/100 -> -5.67 | M36: 1.83% | N36: Successful | O36: 2021-10-06 | R36: H
A37: 6 | B37: 2021-10-05 | D37: BRITANNIA | E37: Buy | F37: 3890 | G37: 3770 | H37: 3992.5 | I37: 4050-4100 | J37: Profit of Rs.102.5/- | K37: 102.5 | L37: =(F37*-0.7)/100 -> -27.23 | M37: 1.93% | N37: Successful | O37: 2021-10-06 | R37: H
A38: 7 | B38: 2021-10-05 | D38: INDIAGLYCO | E38: Buy | F38: 985.5 | G38: 960 | H38: 998 | I38: 1020 | J38: Profit of Rs.12.5/- | K38: =H38-F38 -> 12.5 | L38: =(F38*-0.07)/100 -> -0.69 | M38: =(K38+L38)/F38 -> 1.20% | N38: Successful | O38: 2021-10-05 | R38: N
A39: 8 | B39: 2021-10-07 | D39: MIDHANI | E39: Buy | F39: 192.5 | G39: 186 | H39: 197.25 | I39: 200-203 | J39: Profit of Rs.4.75/- | K39: =H39-F39 -> 4.75 | L39: =(F39*-0.07)/100 -> -0.13 | M39: =(K39+L39)/F39 -> 2.40% | N39: Successful | O39: 2021-10-07
A40: 9 | B40: 2021-10-07 | D40: JBCHEPHARM | E40: Buy | F40: 1800-1808 | G40: 1745 | I40: 1880-1900 | J40: Open
A46: CLBS = Closing Basis *** | H46: *
A47: Dividend adjusted <> | F47: Reinitiated $
F48: Revised stoploss #
A50: Master Trade High Risk
A51: Sr.no | B51: Date | D51: Company | E51: Rec | F51: Rec Price | G51: Stop Loss | H51: Call Closed At | I51: Target | J51: Remark | K51: Profit / Loss per share | L51: All charges | M51: Gain / Loss per Lot | N51: Lot | O51: Status | P51: Closed Date
A52: 1 | B52: 2021-09-30 | D52: HDFCBANK OCT FUT | E52: Buy | F52: 1597.5 | G52: 1575 | H52: 1599 | I52: 1640 | J52: Profit of Rs.1.5/- | K52: =H52-F52 -> 1.5 | L52: =(H52*N52)*0.07% -> 615.62 | M52: =(K52*N52)-L52 -> 209.4 | N52: 550 | O52: Successful | P52: 2021-10-04 | R52: H
A53: 2 | B53: 2021-09-30 | D53: HDFCLIFE OCT FUT | E53: Buy | F53: 727.5 | G53: 717 | H53: 735 | I53: 745 | J53: Profit of Rs.7.5/- | K53: =H53-F53 -> 7.5 | L53: =(H53*N53)*0.07% -> 565.95 | M53: =(K53*N53)-L53 -> 7684.1 | N53: 1100 | O53: Successful | P53: 2021-10-04 | R53: H
A54: 3 | B54: 2021-10-04 | D54: SBILIFE OCT FUT | E54: Buy | F54: 1229 | G54: 1212 | H54: 1243 | I54: 1260-1270 | J54: Profit of Rs.14/- | K54: =H54-F54 -> 14 | L54: =(H54*N54)*0.07% -> 652.58 | M54: =(K54*N54)-L54 -> 9847.4 | N54: 750 | O54: Successful | P54: 2021-10-04 | R54: N
A55: 4 | B55: 2021-10-04 | D55: INFY OCT FUT | E55: Buy | F55: 1674 | G55: 1650 | H55: 1690 | I55: 1720-1730 | J55: Profit of Rs.16/- | K55: =H55-F55 -> 16 | L55: =(H55*N55)*0.07% -> 709.80 | M55: =(K55*N55)-L55 -> 8890.2 | N55: 600 | O55: Successful | P55: 2021-10-05 | R55: H
A56: 5 | B56: 2021-10-04 | D56: ICICIBANK OCT FUT | E56: Buy | F56: 702 | G56: 690 | H56: 708 | I56: 720-722 | J56: Profit of Rs.6/- | K56: 6 | L56: 681.45 | M56: 7568.6 | N56: 1375 | O56: Successful | P56: 2021-10-06 | R56: N
A57: 6 | B57: 2021-10-04 | D57: TVSMOTOR OCT FUT | E57: Buy | F57: 565.5 | G57: 555 | H57: 555 | I57: 585 | J57: Loss of Rs.10.5/- | K57: -10.5 | L57: 543.90 | M57: -15243.9 | N57: 1400 | O57: Unsuccessful | P57: 2021-10-06 | R57: N
A58: 7 | B58: 2021-10-04 | D58: HDFCBANK OCT FUT | E58: Buy | F58: 1590 | G58: 1568 | H58: 1605.5 | I58: 1620-1630 | J58: Profit of Rs.15.5/- | K58: =H58-F58 -> 15.5 | L58: =(H58*N58)*0.07% -> 618.12 | M58: =(K58*N58)-L58 -> 7906.9 | N58: 550 | O58: Successful | P58: 2021-10-06 | R58: H
A59: 8 | B59: 2021-10-05 | D59: HDFCLIFE OCT FUT | E59: Buy | F59: 726.5 | G59: 715 | H59: 737.5 | I59: 745 | J59: Profit of Rs.11/- | K59: =H59-F59 -> 11 | L59: =(H59*N59)*0.07% -> 567.88 | M59: =(K59*N59)-L59 -> 11532.1 | N59: 1100 | O59: Successful | P59: 2021-10-05 | R59: H
A60: 9 | B60: 2021-10-05 | D60: LT OCT FUT | E60: Buy | F60: 1721 | G60: 1698 | H60: 1737 | I60: 1760-1770 | J60: Profit of Rs.16/- | K60: 16 | L60: 699.14 | M60: 8500.9 | N60: 575 | O60: Successful | P60: 2021-10-06 | R60: N
A61: 10 | B61: 2021-10-06 | D61: SBILIFE OCT FUT | E61: Buy | F61: 1251 | G61: 1232 | H61: 1232 | I61: 1280-1290 | J61: Loss of Rs.19/- | K61: =H61-F61 -> -19 | L61: =(H61*N61)*0.07% -> 646.80 | M61: =(K61*N61)-L61 -> -14896.8 | N61: 750 | O61: Unsuccessful | P61: 2021-10-06
A62: 11 | B62: 2021-10-06 | D62: HINDUNILVR OCT FUT | E62: Buy | F62: 2690-2695 | G62: 2650 | I62: 2760-2790 | J62: Open
A63: 12 | B63: 2021-10-06 | D63: BRITANNIA OCT FUT | E63: Buy | F63: 3948-3952 | G63: 3880 | I63: 4050-4070 | J63: Open
A64: 13 | B64: 2021-10-06 | D64: HDFCLIFE OCT FUT | E64: Buy | F64: 726.5 | G64: 715 | H64: 735.5 | I64: 745 | J64: Profit of Rs.9/- | K64: =H64-F64 -> 9 | L64: =(H64*N64)*0.07% -> 566.34 | M64: =(K64*N64)-L64 -> 9333.7 | N64: 1100 | O64: Successful | P64: 2021-10-07
A65: 14 | B65: 2021-10-07 | D65: GRASIM OCT FUT | E65: Buy | F65: 1616-1620 | G65: 1594 | I65: 1650-1660 | J65: Open
A66: 15 | B66: 2021-10-07 | D66: ICICIPRULI OCT FUT | E66: Buy | F66: 686-687 | G66: 679 | I66: 700 | J66: Open
A73: Master Trade Medium Risk
A74: Sr.no | B74: Date | D74: Company | E74: Rec | F74: Rec Price | G74: Stop Loss | H74: Call Closed At | I74: Target | J74: Remark | K74: Profit/ Loss per lot | L74: All charges | M74: Gain / Loss per Lot | N74: Lot | O74: Status | P74: Closed Date
A75: 1 | B75: 2021-10-04 | D75: RELIANCE 2600 CE OCT | E75: Buy | F75: 69 | G75: 55 | H75: 79.5 | I75: 90-95 | J75: Profit of Rs.10.5/- | K75: =H75-F75 -> 10.50 | L75: 100.00 | M75: =(K75*N75)-100 -> 2525 | N75: 250 | O75: Successful | P75: 2021-10-06 | R75: H
A76: 2 | B76: 2021-10-04 | D76: BANKNIFTY 37500 PE 07- OCT | E76: Sell | F76: 290 | G76: 444 | H76: 220 | I76: 0.1 | J76: Profit of Rs.70/- | K76: 70.00 | L76: 100.00 | M76: =(K76*N76)-100 -> 1650 | N76: 25 | O76: Successful | P76: 2021-10-05 | R76: H
A77: 3 | B77: 2021-10-06 | D77: RELIANCE 2600 CE OCT | E77: Buy | F77: 64-66 | G77: 45 | I77: 90-95 | J77: Open
A78: 4 | B78: 2021-10-06 | D78: NIFTY 17850 PE 14-OCT | E78: Buy | F78: 152.5 | G78: 17 | H78: 142 | I78: 250-300 | J78: Profit of Rs. 17.5/- | K78: =H78-F78 -> -10.50 | L78: 100.00 | M78: =(17.5*50)-200 -> 675 | N78: 50 | O78: Successful | P78: 2021-10-07
D79: NIFTY 17850 PE 07-OCT | E79: Sell | F79: 70 | H79: 42 | K79: =F79-H79 -> 28.00 | L79: 100.00
A80: 5 | B80: 2021-10-07 | D80: HDFCLIFE 740 CE OCT | E80: Buy | F80: 15 | G80: 10 | H80: 18.5 | I80: 25 | J80: Profit of Rs.3.5/- | K80: =H80-F80 -> 3.50 | L80: 100.00 | M80: =(K80*N80)-100 -> 3750 | N80: 1100 | O80: Successful | P80: 2021-10-07
A81: 6 | B81: 2021-10-07 | D81: NIFTY 17800 PE 14-OCT | E81: Buy | F81: 102.5 | G81: 60 | H81: 121 | I81: 160-180 | J81: Profit of Rs.18.5/- | K81: =H81-F81 -> 18.50 | L81: 100.00 | M81: =(K81*N81)-100 -> 825 | N81: 50 | O81: Successful | P81: 2021-10-07
A82: 7 | B82: 2021-10-07 | D82: BANKNIFTY 37700 PE 14-OCT | E82: Buy | F82: 290 | G82: 170 | H82: 335 | I82: 500 | J82: Profit of Rs.45/- | K82: =H82-F82 -> 45.00 | L82: 100.00 | M82: =(K82*N82)-100 -> 1025 | N82: 25 | O82: Successful | P82: 2021-10-07
A103: Techno -Funda (positional)
A104: Sr.no | B104: Date | D104: Company | E104: Rec | F104: Rec Price | G104: Stop Loss*** | H104: Call Closed At | I104: Target | J104: Remark | K104: Profit / Loss per Share/Lot | L104: All charges | M104: Net Gain / Loss % | N104: Status | O104: Closed Date | P104: Market Closing Price
A105: 1 | B105: 2021-08-12 | D105: SHARDACROP | E105: Buy | F105: 314 | G105: 284 | H105: 343.50 | I105: 380-390 | J105: Part profit of Rs.29.5/- | K105: =H105-F105 -> 29.5 | L105: =(F105*-0.7)/100 -> -2.20 | M105: =(K105+L105)/F105 -> 8.69% | N105: Successful | O105: 2021-09-16 | P105: =VLOOKUP(D105,'MidCap Intra'!B170:C670,2,0) -> 327.4 | R105: H
A107: CLBS = Closing Basis *** | F107: Reinitiated $
A108: Dividend adjusted <> | F108: Revised stoploss # | H108: .................
B110: Intrday Call
A111: Sr.no | B111: Date | D111: Company | E111: Rec | F111: Rec Price | G111: Stop Loss | H111: Call Closed At | I111: Target | J111: Remark | K111: Profit / Loss per Share/Lot | L111: Gain / Loss per Lot | M111: Lot | N111: All charges | O111: Net Gain / Loss % | P111: Status | Q111: Closed Date
B124: Investment Idea
A125: Sr.no | B125: Date | D125: Company | E125: Rec | F125: Rec Price | G125: Point of Review | H125: Close Rate | I125: Target | J125: Remark | K125: Profit / Loss per Share | L125: Gain / Loss % | M125: Status | N125: Closed Date
A126: 1 | B126: 2013-11-01 | D126: L&T Finance Holding | E126: Accu | F126: 82.00 | G126: - | H126: 100 | I126: 100.00 | J126: Target Achieved | K126: =H126-F126 -> 18.00 | L126: =K126/F126 -> 21.95% | M126: Successful | N126: 2016-10-14
A127: 2 | B127: 2014-06-04 | D127: Finolex Inds | E127: Buy | F127: 257.00 | G127: - | H127: 300 | I127: 300.00 | J127: Target Achieved | K127: 43.00 | L127: 16.73% | M127: Successful | N127: 2014-07-02
A128: 3 | B128: 2014-07-08 | D128: JK Cement | E128: Buy | F128: 393.00 | G128: - | H128: 468 | I128: 468.00 | J128: Target Achieved | K128: 75.00 | L128: 19.08% | M128: Successful | N128: 2014-08-12
A129: 4 | B129: 2014-08-06 | D129: Finolex Cables | E129: Buy | F129: 205.00 | G129: - | H129: 275 | I129: 250.00 | J129: Target Achieved | K129: 70.00 | L129: 34.15% | M129: Successful | N129: 2014-11-19
A130: 5 | B130: 2014-09-04 | D130: Exide Inds | E130: Buy | F130: 162.00 | G130: - | H130: 190 | I130: 190.00 | J130: Target Achieved | K130: 28.00 | L130: 17.28% | M130: Successful | N130: 2015-01-02
A131: 6 | B131: 2014-09-04 | D131: Deepak Nitrite | E131: Buy | F131: 75.00 | G131: - | H131: 91.5 | I131: 95-100 | J131: Profit of Rs.16.50/- | K131: 16.50 | L131: 22.00% | M131: Successful | N131: 2014-11-11
A132: 7 | B132: 2014-10-01 | D132: Mercks | E132: Buy | F132: 850.00 | G132: - | H132: 982.5 | I132: 1050.00 | J132: Profit of Rs.132.50/- | K132: 132.50 | L132: 15.59% | M132: Successful | N132: 2015-02-04
A133: 8 | B133: 2014-10-01 | D133: Grindwell Norton | E133: Buy | F133: 475.00 | G133: - | H133: 515 | I133: 600.00 | J133: Profit of Rs.40/- | K133: 40.00 | L133: 8.42% | M133: Successful | N133: 2014-10-27
A134: 9 | B134: 2014-10-01 | D134: Snowman Logistics | E134: Buy | F134: 86.00 | G134: - | H134: 99 | I134: 140.00 | J134: Profit of Rs.13.00/- | K134: 13.00 | L134: 15.12% | M134: Successful | N134: 2014-10-27
A135: 10 | B135: 2014-10-14 | D135: Birla Corp | E135: Buy | F135: 496.60 | G135: - | H135: 621 | I135: 580.00 | J135: Target Achieved | K135: 124.40 | L135: 25.05% | M135: Successful | N135: 2016-08-23
A136: 11 | B136: 2014-10-14 | D136: Ultratech Cem | E136: Buy | F136: 2481.90 | G136: - | H136: 2840 | I136: 2870.00 | J136: Profit of Rs.358.10/- | K136: 358.10 | L136: 14.43% | M136: Successful | N136: 2015-01-13
A137: 12 | B137: 2014-10-16 | D137: Sintex Inds | E137: Buy | F137: 84.50 | G137: - | H137: 93 | I137: 110.00 | J137: Profit of Rs.8.50/- | K137: 8.50 | L137: 10.06% | M137: Successful | N137: 2014-10-27
A138: 13 | B138: 2014-10-16 | D138: HSIL | E138: Buy | F138: 401.00 | G138: - | H138: 428 | I138: 450.00 | J138: Profit of Rs.27.00/- | K138: 27.00 | L138: 6.73% | M138: Successful | N138: 2015-01-16
A139: 14 | B139: 2014-10-16 | D139: Eveready Inds | E139: Buy | F139: 101.00 | G139: - | H139: 112 | I139: 120.00 | J139: Profit of Rs.11.00/- | K139: 11.00 | L139: 10.89% | M139: Successful | N139: 2014-10-27
A140: 15 | B140: 2014-11-11 | D140: Pennar Inds | E140: Buy | F140: 59.00 | G140: - | H140: 76 | I140: 76.00 | J140: Target Achieved | K140: 17.00 | L140: 28.81% | M140: Successful | N140: 2017-10-24
A141: 16 | B141: 2014-11-11 | D141: Snowman Logistics | E141: Buy | F141: 99.00 | G141: - | H141: 120 | I141: 120.00 | J141: Profit of Rs.21/- | K141: 21.00 | L141: 21.21% | M141: Successful | N141: 2014-11-17
A142: 17 | B142: 2014-11-13 | D142: Dharamsi Morarji Chem | E142: Buy | F142: 22.00 | G142: - | H142: 33.55 | I142: 32.00 | J142: Profit of Rs 11.55/- | K142: 11.55 | L142: 52.50% | M142: Successful | N142: 2015-07-03
A143: 18 | B143: 2014-12-03 | D143: Tatachem | E143: Buy | F143: 440.00 | G143: - | H143: 520 | I143: 520.00 | J143: Profit of Rs 80.00/- | K143: 80.00 | L143: 18.18% | M143: Successful | N143: 2015-07-23
A144: 19 | B144: 2014-12-03 | D144: Advanta | E144: Buy | F144: 360.00 | G144: - | H144: 427 | I144: 425.00 | J144: Profit of Rs.67.00/- | K144: 67.00 | L144: 18.61% | M144: Successful | N144: 2015-02-23
A145: 20 | B145: 2015-01-08 | D145: GDL | E145: Buy | F145: 360.00 | G145: - | H145: 455 | I145: 420.00 | J145: Profit of Rs.95.00/- | K145: 95.00 | L145: 26.39% | M145: Successful | N145: 2015-01-20
A146: 21 | B146: 2015-01-08 | D146: NRB Bearing | E146: Buy | F146: 130.00 | H146: 175.5 | I146: 165.00 | J146: Profit of Rs 45.50/- | K146: 45.50 | L146: 35.00% | M146: Successful | N146: 2017-12-19
A147: 22 | B147: 2015-02-05 | D147: GSFC | E147: Accu | F147: 98.00 | H147: 120 | I147: 120.00 | J147: Target Achieved | K147: 22.00 | L147: 22.45% | M147: Successful | N147: 2017-01-18
A148: 23 | B148: 2015-02-05 | D148: Sundrmfast | E148: Accu | F148: 196.00 | H148: 262 | I148: 255.00 | J148: Target Achieved | K148: 66.00 | L148: 33.67% | M148: Successful | N148: 2016-08-17
A149: 24 | B149: 2015-03-04 | D149: GPPL | E149: Accu | F149: 235 | H149: 77.00 | I149: 280-285 | J149: Loss of Rs.158/- | K149: -158.00 | L149: -67.23% | M149: Unsuccessful | N149: 2019-02-26
A150: 25 | B150: 2015-03-04 | D150: ORIENTCEM | E150: Accu | F150: 185.00 | H150: 224 | I150: 220-225 | J150: Target Achieved | K150: 39.00 | L150: 21.08% | M150: Successful | N150: 2016-10-04
A151: 26 | B151: 2015-03-27 | D151: PFS | E151: Accu | F151: 49.5 | H151: 15.85 | I151: 67.00 | J151: Loss of Rs.33.65/- | K151: -33.65 | L151: -68% | M151: Unsuccessful | N151: 2019-06-11
A152: 27 | B152: 2015-03-30 | D152: Walchandnagar Ind Ltd | E152: Accu | F152: 183.50 | H152: 219 | I152: 218.00 | J152: Profit of Rs.35.50/- | K152: 35.50 | L152: 19.35% | M152: Successful | N152: 2015-04-09
A153: 28 | B153: 2015-04-20 | D153: Kalpataru Power Transmission Ltd | E153: Accu | F153: =(227+237)/2 -> 232.00 | H153: 298 | I153: 298.00 | J153: Target Achieved | K153: 66.00 | L153: 28.45% | M153: Successful | N153: 2017-03-29
A154: 29 | B154: 2015-05-04 | D154: Mastek Ltd | E154: Buy | F154: 385.00 | H154: =212.5+331 -> 543.5 | I154: 510.00 | J154: Profit of Rs 158.50/- | K154: 158.50 | L154: 41.17% | M154: Successful | N154: 2015-08-19
A155: 30 | B155: 2015-05-04 | D155: Suprajit Eng | E155: Buy | F155: 115.50 | H155: 146 | I155: 142.00 | J155: Profit of Rs 30.50/- | K155: 30.50 | L155: 26.41% | M155: Successful | N155: 2015-07-17
A156: 31 | B156: 2015-05-27 | D156: TCI | E156: Buy | F156: 237.50 | H156: 279.5 | I156: 278.00 | J156: Target Achieved | K156: 42.00 | L156: 17.68% | M156: Successful | N156: 2015-08-06
A157: 32 | B157: 2015-06-19 | D157: HSIL | E157: Accu | F157: 340.00 | H157: 448 | I157: 448.00 | J157: Target Achieved | K157: 108.00 | L157: 31.76% | M157: Successful | N157: 2017-10-10
A158: 33 | B158: 2015-07-06 | D158: Capital First | E158: Accu | F158: 390.00 | H158: 460 | I158: 460.00 | J158: Target Achieved | K158: 70.00 | L158: 17.95% | M158: Successful | N158: 2016-04-18
A159: 34 | B159: 2015-07-10 | D159: Dolphin OffShore | E159: Accu | F159: 122.5 | H159: 61.00 | I159: 172.00 | J159: Loss of Rs.61.50/- | K159: -61.50 | L159: -50.20% | M159: Unsuccessful | N159: 2018-08-21
A160: 35 | B160: 2015-08-03 | D160: Allcargo logistics | E160: Accu | F160: 297.50 | H160: 350 | I160: 360.00 | J160: Profit of Rs 52.50/- | K160: 52.50 | L160: 17.65% | M160: Successful | N160: 2015-08-16
A161: 36 | B161: 2015-08-03 | D161: Camline Fine | E161: Accu | F161: 115.50 | H161: 149 | I161: 140.00 | J161: Profit of Rs 33.50/- | K161: 33.50 | L161: 29.00% | M161: Successful | N161: 2017-01-05
A162: 37 | B162: 2015-09-04 | D162: TCI | E162: Accu | F162: 226.00 | H162: 292 | I162: 292.00 | J162: Target Achieved | K162: 66.00 | L162: 29.20% | M162: Successful | N162: 2015-10-09
A163: 38 | B163: 2015-09-07 | D163: Kalpataru Power Transmission Ltd | E163: Accu | F163: 232.50 | H163: 312.5 | I163: 310.00 | J163: Target Achieved | K163: 80.00 | L163: 34.41% | M163: Successful | N163: 2017-03-29
A164: 39 | B164: 2015-09-21 | D164: LLOYD ELECTRIC & ENG LTD | E164: Accu | F164: 196.50 | H164: 238 | I164: 238.00 | J164: Target Achieved | K164: 41.50 | L164: 21.12% | M164: Successful | N164: 2015-10-14
A165: 40 | B165: 2015-09-24 | D165: L&T Finance Holding | E165: Accu | F165: 65.00 | H165: 82 | I165: 82.00 | J165: Target Achieved | K165: 17.00 | L165: 26.15% | M165: Successful | N165: 2016-07-27
A166: 41 | B166: 2015-10-14 | D166: KEC International ltd | E166: Accu | F166: 144.00 | H166: 182.5 | I166: 181.00 | J166: Target Achieved | K166: 38.50 | L166: 26.74% | M166: Successful | N166: 2017-03-23
A167: 42 | B167: 2015-10-14 | D167: Gruh Finance | E167: Accu | F167: 264.00 | H167: 311 | I167: 311.00 | J167: Target Achieved | K167: 47.00 | L167: 17.80% | M167: Successful | N167: 2016-08-22
A168: 43 | B168: 2015-11-10 | D168: Pidilitind | E168: Buy | F168: 549.50 | H168: 630 | I168: 630.00 | J168: Target Achieved | K168: 80.50 | L168: 14.65% | M168: Successful | N168: 2016-02-19
A169: 44 | B169: 2015-12-04 | D169: Zensar Technology | E169: Accu | F169: 1027.50 | H169: 1315 | I169: 1250.00 | J169: Target Achieved | K169: 287.50 | L169: 27.98% | M169: Successful | N169: 2018-05-24
A170: 45 | B170: 2015-12-29 | D170: Vinati Organics Ltd | E170: Accu | F170: 465.00 | H170: 540 | I170: 540.00 | J170: Target Achieved | K170: 75.00 | L170: 16.13% | M170: Successful | N170: 2016-06-09
A171: 46 | B171: 2016-01-11 | D171: GSFC | E171: Buy | F171: 81.00 | H171: 110 | I171: 110.00 | J171: Target Achieved | K171: 29.00 | L171: 35.80% | M171: Successful | N171: 2017-01-10
A172: 47 | B172: 2016-01-13 | D172: SSWL | E172: Buy | F172: 417.50 | H172: 547 | I172: 535.00 | J172: Target Achieved | K172: 129.50 | L172: 31.02% | M172: Successful | N172: 2016-07-27
A173: 48 | B173: 2016-02-08 | D173: Persistent System Ltd | E173: Accu | F173: 650.00 | H173: 800 | I173: 800.00 | J173: Target Achieved | K173: 150.00 | L173: 23.08% | M173: Successful | N173: 2018-02-23
A174: 49 | B174: 2016-03-04 | D174: UPL | E174: Accu | F174: 437.50 | H174: 504.5 | I174: 522.00 | J174: Profit of Rs.67/- | K174: 67.00 | L174: 15.31% | M174: Successful | N174: 2016-04-20
A175: 50 | B175: 2016-03-09 | D175: Ashoka Buildcon Ltd | E175: Accu | F175: 189.50 | H175: 218 | I175: 218.00 | J175: Target Achieved | K175: 28.50 | L175: 15.04% | M175: Successful | N175: 2017-10-26
A176: 51 | B176: 2016-04-11 | D176: PTC INDIA FIN SERV LTD | E176: Accu | F176: 36.5 | H176: 15.85 | I176: 60.00 | J176: Loss of Rs.20.65/- | K176: -20.65 | L176: -56.58% | M176: Unsuccessful | N176: 2019-06-11
A177: 52 | B177: 2016-04-12 | D177: CAMLINFINE $ | E177: Accu | F177: 93.00 | H177: 149 | I177: 140.00 | J177: Profit of Rs 56/- | K177: 56.00 | L177: 60.22% | M177: Successful | N177: 2017-01-05
A178: 53 | B178: 2016-04-12 | D178: Greaves Cotton Ltd. | E178: Accu | F178: 130.00 | H178: 150 | I178: 150-155 | J178: Target Achieved | K178: 20.00 | L178: 15.38% | M178: Successful | N178: 2016-07-13
A179: 54 | B179: 2016-04-13 | D179: DHFL | E179: Accu | F179: 196.00 | H179: 299 | I179: 299.00 | J179: Target Achieved | K179: 103.00 | L179: 52.55% | M179: Successful | N179: 2016-09-07
A180: 55 | B180: 2016-04-13 | D180: Magma | E180: Accu | F180: 88.00 | H180: 103 | I180: 103.00 | J180: Target Achieved | K180: 15.00 | L180: 17.05% | M180: Successful | N180: 2016-06-09
A181: 56 | B181: 2016-05-02 | D181: KEC International ltd $ | E181: Accu | F181: 127.50 | H181: 148 | I181: 148-150 | J181: Target Achieved | K181: =H181-F181 -> 20.50 | L181: =K181/F181 -> 16.08% | M181: Successful | N181: 2016-07-13
A182: 57 | B182: 2016-05-03 | D182: Mindtree | E182: Accu | F182: 675.00 | H182: 815 | I182: 790-800 | J182: Target Achieved | K182: 140.00 | L182: 20.74% | M182: Successful | N182: 2018-02-23
A183: 58 | B183: 2016-06-01 | D183: Atulauto | E183: Accu | F183: 500 | H183: 232.50 | I183: 565-570 | J183: Loss of Rs.267.50 /- | K183: -267.50 | L183: -53.50% | M183: Unsuccessful | N183: 2019-09-27
A184: 59 | B184: 2016-06-06 | D184: TRITURBINE | E184: Accu | F184: 110.00 | H184: 126.5 | I184: 125.00 | J184: Profit of Rs.16.50/- | K184: 16.50 | L184: 15.00% | M184: Successful | N184: 2016-07-01
A185: 60 | B185: 2016-06-17 | D185: Pennar Industries Ltd | E185: Accu | F185: 44.00 | H185: 69.5 | I185: 69.50 | J185: Profit of Rs.25.50/- | K185: 25.50 | L185: 57.95% | M185: Successful | N185: 2017-08-30
A186: 61 | B186: 2016-06-28 | D186: EVEREADY | E186: Accu | F186: 262.50 | H186: 340 | I186: 333.00 | J186: Profit of Rs.77.50/- | K186: 77.50 | L186: 29.52% | M186: Successful | N186: 2017-10-09
A187: 62 | B187: 2016-06-28 | D187: FIEMIND | E187: Accu | F187: 840.00 | H187: 1230 | I187: 1230.00 | J187: Target Achieved | K187: 390.00 | L187: 46.43% | M187: Successful | N187: 2016-10-06
A188: 63 | B188: 2016-07-05 | D188: Bajaj Corp Ltd | E188: Accu | F188: 395 | H188: =(468.5+342.5)/2 -> 405.50 | I188: 510.00 | J188: Profit of Rs.10.50/- | K188: =H188-F188 -> 10.50 | L188: =K188/F188 -> 3% | M188: Neutral | N188: 2019-05-21
A189: 64 | B189: 2016-08-02 | D189: GPPL $ | E189: Buy | F189: =169.5-12.8 -> 156.7 | H189: 77.00 | I189: 198-200 | J189: Loss of Rs.79.7/- | K189: -79.70 | L189: -50.86% | M189: Unsuccessful | N189: 2019-02-26
A190: 65 | B190: 2016-08-04 | D190: WONDERLA HOLIDAYS LTD | E190: Accu | F190: 400 | H190: 305.00 | I190: 475.00 | J190: Loss of Rs.95/- | K190: -95.00 | L190: -23.75% | M190: Unsuccessful | N190: 2019-05-21
A191: 66 | B191: 2016-08-11 | D191: CAMLINFINE | E191: Accu | F191: 86.50 | H191: 130 | I191: 130.00 | J191: Profit of Rs.43.50/- | K191: 43.50 | L191: 50.29% | M191: Successful | N191: 2017-12-22
A192: 67 | B192: 2016-08-18 | D192: GRANULES | E192: Accu | F192: 133.5 | H192: 126.50 | I192: 178.00 | J192: Exit | K192: -7.00 | L192: -5.24% | M192: Unsuccessful | N192: 2016-09-02
A193: 68 | B193: 2016-08-31 | D193: VA TECH WABAG | E193: Accu | F193: 560.00 | H193: 725 | I193: 725.00 | J193: Target Achieved | K193: 165.00 | L193: 29.46% | M193: Successful | N193: 2016-03-27
A194: 69 | B194: 2016-09-01 | D194: SKIPPER LIMITED | E194: Accu | F194: 160.50 | H194: 210 | I194: 210.00 | J194: Target Achieved | K194: 49.50 | L194: 30.84% | M194: Successful | N194: 2017-05-16
A195: 70 | B195: 2016-10-03 | D195: IFBIND | E195: Accu | F195: 430.00 | H195: 596 | I195: 575.00 | J195: Profit of Rs.166/- | K195: 166.00 | L195: 38.60% | M195: Successful | N195: 2017-02-03
A196: 71 | B196: 2016-10-14 | D196: ASIANTILES | E196: Accu | F196: 280.00 | H196: 345 | I196: 345.00 | J196: Target Achieved | K196: =H196-F196 -> 65.00 | L196: =K196/F196 -> 23.21% | M196: Successful | N196: 2017-03-20
A197: 72 | B197: 2016-10-14 | D197: DEEPIND | E197: Accu | F197: 245.00 | H197: 325.5 | I197: 330.00 | J197: Profit of Rs.80.5/- | K197: 80.50 | L197: 32.86% | M197: Successful | N197: 2017-02-03
A198: 73 | B198: 2016-10-17 | D198: DCBBANK | E198: Accu | F198: 125.00 | H198: 160 | I198: 160.00 | J198: Target Achieved | K198: 35.00 | L198: 28.00% | M198: Successful | N198: 2017-03-09
A199: 74 | B199: 2016-10-17 | D199: ORIENTREF | E199: Accu | F199: 114.00 | H199: 145 | I199: 145.00 | J199: Target Achieved | K199: 31.00 | L199: =K199/F199 -> 27.19% | M199: Successful | N199: 2017-05-04
A200: 75 | B200: 2016-10-17 | D200: GANECOS | E200: Accu | F200: 212.00 | H200: 280 | I200: 276.00 | J200: Profit of Rs.68/- | K200: 68.00 | L200: 32.08% | M200: Successful | N200: 2017-05-03
A201: 76 | B201: 2016-11-04 | D201: NBCC | E201: Accu | F201: 155.00 | H201: 210 | I201: 210.00 | J201: Profit of Rs.55/- | K201: 55.00 | L201: 35.48% | M201: Successful | N201: 2017-07-28
A202: 77 | B202: 2016-12-06 | D202: PRECAM | E202: Accu | F202: 150.5 | H202: 72.50 | I202: 174.00 | J202: Loss of Rs.78/- | K202: -78.00 | L202: -51.83% | M202: Unsuccessful | N202: 2018-08-21
A203: 78 | B203: 2016-12-08 | D203: INFRATEL | E203: Accu | F203: 380.00 | H203: 478 | I203: 468.00 | J203: Target Achieved | K203: =H203-F203 -> 98.00 | L203: =K203/F203 -> 25.79% | M203: Successful | N203: 2017-10-17
A204: 79 | B204: 2016-12-30 | D204: GODREJPROP | E204: Accu | F204: 305.00 | H204: 375 | I204: 375.00 | J204: Target Achieved | K204: 70.00 | L204: 22.95% | M204: Successful | N204: 2017-02-02
A205: 80 | B205: 2017-01-04 | D205: DEEPAKNTR | E205: Accu | F205: 99.50 | H205: 158 | I205: 158.00 | J205: Target Achieved | K205: 58.50 | L205: 58.79% | M205: Successful | N205: 2017-06-12
A206: 81 | B206: 2017-01-04 | D206: DEEPAKNTR | E206: Accu | F206: 99.50 | H206: 158 | I206: 158.00 | J206: Target Achieved | K206: 58.50 | L206: 58.79% | M206: Successful | N206: 2017-06-12
A207: 82 | B207: 2017-02-20 | D207: RECLTD | E207: Accu | F207: 140.50 | H207: 220 | I207: 220.00 | J207: Target Achieved | K207: =H207-F207 -> 79.50 | L207: =K207/F207 -> 56.58% | M207: Successful | N207: 2017-05-09
A208: 83 | B208: 2017-02-20 | D208: SUBROS | E208: Accu | F208: 202.50 | H208: 234 | I208: 234.00 | J208: Target Achieved | K208: 31.50 | L208: 15.56% | M208: Successful | N208: 2017-04-11
A209: 84 | B209: 2017-03-24 | D209: VRLLOG | E209: Accu | F209: 300.50 | H209: 417.5 | I209: 420.00 | J209: Profit of Rs.117/- | K209: =H209-F209 -> 117.00 | L209: =K209/F209 -> 38.94% | M209: Successful | N209: 2017-12-01
A210: 85 | B210: 2017-03-24 | D210: FIEMIND | E210: Accu | F210: 850.00 | H210: 1042.5 | I210: 1023.00 | J210: Profit of Rs 192.50/- | K210: 192.50 | L210: 22.65% | M210: Successful | N210: 2017-04-05
A211: 86 | B211: 2017-04-05 | D211: RATNAMANI | E211: Accu | F211: 785.00 | H211: 930 | I211: 920.00 | J211: Profit of Rs.145/- | K211: =H211-F211 -> 145.00 | L211: =K211/F211 -> 18.47% | M211: Successful | N211: 2017-08-29
A212: 87 | B212: 2017-04-06 | D212: ZEEMEDIA | E212: Accu | F212: 40 | H212: 13.10 | I212: 60.00 | J212: Loss of Rs.26.9/- | K212: -26.90 | L212: -67.25% | M212: Unsuccessful | N212: 2018-02-07
A213: 88 | B213: 2017-04-12 | D213: DABUR | E213: Accu | F213: 289.50 | H213: 354 | I213: 360.00 | J213: Profit of Rs.64.5/- | K213: =H213-F213 -> 64.50 | L213: =K213/F213 -> 22.28% | M213: Successful | N213: 2017-11-01
A214: 89 | B214: 2017-04-20 | D214: KPRMILL | E214: Accu | F214: 700.00 | H214: 840 | I214: 840.00 | J214: Profit of Rs.140/- | K214: 140.00 | L214: 20.00% | M214: Successful | N214: 2017-06-07
A215: 90 | B215: 2017-06-01 | D215: ESSELPACK | E215: Accu | F215: 130.00 | H215: 144.25 | I215: 170.00 | J215: Profit of Rs.14.25/- | K215: 14.25 | L215: 10.96% | M215: Successful | N215: 2019-07-29
A216: 91 | B216: 2017-06-15 | D216: KEI | E216: Accu | F216: 214.50 | H216: 262 | I216: 262.00 | J216: Profit of Rs.47.5/- | K216: 47.50 | L216: 22.14% | M216: Successful | N216: 2017-08-30
A217: 92 | B217: 2017-07-17 | D217: MAYURUNIQ | E217: Accu | F217: 370.00 | H217: 447.5 | I217: 450.00 | J217: Target Achieved | K217: 77.50 | L217: 20.95% | M217: Successful | N217: 2017-10-27
A218: 93 | B218: 2017-07-27 | D218: RAMCOCEM | E218: Accu | F218: 657.50 | H218: 825 | I218: 820.00 | J218: Target Achieved | K218: 167.50 | L218: 25.48% | M218: Successful | N218: 2017-12-21
A219: 94 | B219: 2017-08-17 | D219: FINPIPE | E219: Accu | F219: 605.00 | H219: 750 | I219: 750.00 | J219: Profit of Rs.145/- | K219: 145.00 | L219: 23.97% | M219: Successful | N219: 2017-10-19
A220: 95 | B220: 2017-09-01 | D220: SHK | E220: Accu | F220: 255 | H220: 217.25 | I220: 320.00 | J220: Loss of Rs.37.75/- | K220: -37.75 | L220: -15% | M220: Unsuccessful | N220: 2019-07-15
A221: 96 | B221: 2017-09-19 | D221: SKIPPER | E221: Accu | F221: 215.00 | H221: 258 | I221: 258.00 | J221: Target Achieved | K221: 43.00 | L221: 20.00% | M221: Successful | N221: 2017-11-01
A222: 97 | B222: 2017-09-19 | D222: SKIPPER | E222: Accu | F222: 215.00 | H222: 258 | I222: 258.00 | J222: Target Achieved | K222: 43.00 | L222: 20.00% | M222: Successful | N222: 2017-11-01
A223: 98 | B223: 2017-09-20 | D223: CAMLINFINE$ | E223: Accu | F223: 75.00 | H223: 90 | I223: 90.00 | J223: Profit of Rs.15.00/- | K223: =H223-F223 -> 15.00 | L223: =K223/F223 -> 20.00% | M223: Successful | N223: 2017-10-11
A224: 99 | B224: 2017-10-03 | D224: GNA | E224: Accu | F224: 315.00 | H224: 392 | I224: 384.00 | J224: Profit of Rs.77/- | K224: 77.00 | L224: 24.44% | M224: Successful | N224: 2017-10-09
A225: 100 | B225: 2017-10-05 | D225: NOCIL | E225: Accu | F225: 145.00 | H225: 179 | I225: 180.00 | J225: Profit of Rs.34/- | K225: 34.00 | L225: 23.45% | M225: Successful | N225: 2017-10-17
A226: 101 | B226: 2017-10-06 | D226: CENTURYPLY | E226: Accu | F226: 256.00 | H226: 323 | I226: 320.00 | J226: Target Achieved | K226: 67.00 | L226: 26.17% | M226: Successful | N226: 2017-11-28
A227: 102 | B227: 2017-10-09 | D227: EIHOTEL | E227: Accu | F227: 137.50 | H227: 184 | I227: 183.00 | J227: Profit of Rs.46.5/- | K227: 46.50 | L227: 33.82% | M227: Successful | N227: 2018-01-08
A228: 103 | B228: 2017-10-10 | D228: NRBBEARING | E228: Accu | F228: 125.50 | H228: 158 | I228: 155.00 | J228: Profit of Rs.32.5/- | K228: 32.50 | L228: 25.90% | M228: Successful | N228: 2017-11-28
A229: 104 | B229: 2017-10-10 | D229: BOROSIL | E229: Accu | F229: 895.00 | H229: 1122.5 | I229: 1078.00 | J229: Profit of Rs.227.5/- | K229: 227.50 | L229: 25.42% | M229: Successful | N229: 2018-01-17
A230: 105 | B230: 2017-10-12 | D230: CYIENT | E230: Accu | F230: 525.00 | H230: 629 | I230: 629.00 | J230: Target Achieved | K230: 104.00 | L230: 19.81% | M230: Successful | N230: 2018-01-19
A231: 106 | B231: 2017-11-07 | D231: HATSUN | E231: Accu | F231: 740.00 | H231: 892.5 | I231: 900.00 | J231: Profit of Rs.152.5/- | K231: =H231-F231 -> 152.50 | L231: =K231/F231 -> 20.61% | M231: Successful | N231: 2017-11-13
A232: 107 | B232: 2017-12-04 | D232: SANGHIIND | E232: Accu | F232: 118.50 | H232: 143.5 | I232: 145.00 | J232: Profit of Rs.25/- | K232: 25.00 | L232: 21.10% | M232: Successful | N232: 2017-12-28
A233: 108 | B233: 2017-12-21 | D233: KAJARIACER | E233: Accu | F233: 715 | H233: 500.00 | I233: 872.00 | J233: Loss of Rs.215/- | K233: -215.00 | L233: -30.07% | M233: Unsuccessful | N233: 2019-07-24
A234: 109 | B234: 2017-12-29 | D234: GNA | E234: Accu | F234: 435.00 | H234: 542.5 | I234: 539.00 | J234: Target Achieved | K234: 107.50 | L234: 24.71% | M234: Successful | N234: 2018-04-16
A235: 110 | B235: 2017-12-29 | D235: ZENSARTECH | E235: Accu | F235: 885.00 | H235: 1090 | I235: 1084.00 | J235: Target Achieved | K235: 205.00 | L235: 23.16% | M235: Successful | N235: 2018-04-23
A236: 111 | B236: 2018-04-02 | D236: EVERESTIND | E236: Accu | F236: 478.50 | H236: 442 | I236: 613.00 | J236: Loss of Rs.36.50 /- | K236: =H236-F236 -> -36.50 | L236: =K236/F236 -> -7.63% | M236: Unsuccessful | N236: 2019-10-24
A237: 112 | B237: 2018-04-04 | D237: GPPL$ | E237: Accu | F237: =141.5-7.3 -> 134.2 | H237: 77.00 | I237: 180.00 | J237: Loss of Rs.57.2/- | K237: -57.20 | L237: -42.62% | M237: Unsuccessful | N237: 2019-02-26
A238: 113 | B238: 2018-04-19 | D238: MANPASAND | E238: Accu | F238: 430 | H238: 220.00 | I238: 537.00 | J238: Loss of Rs.210/- | K238: -210.00 | L238: -48.84% | M238: Unsuccessful | N238: 2018-06-01
A239: 114 | B239: 2018-04-30 | D239: HEIDELBERG | E239: Accu | F239: 153.5 | H239: 196 | I239: 196.00 | J239: Profit of Rs.42.50/- | K239: 42.50 | L239: 27.69% | M239: Successful | N239: 2019-05-20
A240: 115 | B240: 2018-07-25 | D240: ZEEMEDIA | E240: Accu | F240: 27.5 | H240: 13.10 | I240: 60.00 | J240: Loss of Rs.14.40/- | K240: -14.40 | L240: -52.36% | M240: Unsuccessful | N240: 2018-02-07
A241: 116 | B241: 2018-08-06 | D241: GABRIEL | E241: Accu | F241: 148.5 | H241: 102 | I241: 182.00 | J241: Loss of Rs.46.50/- | K241: =H241-F241 -> -46.50 | L241: =K241/F241 -> -31.31% | M241: Unsuccessful | N241: 2019-07-15
A242: 117 | B242: 2018-08-23 | D242: INDIANHUME | E242: Accu | F242: 285 | H242: 355 | I242: 364.00 | J242: Profit of Rs.70/- | K242: 70.00 | L242: 24.56% | M242: Successful | N242: 2018-12-21
A243: 118 | B243: 2018-08-29 | D243: GRINDWELL | E243: Accu | F243: 525 | H243: 585 | I243: 635.00 | J243: Profit of Rs.60- | K243: =H243-F243 -> 60.00 | L243: =K243/F243 -> 11.43% | M243: Successful | N243: 2019-07-16
A244: 119 | B244: 2018-10-22 | D244: FINPIPE | E244: Accu | F244: 475 | H244: 574 | I244: 570.00 | J244: Target Achieved | K244: 99.00 | L244: 20.84% | M244: Successful | N244: 2018-10-30
A245: 120 | B245: 2018-10-24 | D245: GULFOILLUB | E245: Accu | F245: 707.5 | H245: 872 | I245: 872.00 | J245: Target Achieved | K245: 164.50 | L245: 23.25% | M245: Successful | N245: 2019-01-17
A246: 121 | B246: 2018-10-25 | D246: DBCORP | E246: Accu | F246: 162 | H246: 204 | I246: 209.00 | J246: Profit of Rs.42/- | K246: 42.00 | L246: 25.93% | M246: Successful | N246: 2019-03-15
A247: 122 | B247: 2018-10-26 | D247: RITES | E247: Accu | F247: 240 | H247: 297 | I247: 297.00 | J247: Target Achieved | K247: 57.00 | L247: 23.75% | M247: Successful | N247: 2018-11-13
A248: 123 | B248: 2018-12-05 | D248: BRIGADE | E248: Accu | F248: 202.5 | H248: 255 | I248: 252.00 | J248: Target Achieved | K248: 52.50 | L248: 25.93% | M248: Successful | N248: 2019-03-18 | R248: V
A249: 124 | B249: 2018-12-31 | D249: JKCEMENT | E249: Accu | F249: 710 | H249: 866 | I249: 866.00 | J249: Target Achieved | K249: 156.00 | L249: 21.97% | M249: Successful | N249: 2019-03-29 | R249: V
A250: 125 | B250: 2019-02-26 | D250: MARICO | E250: Accu | F250: 337.25 | H250: 398.5 | I250: 411.00 | J250: Profit of Rs.61.25/- | K250: 61.25 | L250: 18.16% | M250: Successful | N250: 2019-10-22 | R250: V
A251: 126 | B251: 2019-04-04 | D251: ITDCEM | E251: Accu | F251: 130 | H251: 65 | I251: 158.00 | J251: Loss of Rs.65 /- | K251: -65.00 | L251: -50.00% | M251: Unsuccessful | N251: 2019-09-18 | R251: K
A252: 127 | B252: 2017-10-09 | D252: RECLTD | E252: Accu | F252: 141.5 | H252: 183.5 | I252: 210.00 | J252: Profit of Rs.42/- | K252: 42.00 | L252: 29.68% | M252: Successful | N252: 2017-11-03 | R252: K
A253: 128 | B253: 2017-12-05 | D253: ALLCARGO | E253: Accu | F253: 172.00 | H253: 155.25 | I253: 230.00 | J253: Loss of Rs.16.75/- | K253: -16.75 | L253: -9.74% | M253: Unsuccessful | N253: 2019-11-18 | R253: K
A254: 129 | B254: 2018-10-25 | D254: GODREJCP | E254: Accu | F254: 698.5 | H254: 890 | I254: 890.00 | J254: Part Profit of Rs.191.50/- | K254: 191.50 | L254: 27.42% | M254: Successful | N254: 2021-05-12 | R254: V
... 41 more rows
